{"text_format":"1","workbook":"xlsx","n_sheets":20,"sheets":["Project Info & Instructions","Split Sample Comparison","Core Data","AC % Data","Mix Acceptance","Air Voids Pay Factor","Density Pay Factor","Test Strip Summary","Gauge-Core Variability","QC-1 Density Worksheet","QC-2 Density Worksheet","QV-1 Density Worksheet","QV-2 Density Worksheet","QC-1 Correlation","QC-2 Correlation","QV-1 Correlation","QV-2 Correlation","INTERNAL_SYS_MSGS","INTERNAL_SYS_VAR","Data Summary"],"not_rendered":{"charts":5,"images":6,"macros":1,"external_links":2,"defined_names":348,"comments":0,"pivot_tables":0},"unopened":[],"bounds":{"document_bytes":16777216,"sheet_cells":100000,"rows_first":2000,"rows_last":500,"rows_between":2000,"halvings":0,"cell_chars":16384,"cell_head_chars":4096},"cells_cut":0,"cells_raw":0,"read":"whole","date_system":"1900"}

{"sheet":"Project Info & Instructions","index":0,"n_rows":35,"n_cols":24,"rows_kept":35,"cut":false,"hidden":false,"merged":[[14,9,14,10],[13,21,14,21],[11,20,11,23],[19,20,21,20],[17,22,17,23],[16,20,16,23],[17,20,18,20],[17,21,18,21],[20,6,20,8],[11,9,11,10],[1,16,1,17],[8,2,8,8],[16,6,16,8],[0,2,5,8],[6,2,6,8],[7,2,7,8],[9,6,9,8],[10,6,10,8],[11,6,11,8],[13,9,13,10],[12,6,12,8],[15,6,15,8],[14,6,14,8],[12,9,12,10],[34,2,34,8],[17,6,17,8],[32,2,33,8],[27,6,27,8],[11,17,11,18],[22,6,22,8],[23,6,23,8],[20,9,23,10],[30,6,30,8],[29,6,29,8],[28,6,28,8],[19,6,19,8],[18,6,18,8],[25,6,25,8],[26,6,26,8],[21,6,21,8]]}
[null,null,"Wisconsin Department \nof Transportation "]
[null,null,null,null,null,null,null,null,null,null,null,null,null,null,null,null,"Worksheet Settings"]
[null,null,null,null,null,null,null,null,null,null,null,null,null,null,null,null,"Test Strip Form Control:",1]
[null,null,null,null,null,null,null,null,null,null,null,null,null,null,null,null,"Test Strip Titleblock Name:",{"$f":"IF(R3=1,\"Combined Density and Volumetrics Test Strip\",IF(R3=2, \"Density Only Test Strip\",IF(R3=3,\"Volumetrics Only Test Strip\",\"\")))","v":"Combined Density and Volumetrics Test Strip"}]
[null,null,null,null,null,null,null,null,null,null,null,null,null,null,null,null,"Test Strip Type:",{"$f":"IF(R3=1,\"Combined\",IF(R3=2, \"Density-Only\",IF(R3=3,\"Volumetrics-Only\",\"\")))","v":"Combined"}]
[{"$f":"\"Revised \"&TEXT(INTERNAL_SYS_VAR!$C$2,\"m-dd-yy\")","v":"Revised 5-01-25"},null,null,null,null,null,null,null,null,null,null,null,null,null,null,null,"Calculate Tonnage Based on Known Length:",false]
[null,null,"HMA PWL Test Strip Spreadsheet",null,null,null,null,null,null,null,null,null,null,null,null,null,"Stations Decreasing:",false]
[null,null,{"$f":"CONCATENATE(R4,\" Project Information\")","v":"Combined Density and Volumetrics Test Strip Project Information"},null,null,null,null,null,null,null,null,null,null,null,null,null,"Stations Locked:",false]
[null,"Test Strip Type:",null,null,null,null,null,null,null,null,null,null,null,null,null,null,"Tonnages Locked:",false]
[null,"Date Constructed:",null,null,null,"Paving Width(ft):"]
[null,"Test Strip #:",null,null,null,"Lane Width(ft):"]
[null,"Contract ID:",null,null,null,"Nominal Thickness(in):",null,null,null,"Calculated Tonnage",null,null,null,null,null,null,"Lookup Value","Lookup Table",null,null,"Density Zones"]
[null,"Job No./Project ID:",null,null,null,"Estimated Tonnage:",null,null,null,{"$f":"IF(G15=\"\",\"\",(G15*G10)/9*112*G12/2000)","v":""},null,null,null,null,null,null,{"$f":"IF($G$16=\"Upper\",NA(),CONCATENATE(IF($G$16=INTERNAL_SYS_MSGS!$B$4,INTERNAL_SYS_MSGS!$B$3,INTERNAL_SYS_MSGS!$B$3),$C$18,_xlfn.SWITCH($G$17,INTERNAL_SYS_MSGS!$B$8,\"Crushed Aggregate\",INTERNAL_SYS_MSGS!$B$9,INTERNAL_SYS_MSGS!$B$9,INTERNAL_SYS_MSGS!$B$10,INTERNAL_SYS_MSGS!$B$10,INTERNAL_SYS_MSGS!$B$11,\"HMA\",INTERNAL_SYS_MSGS!$B$12,\"HMA\",INTERNAL_SYS_MSGS!$B$13,\"Recycled HMA\",INTERNAL_SYS_MSGS!$B$14,\"Recycled HMA\")))","v":{"$error":"#N/A"}},"LowerLTPCC",93,null,"Zone","Increasing/Decreasing Stations","Start Range","End Range"]
[null,"Route/Road:",null,null,null," Estimated Stations- Start:",null,"End:",{"$f":"IF(G14=\"\",\"\",IF(AND(R6=TRUE,R7=TRUE),G14-G15,IF(AND(R6=TRUE,R7=FALSE),G14+G15,IF(AND(R6=FALSE,R7=TRUE),G14-J15,IF(AND(R6=FALSE,R7=FALSE),G14+J15,\"\")))))","v":""},"Calculated Length",null,null,null,null,null,null,null,"LowerMTPCC",93,null,1,{"$f":"IF(I14-G14>0,\"Increasing\",\"Decreasing\")","v":{"$error":"#VALUE!"}},{"$f":"IF(R7=FALSE,G14+100,G14-100)","v":100},{"$f":"IF(R7=FALSE,(G14+ABS(((I14-G14)/2)-150)),(G14-(ABS(((I14-G14)/2)+150))))","v":{"$error":"#VALUE!"}}]
[null,"County:",null,null,null,"Estimated Length(ft):",null,null,null,{"$f":"IF(G13=\"\",\"\",G13*2000/G12*9/112/G10)","v":""},null,null,null,null,null,null,null,"LowerHTPCC",93,null,2,null,{"$f":"IF(R7=FALSE,(G14+ABS(((I14-G14)/2)+150)),(G14-ABS(((I14-G14)/2)-150)))","v":{"$error":"#VALUE!"}},{"$f":"IF(R7=FALSE,I14-100,I14+100)","v":{"$error":"#VALUE!"}}]
[null,"WisDOT Mix No.:",null,null,null,"Test Strip Pavement Layer:",null,null,null,null,null,null,null,null,null,null,null,"LowerSMAPCC",93]
[null,"Mix Gradation:",null,null,null,"Underlying Layer:",null,null,null,null,null,null,null,null,null,null,null,"LowerLTHMA",93,null,"Volumetric Sample Locations"]
[null,"Mix Traffic Vol:",null,null,null,"Density Lower Spec Limit(%):",{"$f":"IF(OR(G16=\"\",G17=\"\",C18=\"\"),INTERNAL_SYS_MSGS!$B$16,IF(AND(C17=5,G12=1.25,OR(G16=INTERNAL_SYS_MSGS!$B$3,G16=INTERNAL_SYS_MSGS!$B$4),OR(G17=INTERNAL_SYS_MSGS!$B$9,G17=INTERNAL_SYS_MSGS!$B$11,G17=INTERNAL_SYS_MSGS!$B$12)),VLOOKUP(Q13,R13:S32,2,FALSE)-1,IF(OR(G16=INTERNAL_SYS_MSGS!$B$4,G16=INTERNAL_SYS_MSGS!$B$5),93,VLOOKUP(Q13,R13:S32,2,FALSE))))","v":"Enter Mix and Layer Info"},null,null,null,null,null,null,null,null,null,null,"LowerMTHMA",93,null,"Test Strip Tonnage","Volumetric Sample ID","Tonnage Range"]
[null,"Asphalt Binder:",null,null,null,"Project Leader:",null,null,null,null,null,null,null,null,null,null,null,"LowerHTHMA",93,null,null,null,"Min","Max"]
[null,"Binder Designation:",null,null,null,"Contractor:",null,null,null,null,null,null,null,null,null,null,null,"LowerSMAHMA",93,null,{"$f":"IF(R6=TRUE,J13,G13)","v":0},1,50,{"$f":"U20/3","v":0}]
[null,"Mix Type:",{"$f":"CONCATENATE(C17,\"-\",C18,\"-\",C19,C20)","v":"--"},null,null,"JMF Gmm:",null,null,null,"From WisDOT 250 Report/ Current JMF",null,null,null,null,null,null,null,"LowerLTCrushed Aggregate",91,null,null,2,{"$f":"U20/3","v":0},{"$f":"U20/3*2","v":0}]
[null,"Contract Unit Price:",null,null,null," JMF AC %: ",null,null,null,null,null,null,null,null,null,null,null,"LowerMTCrushed Aggregate",91,null,null,3,{"$f":"U20/3*2","v":0},{"$f":"U20","v":0}]
[null,"Final Tonnage:",null,null,null,"JMF AC Sp. Gr.:",null,null,null,null,null,null,null,null,null,null,null,"LowerHTCrushed Aggregate",92]
[null,"Final Length:",null,null,null,"JMF Gse: ",null,null,null,null,null,null,null,null,null,null,null,"LowerSMACrushed Aggregate",93]
[null,null,null,null,null,null,null,null,null,null,null,null,null,null,null,null,null,"LowerLTRecycled HMA",91]
[null,null,null,null,null,"Density Zone #1 Center Station:",null,null,null,null,null,null,null,null,null,null,null,"LowerMTRecycled HMA",91]
[null,null,null,null,null,"Density Zone #2 Center Station:",null,null,null,null,null,null,null,null,null,null,null,"LowerHTRecycled HMA",92]
[null,null,null,null,null,null,null,null,null,null,null,null,null,null,null,null,null,"LowerSMARecycled HMA",93]
[null,null,null,null,null,"Random Split Sample #1 Tonnage:",null,null,null,null,null,null,null,null,null,null,null,"LowerLTRecycled PCC",91]
[null,null,null,null,null,"Random Split Sample #2 Tonnage:",null,null,null,null,null,null,null,null,null,null,null,"LowerMTRecycled PCC",91]
[null,null,null,null,null,"Random Split Sample #3 Tonnage:",null,null,null,null,null,null,null,null,null,null,null,"LowerHTRecycled PCC",92]
[null,null,null,null,null,null,null,null,null,null,null,null,null,null,null,null,null,"LowerSMARecycled PCC",93]
[null,"Other/Notes:"]
[]
[null,"Suggested File Name:",{"$f":"CONCATENATE(C13,\"_\",C14,\"_\",C21,\"_\",G16,\"_\",\"PWL-TS-\",C11,\"-\",R5)","v":"__--__PWL-TS--Combined"}]

{"sheet":"Split Sample Comparison","index":1,"n_rows":33,"n_cols":26,"rows_kept":33,"cut":false,"hidden":false,"merged":[[1,20,1,21],[11,22,11,25],[22,10,22,12],[31,15,31,17],[20,6,20,7],[20,8,20,9],[10,6,10,7],[10,8,10,9],[10,12,10,13],[20,12,20,13],[19,12,19,13],[19,15,19,16],[20,15,20,16],[19,6,19,9],[24,13,24,15],[23,10,23,12],[2,2,2,3],[3,2,3,3],[4,2,4,3],[2,6,2,7],[3,6,3,7],[4,6,4,7],[12,5,15,9],[14,18,16,18],[6,11,6,13],[16,11,16,13],[6,14,6,16],[9,15,9,16],[10,15,10,16],[16,14,16,16],[5,2,5,3],[9,6,9,9],[9,12,9,13],[4,18,6,18],[5,7,5,9]]}
[null,"Split Sample Testing Comparison",null,null,null,null,null,null,null,null,null,"If datasets compare and testing differences are within testing tolerance, QC data is carried into the "]
[null,null,null,null,null,null,null,null,null,null,null,"Air Voids Pay Factor worksheet. If not, BTS will conduct referee Gmm & Gmb tests and BTS",null,null,null,null,null,null,null,null,"Worksheet Variables"]
[null,"Date:",{"$f":"IF('Project Info & Instructions'!C10=\"\",\"\",'Project Info & Instructions'!C10)","v":""},null,null,"Test Strip #:",{"$f":"IF('Project Info & Instructions'!C11=\"\",\"\",'Project Info & Instructions'!C11)","v":""},null,null,null,null,"data will be used for subsequent calculations.",null,null,null,null,null,null,null,null,"Failed t-test but Xd Mean and Gmm All Within Tolerance-No Referee Test Needed:",false]
[null,"Project ID:",{"$f":"IF('Project Info & Instructions'!C13=\"\",\"\",'Project Info & Instructions'!C13)","v":""},null,null,"Route/Road:",{"$f":"IF('Project Info & Instructions'!C14=\"\",\"\",'Project Info & Instructions'!C14)","v":""},null,null,null,null,"If QC and QV datasets do not compare, BTS referee Gmm and Gmb test data needs to be entered in the ",null,null,null,null,null,null,null,null,"QC/QV Total Test Count:",{"$f":"COUNT(D9:E11,D19:E21)","v":0}]
[null,"Mix Type:",{"$f":"IF('Project Info & Instructions'!C21=\"\",\"\",'Project Info & Instructions'!C21)","v":"--"},null,null," Layer:",{"$f":"IF('Project Info & Instructions'!G16=\"\",\"\",'Project Info & Instructions'!G16)","v":""},null,null,null,null,"BTS Referee Gmm/Gmb Column.",null,null,null,null,null,null,"Gmm \nXd Mean Tolerance",null,"Gmm Test Count:",{"$f":"COUNT(D9:E11)","v":0}]
[null,"JMF Gmm:",{"$f":"IF('Project Info & Instructions'!G21=\"\",INTERNAL_SYS_MSGS!$B$24,'Project Info & Instructions'!G21)","v":"Enter JMF Gmm."},null,null,null,null,null,null,null,null,null,null,null,null,null,null,null,null,null,"Gmb Test Count:",{"$f":"COUNT(D19:E21)","v":0}]
[null,"Gmm",null,null,null,null,null,null,null,null,null,"BTS Vs. QC Results",null,null,"BTS Vs. QV Results",null,null,null,null,null,"Referee Tests Required?:",{"$f":"IF(OR($V$4<12,$V$3=TRUE),\"No\",IF(AND($V$4=12,$V$10=TRUE),\"Yes\",IF(AND($V$4=12,AND($G$10=INTERNAL_SYS_MSGS!$B$18,$I$11=INTERNAL_SYS_MSGS!$B$21,$G$20=INTERNAL_SYS_MSGS!$B$18,$I$21=INTERNAL_SYS_MSGS!$B$21)),\"No\",\"Yes\")))","v":"No"}]
[null,"Split Sample Number","Tonnage","QC Gmm","QV Gmm","Difference (Xd)","Xd Mean",{"$f":"IF($V$5<6,\"\",ROUND(ABS(AVERAGE(F9:F11)),3))","v":""},"Degree of Freedom",{"$f":"COUNT(E9:E11)-1","v":-1},"BTS Referee Gmm","Difference (Xd)","Xd Mean",{"$f":"IF($V$8<3,\"\",ROUND(ABS(AVERAGE(L9:L11)),3))","v":""},"Difference (Xd)","Xd Mean",{"$f":"IF($V$8<3,\"\",ROUND(ABS(AVERAGE(O9:O11)),3))","v":""},null,{"$f":"INTERNAL_SYS_VAR!$C$7","v":1.2E-2},null,"BTS Referee Gmm Test Count:",{"$f":"COUNT(K9:K11)","v":0}]
[null,1,{"$f":"IF('Project Info & Instructions'!$G$29=\"\",\"\",'Project Info & Instructions'!$G$29)","v":""},null,null,{"$f":"IF(OR(D9=\"\",E9=\"\"),\"\",ABS(D9-E9))","v":""},"t-test p-value",{"$f":"IF($V$5<6,\"\",TTEST($D$9:$D$11,$E$9:$E$11,2,1))","v":""},"Prob. α",0.01,{"$f":"IF($V$7=\"No\",\"\",INTERNAL_SYS_MSGS!$B$26)","v":""},{"$f":"IF(OR(D9=\"\",K9=\"\",K9=\"BTS Result\"),\"\",ABS(D9-K9))","v":""},"t-test p-value",{"$f":"IF($V$8<3,\"\",TTEST($D$9:$D$11,$K$9:$K$11,2,1))","v":""},{"$f":"IF(OR(E9=\"\",K9=\"\",K9=\"BTS Result\"),\"\",ABS(E9-K9))","v":""},"t-test p-value",{"$f":"IF($V$8<3,\"\",TTEST($E$9:$E$11,$K$9:$K$11,2,1))","v":""},null,null,null,"BTS Referee Gmb Test Count:",{"$f":"COUNT(K19:K21)","v":0}]
[null,2,{"$f":"IF('Project Info & Instructions'!$G$30=\"\",\"\",'Project Info & Instructions'!$G$30)","v":""},null,null,{"$f":"IF(OR(D10=\"\",E10=\"\"),\"\",ABS(D10-E10))","v":""},{"$f":"IF($V$5<6,\"\",IF(H8<=S8,INTERNAL_SYS_MSGS!$B$18,INTERNAL_SYS_MSGS!$B$19))","v":""},null,null,null,{"$f":"IF($V$7=\"No\",\"\",INTERNAL_SYS_MSGS!$B$26)","v":""},{"$f":"IF(OR(D10=\"\",K10=\"\",K10=\"BTS Result\"),\"\",ABS(D10-K10))","v":""},{"$f":"IF($V$8<3,\"\",IF(N8<=S8,INTERNAL_SYS_MSGS!$B$18,INTERNAL_SYS_MSGS!$B$19))","v":""},null,{"$f":"IF(OR(E10=\"\",K10=\"\",K10=\"BTS Result\"),\"\",ABS(E10-K10))","v":""},{"$f":"IF($V$8<3,\"\",IF(Q8<=$S$8,INTERNAL_SYS_MSGS!$B$18,INTERNAL_SYS_MSGS!$B$19))","v":""},null,null,null,null,"Unacceptable QC/QV Test?",{"$f":"IF(SUM(COUNTIF(N27:O29,\"<\"&1.5),COUNTIF(N27:O29,\">\"&5))>0,TRUE,FALSE)","v":false}]
[null,3,{"$f":"IF('Project Info & Instructions'!$G$31=\"\",\"\",'Project Info & Instructions'!$G$31)","v":""},null,null,{"$f":"IF(OR(D11=\"\",E11=\"\"),\"\",ABS(D11-E11))","v":""},"Split Sample Results: ",null,{"$f":"IF($V$5<6,\"\",IF(OR(H9<=$J$9,H8>$S$8),INTERNAL_SYS_MSGS!$B$20,INTERNAL_SYS_MSGS!$B$21))","v":""},null,{"$f":"IF($V$7=\"No\",\"\",INTERNAL_SYS_MSGS!$B$26)","v":""},"",{"$f":"IF($V$8<3,\"\",IF(OR(N9<=$J$9,N8>$S$8),INTERNAL_SYS_MSGS!$B$20,INTERNAL_SYS_MSGS!$B$21))","v":""},null,{"$f":"IF(OR(E11=\"\",K11=\"\",K11=\"BTS Result\"),\"\",ABS(E11-K11))","v":""},{"$f":"IF($V$8<3,\"\",IF(OR(Q9<=$J$9,Q8>$S$8),INTERNAL_SYS_MSGS!$B$20,INTERNAL_SYS_MSGS!$B$21))","v":""},null,null,null,null,"Unacceptable BTS Test?",{"$f":"IF(SUM(COUNTIF(P27:P29,\"<\"&1.5),COUNTIF(P27:P29,\">\"&5))>0,TRUE,FALSE)","v":false}]
[null,"Gmm Tolerance to JMF",null,null,null,null,null,null,null,null,null,null,null,null,null,null,null,null,null,null,null,null,"Gmm JMF Tollerance Exceeded?"]
[null,"Split Sample Number","Tonnage","QC Gmm-JMF Difference","QV Gmm-JMF Difference",{"$f":"IF($V$5<6,\"\",IF('Project Info & Instructions'!G21=\"\",INTERNAL_SYS_MSGS!$B$25,IF(AND(COUNT(K14:K16)=0,SUM(X14:Y16)>0),INTERNAL_SYS_MSGS!$B$22,IF(AND(COUNT(K14:K16)>0,SUM(Z14:Z16)>0),INTERNAL_SYS_MSGS!$B$22,INTERNAL_SYS_MSGS!$B$23))))","v":""},null,null,null,null,"BTS Gmm-JMF Difference",null,null,null,null,null,null,null,null,null,null,null,"Split Sample Number","QC Gmm-JMF Difference","QV Gmm-JMF Difference","BTS Gmm-JMF Difference"]
[null,1,{"$f":"IF('Project Info & Instructions'!$G$29=\"\",\"\",'Project Info & Instructions'!$G$29)","v":""},{"$f":"IF(OR($C$6=\"Enter JMF Gmm\",D9=\"\"),\"\",ABS($C$6-D9))","v":""},{"$f":"IF(OR($C$6=\"Enter JMF Gmm\",E9=\"\"),\"\",ABS($C$6-E9))","v":""},null,null,null,null,null,{"$f":"IF(OR($C$6=INTERNAL_SYS_MSGS!$B$24,K9=\"\",K9=INTERNAL_SYS_MSGS!$B$26),\"\",ABS($C$6-K9))","v":""},null,null,null,null,null,null,null,null,null,null,null,1,{"$f":"IF(D14>0.024,1,0)","v":1},1,{"$f":"IF(K14>0.024,1,0)","v":1}]
[null,2,{"$f":"IF('Project Info & Instructions'!$G$30=\"\",\"\",'Project Info & Instructions'!$G$30)","v":""},{"$f":"IF(OR($C$6=\"Enter JMF Gmm\",D10=\"\"),\"\",ABS($C$6-D10))","v":""},"",null,null,null,null,null,{"$f":"IF(OR($C$6=INTERNAL_SYS_MSGS!$B$24,K10=\"\",K10=INTERNAL_SYS_MSGS!$B$26),\"\",ABS($C$6-K10))","v":""},null,null,null,null,null,null,null,"Gmb \nXd Mean Tolerance",null,null,null,2,1,1,{"$f":"IF(K15>0.024,1,0)","v":1}]
[null,3,{"$f":"IF('Project Info & Instructions'!$G$31=\"\",\"\",'Project Info & Instructions'!$G$31)","v":""},"","",null,null,null,null,null,{"$f":"IF(OR($C$6=INTERNAL_SYS_MSGS!$B$24,K11=\"\",K11=INTERNAL_SYS_MSGS!$B$26),\"\",ABS($C$6-K11))","v":""},null,null,null,null,null,null,null,null,null,null,null,3,1,1,{"$f":"IF(K16>0.024,1,0)","v":1}]
[null,"Gmb",null,null,null,null,null,null,null,null,null,"BTS Vs. QC Results",null,null,"BTS Vs. QV Results"]
[null,"Split Sample Number","Tonnage","QC Gmb","QV Gmb","Difference (Xd)","Xd Mean",{"$f":"IF($V$6<6,\"\",ROUND(ABS(AVERAGE(F19:F21)),3))","v":""},"Degree of Freedom",{"$f":"COUNT(E19:E21)-1","v":-1},"BTS Referee Gmb","Difference (Xd)","Xd Mean",{"$f":"IF($V$9<3,\"\",ROUND(ABS(AVERAGE(L19:L21)),3))","v":""},"Difference (Xd)","Xd Mean",{"$f":"IF($V$9<3,\"\",ROUND(ABS(AVERAGE(O19:O21)),3))","v":""},null,{"$f":"INTERNAL_SYS_VAR!$C$8","v":1.2E-2}]
[null,1,{"$f":"IF('Project Info & Instructions'!$G$29=\"\",\"\",'Project Info & Instructions'!$G$29)","v":""},null,null,{"$f":"IF(OR(D19=\"\",E19=\"\"),\"\",ABS(D19-E19))","v":""},"t-test p-value",{"$f":"IF($V$6<6,\"\",TTEST($D$19:$D$21,$E$19:$E$21,2,1))","v":""},"Prob. α",0.01,{"$f":"IF($V$7=\"No\",\"\",INTERNAL_SYS_MSGS!$B$26)","v":""},{"$f":"IF(OR(D19=\"\",K19=\"\",K19=\"BTS Result\"),\"\",ABS(D19-K19))","v":""},"t-test p-value",{"$f":"IF($V$9<3,\"\",TTEST($D$19:$D$21,$K$19:$K$21,2,1))","v":""},{"$f":"IF(OR(E19=\"\",K19=\"\",K19=\"BTS Result\"),\"\",ABS(E19-K19))","v":""},"t-test p-value",{"$f":"IF($V$9<3,\"\",TTEST($E$19:$E$21,$K$19:$K$21,2,1))","v":""}]
[null,2,{"$f":"IF('Project Info & Instructions'!$G$30=\"\",\"\",'Project Info & Instructions'!$G$30)","v":""},null,null,{"$f":"IF(OR(D20=\"\",E20=\"\"),\"\",ABS(D20-E20))","v":""},{"$f":"IF($V$6<6,\"\",IF(H18<=S18,INTERNAL_SYS_MSGS!$B$18,INTERNAL_SYS_MSGS!$B$19))","v":""},null,null,null,{"$f":"IF($V$7=\"No\",\"\",INTERNAL_SYS_MSGS!$B$26)","v":""},{"$f":"IF(OR(D20=\"\",K20=\"\",K20=\"BTS Result\"),\"\",ABS(D20-K20))","v":""},{"$f":"IF($V$9<3,\"\",IF(N18<=S18,INTERNAL_SYS_MSGS!$B$18,INTERNAL_SYS_MSGS!$B$19))","v":""},null,{"$f":"IF(OR(E20=\"\",K20=\"\",K20=\"BTS Result\"),\"\",ABS(E20-K20))","v":""},{"$f":"IF($V$9<3,\"\",IF(Q18<=$S$18,INTERNAL_SYS_MSGS!$B$18,INTERNAL_SYS_MSGS!$B$19))","v":""}]
[null,3,{"$f":"IF('Project Info & Instructions'!$G$31=\"\",\"\",'Project Info & Instructions'!$G$31)","v":""},null,null,{"$f":"IF(OR(D21=\"\",E21=\"\"),\"\",ABS(D21-E21))","v":""},"Split Sample Results: ",null,{"$f":"IF($V$6<6,\"\",IF(OR(H19<=$J$19,H18>$S$18),INTERNAL_SYS_MSGS!$B$20,INTERNAL_SYS_MSGS!$B$21))","v":""},null,{"$f":"IF($V$7=\"No\",\"\",INTERNAL_SYS_MSGS!$B$26)","v":""},"",{"$f":"IF($V$9<3,\"\",IF(OR(N19<=$J$19,N18>$S$18),INTERNAL_SYS_MSGS!$B$20,INTERNAL_SYS_MSGS!$B$21))","v":""},null,"",{"$f":"IF($V$9<3,\"\",IF(OR(Q19<=$J$19,Q18>$S$18),INTERNAL_SYS_MSGS!$B$20,INTERNAL_SYS_MSGS!$B$21))","v":""}]
[]
[null,"Note:    ",null,null,null,null,null,null,null,null," Regional PWL Rep. Approving Split Sample Data"]
[null,"This review is a check for reasonable test result differences between labs.  Due to the small sample size, <20, it is ",null,null,null,null,null,null,null,null,"Enter Regional PWL Rep Name"]
[null,"possible to have two sets of data that fail the t-test (p-value), but the \"test results are within testing tolerance\".  ",null,null,null,null,null,null,null,null,null,null,null,"Air Voids %"]
[null,"For such differences, if allowed by the engineer, asphalt mix production may resume as the test result differences are ",null,null,null,null,null,null,null,null,null,null,null,"Contractor","Department","BTS"]
[null,"based on small sample sizes and consistent testing differences. In such case, if all Gmm are within Tolerance to JMF ",null,null,null,null,null,null,null,null,null,null,null,{"$f":"IF(OR(D9=\"\",D19=\"\"),\"\",ROUND((D9-D19)/D9*100,1))","v":""},{"$f":"IF(OR(E9=\"\",E19=\"\"),\"\",ROUND((E9-E19)/E9*100,1))","v":""},{"$f":"IF(OR(K9=\"\",K19=\"\"),\"\",IF(OR(K9=\"BTS Result\",K19=\"BTS Result\"),\"BTS Result\",ROUND((K9-K19)/K9*100,1)))","v":""}]
[null,"and both Xd Mean are within testing tolerance QC Gmm and Gmb data will be used for analysis if the box at the right ",null,null,null,null,null,null,null,null,null,null,null,{"$f":"IF(OR(D10=\"\",D20=\"\"),\"\",ROUND((D10-D20)/D10*100,1))","v":""},{"$f":"IF(OR(E10=\"\",E20=\"\"),\"\",ROUND((E10-E20)/E10*100,1))","v":""},{"$f":"IF(OR(K10=\"\",K20=\"\"),\"\",IF(OR(K10=\"BTS Result\",K20=\"BTS Result\"),\"BTS Result\",ROUND((K10-K20)/K10*100,1)))","v":""}]
[null,"is checked and the name of the Regional PWL Rep is entered in the box below. ",null,null,null,null,null,null,null,null,null,null,null,"","",""]
[]
[null,"It is also possible to have two-sets of test results that are so variable that the results pass the t-test (p-value), but the \"test  "]
[null,"differences exceed testing tolerance\".  The cause of this type testing variation needs to be resolved before production ",null,null,null,null,null,null,null,null,null,null,null,null,null,{"$f":"'Project Info & Instructions'!A6","v":"Revised 5-01-25"}]
[null,"of mix resumes."]

{"sheet":"Core Data","index":2,"n_rows":37,"n_cols":34,"rows_kept":37,"cut":false,"hidden":false,"merged":[[1,28,1,29],[3,15,4,16],[25,11,26,20],[32,1,35,8],[16,16,16,20],[16,11,16,15],[6,5,6,6],[8,22,8,26],[6,1,6,3],[7,1,7,3],[8,11,8,15],[8,1,8,7],[8,16,8,20],[0,10,1,10],[3,5,3,6],[4,5,4,6],[7,5,7,6],[25,0,30,7],[2,5,2,8],[5,5,5,6],[3,1,3,3],[4,1,4,3],[5,1,5,3]]}
["Core Data",null,null,null,null,null,null,"Daily Average Gmm for Density-Only Test Strip Analysis:"]
[null,null,null,null,null,null,null,"PWL Production Gmm OR Non-Random Dept. Gmm collected during  Density-Only Test Strip:",null,null,null,null,null,null,null,null,null,null,null,null,null,null,null,null,null,null,null,null,"Worksheet Variables"]
[null,null,null,null,null,{"$f":"IF(ISNA($AD$14),\"\",IF($AD$14>0.024,INTERNAL_SYS_MSGS!$B$30,IF($AD$14<=0.024,INTERNAL_SYS_MSGS!$B$31)))","v":""},null,null,null,null,null,null,null,null,null,null,null,null,null,null,null,null,null,null,null,null,null,null,"QC or QV Core Data Used For Analysis:",1]
["Date:",{"$f":"IF('Project Info & Instructions'!C10=\"\",\"\",'Project Info & Instructions'!C10)","v":""},null,null,"Test Strip #:",{"$f":"IF('Project Info & Instructions'!C11=\"\",\"\",'Project Info & Instructions'!C11)","v":""},null,null,null,null,null,null,null,null,null,"QC or QV Core Data \nUsed For Analysis?",null,null,null,null,null,null,null,null,null,null,null,null,"Remove Core 1 from Analysis:",false]
["Project ID:",{"$f":"IF('Project Info & Instructions'!C13=\"\",\"\",'Project Info & Instructions'!C13)","v":""},null,null,"Route/Road:",{"$f":"IF('Project Info & Instructions'!C14=\"\",\"\",'Project Info & Instructions'!C14)","v":""},null,null,null,null,null,null,null,null,null,null,null,null,null,null,null,null,null,null,null,null,null,null,"Remove Core 2 from Analysis:",false,null,null,null,"QC=1, QV=2"]
["Mix Type:",{"$f":"IF('Project Info & Instructions'!C21=\"\",\"\",'Project Info & Instructions'!C21)","v":"--"},null,null," Layer:",{"$f":"IF('Project Info & Instructions'!G16=\"\",\"\",'Project Info & Instructions'!G16)","v":""},null,null,null,null,null,null,null,null,null,null,null,null,null,null,null,null,null,null,null,null,null,null,"Remove Core 3 from Analysis:",false]
["Gmm For Analysis :",{"$f":"IF(AND('Project Info & Instructions'!R3=2,'Core Data'!I1=\"\"),\"Enter Gmm Running Avg. Above\",IF('Project Info & Instructions'!R3=2,'Core Data'!I1,IF('Air Voids Pay Factor'!D11=\"\",\"\",'Air Voids Pay Factor'!D11)))","v":""},null,null,"LSL:",{"$f":"'Project Info & Instructions'!G18","v":"Enter Mix and Layer Info"},null,null,null,null,null,null,null,null,null,null,null,null,null,null,null,null,null,null,null,null,null,null,"Remove Core 4 from Analysis:",false]
["Gmm Source:",{"$f":"IF('Split Sample Comparison'!$V$7=\"No\",\"QC\",\"BTS Referee\")","v":"QC"},null,null,"JMF Gmm:",{"$f":"IF('Project Info & Instructions'!G21=\"\",INTERNAL_SYS_MSGS!B28,'Project Info & Instructions'!G21)","v":"Enter JMF Gmm."},null,null,null,null,null,null,null,null,null,null,null,null,null,null,null,null,null,null,null,null,null,null,"Remove Core 5 from Analysis:",false]
[null,"Contractor Core Density Calculations",null,null,null,null,null,null,null,null,null,"Department Core Density Calculations",null,null,null,null,"Department Minus Contractor Density Data ",null,null,null,null,null,"Data Used for Analysis",null,null,null,null,null,"Remove Core 6 from Analysis:",false]
["Label","Random Station","Offset from CL","Dry","SSD","Submerged","QC Core Bulk Density","QC Density % of Gmm","Location Comparison Result","Remove Core Data From Analysis?",null,"Dry","SSD","Submerged","QV Core Bulk Density","QV Density % of Gmm","Dry","SSD","Submerged","Core Bulk Density","Density %",null,"Dry","SSD","Submerged","Core Bulk Density Used for Analysis","Core Density %",null,"Remove Core 7 from Analysis:",false]
[{"$f":"IF($F$6=\"Upper\",\"UL-1\",IF($F$6=\"Middle\",\"ML-1\",IF($F$6=\"Lower\",\"LL-1\",\"\")))","v":""},{"$f":"'QC-1 Density Worksheet'!B14","v":-100},{"$f":"'QC-1 Density Worksheet'!C14","v":""},null,null,null,{"$f":"IFERROR(ROUND(D11/(E11-F11),3),\"\")","v":""},{"$f":"IF(AND('Project Info & Instructions'!$R$3=2,$I$1=\"\"),INTERNAL_SYS_MSGS!$B$29,IF(AND('Project Info & Instructions'!$R$3=2,G11=\"\"),\"\",IF('Project Info & Instructions'!$R$3=2,ROUND(100*(G11/'Core Data'!$I$1),1),IF(OR('Air Voids Pay Factor'!$D$11=\"\",G11=\"\"),\"\",ROUND(100*(G11/'Air Voids Pay Factor'!$D$11),1)))))","v":""},{"$f":"IF('Gauge-Core Variability'!I12=\"Suspect Core\",_xlfn.CONCAT('Gauge-Core Variability'!I12,\" (\",TEXT('Gauge-Core Variability'!G12, \"0.0\"),\"%)\"),\"\")","v":""},null,null,null,null,null,{"$f":"IFERROR(ROUND(L11/(M11-N11),3),\"\")","v":""},{"$f":"IF(AND('Project Info & Instructions'!$R$3=2,$I$1=\"\"),INTERNAL_SYS_MSGS!$B$29,IF(AND('Project Info & Instructions'!$R$3=2,O11=\"\"),\"\",IF('Project Info & Instructions'!$R$3=2,ROUND(100*(O11/'Core Data'!$I$1),1),IF(OR('Air Voids Pay Factor'!$D$11=\"\",O11=\"\"),\"\",ROUND(100*(O11/'Air Voids Pay Factor'!$D$11),1)))))","v":""},{"$f":"IF(L11=\"\",\"\",L11-D11)","v":""},{"$f":"IF(M11=\"\",\"\",M11-E11)","v":""},{"$f":"IF(N11=\"\",\"\",N11-F11)","v":""},{"$f":"IF(O11=\"\",\"\",O11-G11)","v":""},{"$f":"IF(OR(P11=\"\",P11=INTERNAL_SYS_MSGS!$B$29),\"\",ROUND(P11-H11,1))","v":""},null,{"$f":"IF($AD4=TRUE,\"\",IF(AND($AD$3=1,D11=\"\"),\"\",IF(AND($AD$3=2,L11=\"\"),\"\",IF($AD$3=1,D11,IF($AD$3=2,L11,\"\")))))","v":""},"","","","",null,"Remove Core 8 from Analysis:",false]
[{"$f":"IF($F$6=\"Upper\",\"UL-2\",IF($F$6=\"Middle\",\"ML-2\",IF($F$6=\"Lower\",\"LL-2\",\"\")))","v":""},{"$f":"'QC-1 Density Worksheet'!B15","v":-50},{"$f":"'QC-1 Density Worksheet'!C15","v":""},null,null,null,{"$f":"IFERROR(ROUND(D12/(E12-F12),3),\"\")","v":""},{"$f":"IF(AND('Project Info & Instructions'!$R$3=2,$I$1=\"\"),INTERNAL_SYS_MSGS!$B$29,IF(AND('Project Info & Instructions'!$R$3=2,G12=\"\"),\"\",IF('Project Info & Instructions'!$R$3=2,ROUND(100*(G12/'Core Data'!$I$1),1),IF(OR('Air Voids Pay Factor'!$D$11=\"\",G12=\"\"),\"\",ROUND(100*(G12/'Air Voids Pay Factor'!$D$11),1)))))","v":""},{"$f":"IF('Gauge-Core Variability'!I13=\"Suspect Core\",_xlfn.CONCAT('Gauge-Core Variability'!I13,\" (\",TEXT('Gauge-Core Variability'!G13, \"0.0\"),\"%)\"),\"\")","v":""},null,null,null,null,null,{"$f":"IFERROR(ROUND(L12/(M12-N12),3),\"\")","v":""},{"$f":"IF(AND('Project Info & Instructions'!$R$3=2,$I$1=\"\"),INTERNAL_SYS_MSGS!$B$29,IF(AND('Project Info & Instructions'!$R$3=2,O12=\"\"),\"\",IF('Project Info & Instructions'!$R$3=2,ROUND(100*(O12/'Core Data'!$I$1),1),IF(OR('Air Voids Pay Factor'!$D$11=\"\",O12=\"\"),\"\",ROUND(100*(O12/'Air Voids Pay Factor'!$D$11),1)))))","v":""},{"$f":"IF(L12=\"\",\"\",L12-D12)","v":""},{"$f":"IF(M12=\"\",\"\",M12-E12)","v":""},{"$f":"IF(N12=\"\",\"\",N12-F12)","v":""},{"$f":"IF(O12=\"\",\"\",O12-G12)","v":""},{"$f":"IF(OR(P12=\"\",P12=INTERNAL_SYS_MSGS!$B$29),\"\",ROUND(P12-H12,1))","v":""},null,"","","","","",null,"Remove Core 9 from Analysis:",false]
[{"$f":"IF($F$6=\"Upper\",\"UL-3\",IF($F$6=\"Middle\",\"ML-3\",IF($F$6=\"Lower\",\"LL-3\",\"\")))","v":""},{"$f":"'QC-1 Density Worksheet'!B16","v":0},{"$f":"'QC-1 Density Worksheet'!C16","v":""},null,null,null,{"$f":"IFERROR(ROUND(D13/(E13-F13),3),\"\")","v":""},{"$f":"IF(AND('Project Info & Instructions'!$R$3=2,$I$1=\"\"),INTERNAL_SYS_MSGS!$B$29,IF(AND('Project Info & Instructions'!$R$3=2,G13=\"\"),\"\",IF('Project Info & Instructions'!$R$3=2,ROUND(100*(G13/'Core Data'!$I$1),1),IF(OR('Air Voids Pay Factor'!$D$11=\"\",G13=\"\"),\"\",ROUND(100*(G13/'Air Voids Pay Factor'!$D$11),1)))))","v":""},{"$f":"IF('Gauge-Core Variability'!I14=\"Suspect Core\",_xlfn.CONCAT('Gauge-Core Variability'!I14,\" (\",TEXT('Gauge-Core Variability'!G14, \"0.0\"),\"%)\"),\"\")","v":""},null,null,null,null,null,{"$f":"IFERROR(ROUND(L13/(M13-N13),3),\"\")","v":""},{"$f":"IF(AND('Project Info & Instructions'!$R$3=2,$I$1=\"\"),INTERNAL_SYS_MSGS!$B$29,IF(AND('Project Info & Instructions'!$R$3=2,O13=\"\"),\"\",IF('Project Info & Instructions'!$R$3=2,ROUND(100*(O13/'Core Data'!$I$1),1),IF(OR('Air Voids Pay Factor'!$D$11=\"\",O13=\"\"),\"\",ROUND(100*(O13/'Air Voids Pay Factor'!$D$11),1)))))","v":""},"","","","",{"$f":"IF(OR(P13=\"\",P13=INTERNAL_SYS_MSGS!$B$29),\"\",ROUND(P13-H13,1))","v":""},null,"","","","","",null,"Remove Core 10 from Analysis:",false]
[{"$f":"IF($F$6=\"Upper\",\"UL-4\",IF($F$6=\"Middle\",\"ML-4\",IF($F$6=\"Lower\",\"LL-4\",\"\")))","v":""},{"$f":"'QC-1 Density Worksheet'!B17","v":50},{"$f":"'QC-1 Density Worksheet'!C17","v":""},null,null,null,{"$f":"IFERROR(ROUND(D14/(E14-F14),3),\"\")","v":""},{"$f":"IF(AND('Project Info & Instructions'!$R$3=2,$I$1=\"\"),INTERNAL_SYS_MSGS!$B$29,IF(AND('Project Info & Instructions'!$R$3=2,G14=\"\"),\"\",IF('Project Info & Instructions'!$R$3=2,ROUND(100*(G14/'Core Data'!$I$1),1),IF(OR('Air Voids Pay Factor'!$D$11=\"\",G14=\"\"),\"\",ROUND(100*(G14/'Air Voids Pay Factor'!$D$11),1)))))","v":""},{"$f":"IF('Gauge-Core Variability'!I15=\"Suspect Core\",_xlfn.CONCAT('Gauge-Core Variability'!I15,\" (\",TEXT('Gauge-Core Variability'!G15, \"0.0\"),\"%)\"),\"\")","v":""},null,null,null,null,null,{"$f":"IFERROR(ROUND(L14/(M14-N14),3),\"\")","v":""},{"$f":"IF(AND('Project Info & Instructions'!$R$3=2,$I$1=\"\"),INTERNAL_SYS_MSGS!$B$29,IF(AND('Project Info & Instructions'!$R$3=2,O14=\"\"),\"\",IF('Project Info & Instructions'!$R$3=2,ROUND(100*(O14/'Core Data'!$I$1),1),IF(OR('Air Voids Pay Factor'!$D$11=\"\",O14=\"\"),\"\",ROUND(100*(O14/'Air Voids Pay Factor'!$D$11),1)))))","v":""},"","","","",{"$f":"IF(OR(P14=\"\",P14=INTERNAL_SYS_MSGS!$B$29),\"\",ROUND(P14-H14,1))","v":""},null,"","","","","",null,"PWL Production Gmm OR Non-Random Dept. Gmm collected during  Density-Only Test Strip Difference from JMF:",{"$f":"IF(OR($F$8=\"Enter JMF Gmm\",$I$2=\"\"),NA(),ROUND(ABS($F$8-$I$2),3))","v":{"$error":"#N/A"}}]
[{"$f":"IF($F$6=\"Upper\",\"UL-5\",IF($F$6=\"Middle\",\"ML-5\",IF($F$6=\"Lower\",\"LL-5\",\"\")))","v":""},{"$f":"'QC-1 Density Worksheet'!B18","v":100},{"$f":"'QC-1 Density Worksheet'!C18","v":""},null,null,null,{"$f":"IFERROR(ROUND(D15/(E15-F15),3),\"\")","v":""},{"$f":"IF(AND('Project Info & Instructions'!$R$3=2,$I$1=\"\"),INTERNAL_SYS_MSGS!$B$29,IF(AND('Project Info & Instructions'!$R$3=2,G15=\"\"),\"\",IF('Project Info & Instructions'!$R$3=2,ROUND(100*(G15/'Core Data'!$I$1),1),IF(OR('Air Voids Pay Factor'!$D$11=\"\",G15=\"\"),\"\",ROUND(100*(G15/'Air Voids Pay Factor'!$D$11),1)))))","v":""},{"$f":"IF('Gauge-Core Variability'!I16=\"Suspect Core\",_xlfn.CONCAT('Gauge-Core Variability'!I16,\" (\",TEXT('Gauge-Core Variability'!G16, \"0.0\"),\"%)\"),\"\")","v":""},null,null,null,null,null,{"$f":"IFERROR(ROUND(L15/(M15-N15),3),\"\")","v":""},{"$f":"IF(AND('Project Info & Instructions'!$R$3=2,$I$1=\"\"),INTERNAL_SYS_MSGS!$B$29,IF(AND('Project Info & Instructions'!$R$3=2,O15=\"\"),\"\",IF('Project Info & Instructions'!$R$3=2,ROUND(100*(O15/'Core Data'!$I$1),1),IF(OR('Air Voids Pay Factor'!$D$11=\"\",O15=\"\"),\"\",ROUND(100*(O15/'Air Voids Pay Factor'!$D$11),1)))))","v":""},"","","","",{"$f":"IF(OR(P15=\"\",P15=INTERNAL_SYS_MSGS!$B$29),\"\",ROUND(P15-H15,1))","v":""},null,"","","","",""]
[]
[]
[null,"Random Station","Offset from CL","Dry","SSD","Submerged","QC Core Bulk Density","QC Density % of Gmm","Location Comparison Result","Remove Core Data From Analysis?",null,"Dry","SSD","Submerged","QV Core Bulk Density","QV Density % of Gmm","Dry","SSD","Submerged","Core Bulk Density","Density %",null,"Dry","SSD","Submerged","Core Bulk Density Used for Analysis","Core Density %"]
[{"$f":"IF($F$6=\"Upper\",\"UL-6\",IF($F$6=\"Middle\",\"ML-6\",IF($F$6=\"Lower\",\"LL-6\",\"\")))","v":""},{"$f":"'QC-1 Density Worksheet'!B20","v":-100},{"$f":"'QC-1 Density Worksheet'!C20","v":""},null,null,null,{"$f":"IFERROR(ROUND(D19/(E19-F19),3),\"\")","v":""},{"$f":"IF(AND('Project Info & Instructions'!$R$3=2,$I$1=\"\"),INTERNAL_SYS_MSGS!$B$29,IF(AND('Project Info & Instructions'!$R$3=2,G19=\"\"),\"\",IF('Project Info & Instructions'!$R$3=2,ROUND(100*(G19/'Core Data'!$I$1),1),IF(OR('Air Voids Pay Factor'!$D$11=\"\",G19=\"\"),\"\",ROUND(100*(G19/'Air Voids Pay Factor'!$D$11),1)))))","v":""},{"$f":"IF('Gauge-Core Variability'!I17=\"Suspect Core\",_xlfn.CONCAT('Gauge-Core Variability'!I17,\" (\",TEXT('Gauge-Core Variability'!G17, \"0.0\"),\"%)\"),\"\")","v":""},null,null,null,null,null,{"$f":"IFERROR(ROUND(L19/(M19-N19),3),\"\")","v":""},{"$f":"IF(AND('Project Info & Instructions'!$R$3=2,$I$1=\"\"),INTERNAL_SYS_MSGS!$B$29,IF(AND('Project Info & Instructions'!$R$3=2,O19=\"\"),\"\",IF('Project Info & Instructions'!$R$3=2,ROUND(100*(O19/'Core Data'!$I$1),1),IF(OR('Air Voids Pay Factor'!$D$11=\"\",O19=\"\"),\"\",ROUND(100*(O19/'Air Voids Pay Factor'!$D$11),1)))))","v":""},{"$f":"IF(L19=\"\",\"\",L19-D19)","v":""},{"$f":"IF(M19=\"\",\"\",M19-E19)","v":""},{"$f":"IF(N19=\"\",\"\",N19-F19)","v":""},{"$f":"IF(O19=\"\",\"\",O19-G19)","v":""},{"$f":"IF(OR(P19=\"\",P19=INTERNAL_SYS_MSGS!$B$29),\"\",ROUND(P19-H19,1))","v":""},null,{"$f":"IF($AD9=TRUE,\"\",IF(AND($AD$3=1,D19=\"\"),\"\",IF(AND($AD$3=2,L19=\"\"),\"\",IF($AD$3=1,D19,IF($AD$3=2,L19,\"\")))))","v":""},"","","",""]
[{"$f":"IF($F$6=\"Upper\",\"UL-7\",IF($F$6=\"Middle\",\"ML-7\",IF($F$6=\"Lower\",\"LL-7\",\"\")))","v":""},{"$f":"'QC-1 Density Worksheet'!B21","v":-50},{"$f":"'QC-1 Density Worksheet'!C21","v":""},null,null,null,{"$f":"IFERROR(ROUND(D20/(E20-F20),3),\"\")","v":""},{"$f":"IF(AND('Project Info & Instructions'!$R$3=2,$I$1=\"\"),INTERNAL_SYS_MSGS!$B$29,IF(AND('Project Info & Instructions'!$R$3=2,G20=\"\"),\"\",IF('Project Info & Instructions'!$R$3=2,ROUND(100*(G20/'Core Data'!$I$1),1),IF(OR('Air Voids Pay Factor'!$D$11=\"\",G20=\"\"),\"\",ROUND(100*(G20/'Air Voids Pay Factor'!$D$11),1)))))","v":""},{"$f":"IF('Gauge-Core Variability'!I18=\"Suspect Core\",_xlfn.CONCAT('Gauge-Core Variability'!I18,\" (\",TEXT('Gauge-Core Variability'!G18, \"0.0\"),\"%)\"),\"\")","v":""},null,null,null,null,null,{"$f":"IFERROR(ROUND(L20/(M20-N20),3),\"\")","v":""},{"$f":"IF(AND('Project Info & Instructions'!$R$3=2,$I$1=\"\"),INTERNAL_SYS_MSGS!$B$29,IF(AND('Project Info & Instructions'!$R$3=2,O20=\"\"),\"\",IF('Project Info & Instructions'!$R$3=2,ROUND(100*(O20/'Core Data'!$I$1),1),IF(OR('Air Voids Pay Factor'!$D$11=\"\",O20=\"\"),\"\",ROUND(100*(O20/'Air Voids Pay Factor'!$D$11),1)))))","v":""},{"$f":"IF(L20=\"\",\"\",L20-D20)","v":""},"","","",{"$f":"IF(OR(P20=\"\",P20=INTERNAL_SYS_MSGS!$B$29),\"\",ROUND(P20-H20,1))","v":""},null,"","","","",""]
[{"$f":"IF($F$6=\"Upper\",\"UL-8\",IF($F$6=\"Middle\",\"ML-8\",IF($F$6=\"Lower\",\"LL-8\",\"\")))","v":""},{"$f":"'QC-1 Density Worksheet'!B22","v":0},{"$f":"'QC-1 Density Worksheet'!C22","v":""},null,null,null,{"$f":"IFERROR(ROUND(D21/(E21-F21),3),\"\")","v":""},{"$f":"IF(AND('Project Info & Instructions'!$R$3=2,$I$1=\"\"),INTERNAL_SYS_MSGS!$B$29,IF(AND('Project Info & Instructions'!$R$3=2,G21=\"\"),\"\",IF('Project Info & Instructions'!$R$3=2,ROUND(100*(G21/'Core Data'!$I$1),1),IF(OR('Air Voids Pay Factor'!$D$11=\"\",G21=\"\"),\"\",ROUND(100*(G21/'Air Voids Pay Factor'!$D$11),1)))))","v":""},{"$f":"IF('Gauge-Core Variability'!I19=\"Suspect Core\",_xlfn.CONCAT('Gauge-Core Variability'!I19,\" (\",TEXT('Gauge-Core Variability'!G19, \"0.0\"),\"%)\"),\"\")","v":""},null,null,null,null,null,{"$f":"IFERROR(ROUND(L21/(M21-N21),3),\"\")","v":""},{"$f":"IF(AND('Project Info & Instructions'!$R$3=2,$I$1=\"\"),INTERNAL_SYS_MSGS!$B$29,IF(AND('Project Info & Instructions'!$R$3=2,O21=\"\"),\"\",IF('Project Info & Instructions'!$R$3=2,ROUND(100*(O21/'Core Data'!$I$1),1),IF(OR('Air Voids Pay Factor'!$D$11=\"\",O21=\"\"),\"\",ROUND(100*(O21/'Air Voids Pay Factor'!$D$11),1)))))","v":""},{"$f":"IF(L21=\"\",\"\",L21-D21)","v":""},"","","",{"$f":"IF(OR(P21=\"\",P21=INTERNAL_SYS_MSGS!$B$29),\"\",ROUND(P21-H21,1))","v":""},null,"","","","",""]
[{"$f":"IF($F$6=\"Upper\",\"UL-9\",IF($F$6=\"Middle\",\"ML-9\",IF($F$6=\"Lower\",\"LL-9\",\"\")))","v":""},{"$f":"'QC-1 Density Worksheet'!B23","v":50},{"$f":"'QC-1 Density Worksheet'!C23","v":""},null,null,null,{"$f":"IFERROR(ROUND(D22/(E22-F22),3),\"\")","v":""},{"$f":"IF(AND('Project Info & Instructions'!$R$3=2,$I$1=\"\"),INTERNAL_SYS_MSGS!$B$29,IF(AND('Project Info & Instructions'!$R$3=2,G22=\"\"),\"\",IF('Project Info & Instructions'!$R$3=2,ROUND(100*(G22/'Core Data'!$I$1),1),IF(OR('Air Voids Pay Factor'!$D$11=\"\",G22=\"\"),\"\",ROUND(100*(G22/'Air Voids Pay Factor'!$D$11),1)))))","v":""},{"$f":"IF('Gauge-Core Variability'!I20=\"Suspect Core\",_xlfn.CONCAT('Gauge-Core Variability'!I20,\" (\",TEXT('Gauge-Core Variability'!G20, \"0.0\"),\"%)\"),\"\")","v":""},null,null,null,null,null,{"$f":"IFERROR(ROUND(L22/(M22-N22),3),\"\")","v":""},{"$f":"IF(AND('Project Info & Instructions'!$R$3=2,$I$1=\"\"),INTERNAL_SYS_MSGS!$B$29,IF(AND('Project Info & Instructions'!$R$3=2,O22=\"\"),\"\",IF('Project Info & Instructions'!$R$3=2,ROUND(100*(O22/'Core Data'!$I$1),1),IF(OR('Air Voids Pay Factor'!$D$11=\"\",O22=\"\"),\"\",ROUND(100*(O22/'Air Voids Pay Factor'!$D$11),1)))))","v":""},{"$f":"IF(L22=\"\",\"\",L22-D22)","v":""},"","","",{"$f":"IF(OR(P22=\"\",P22=INTERNAL_SYS_MSGS!$B$29),\"\",ROUND(P22-H22,1))","v":""},null,"","","","",""]
[{"$f":"IF($F$6=\"Upper\",\"UL-10\",IF($F$6=\"Middle\",\"ML-10\",IF($F$6=\"Lower\",\"LL-10\",\"\")))","v":""},{"$f":"'QC-1 Density Worksheet'!B24","v":100},{"$f":"'QC-1 Density Worksheet'!C24","v":""},null,null,null,{"$f":"IFERROR(ROUND(D23/(E23-F23),3),\"\")","v":""},{"$f":"IF(AND('Project Info & Instructions'!$R$3=2,$I$1=\"\"),INTERNAL_SYS_MSGS!$B$29,IF(AND('Project Info & Instructions'!$R$3=2,G23=\"\"),\"\",IF('Project Info & Instructions'!$R$3=2,ROUND(100*(G23/'Core Data'!$I$1),1),IF(OR('Air Voids Pay Factor'!$D$11=\"\",G23=\"\"),\"\",ROUND(100*(G23/'Air Voids Pay Factor'!$D$11),1)))))","v":""},{"$f":"IF('Gauge-Core Variability'!I21=\"Suspect Core\",_xlfn.CONCAT('Gauge-Core Variability'!I21,\" (\",TEXT('Gauge-Core Variability'!G21, \"0.0\"),\"%)\"),\"\")","v":""},null,null,null,null,null,{"$f":"IFERROR(ROUND(L23/(M23-N23),3),\"\")","v":""},{"$f":"IF(AND('Project Info & Instructions'!$R$3=2,$I$1=\"\"),INTERNAL_SYS_MSGS!$B$29,IF(AND('Project Info & Instructions'!$R$3=2,O23=\"\"),\"\",IF('Project Info & Instructions'!$R$3=2,ROUND(100*(O23/'Core Data'!$I$1),1),IF(OR('Air Voids Pay Factor'!$D$11=\"\",O23=\"\"),\"\",ROUND(100*(O23/'Air Voids Pay Factor'!$D$11),1)))))","v":""},{"$f":"IF(L23=\"\",\"\",L23-D23)","v":""},"","","",{"$f":"IF(OR(P23=\"\",P23=INTERNAL_SYS_MSGS!$B$29),\"\",ROUND(P23-H23,1))","v":""},null,"","","","",""]
[null,null,null,null,null,"Average:",{"$f":"IF(SUM(G19:G23,G11:G15)<0.0001,\"\",ROUND(AVERAGE(G19:G23,G11:G15),3))","v":""},{"$f":"IF(SUM(H19:H23,H11:H15)<0.0001,\"\",ROUND(AVERAGE(H19:H23,H11:H15),1))","v":""},null,null,null,null,null,"Average:",{"$f":"IF(SUM(O19:O23,O11:O15)<0.0001,\"\",ROUND(AVERAGE(O19:O23,O11:O15),3))","v":""},{"$f":"IF(SUM(P11:P15,P19:P23)<1,\"\",ROUND(AVERAGE(P19:P23,P11:P15),1))","v":""},null,null,null,"Difference in Average % Density:",{"$f":"IF(SUM(U11:U15,U19:U23)=0,\"\",ROUND(AVERAGE(U19:U23,U11:U15),1))","v":""}]
["Note:    "]
["The Location Comparison Result references values on the Gauge-Core Variability worksheet comparing the core density data with each adjusted nuclear density gauge reading at each test location. \"Suspect Core\" is displayed under Location Comparison Result if the Location Comparison average is ≥ 1.0 or ≤ -1.0 this indicates a core that may be damaged. Contact the Regional PWL Representative when a \"Suspect Core\" is identified here or when core density values are considered questionable. ONLY THE REGIONAL PWL REPRESENTATIVE CAN REMOVE A CORE FROM ANALYSIS.",null,null,null,null,null,null,null,null,null,null,"If the difference between the QC and QV average densities is greater than 0.5%, consider using QV core densities in place of QC core densities."]
[]
[]
[]
[]
[]
[]
["Other/Notes:"]
[]
[]
[]
[null,null,null,null,null,null,null,null,{"$f":"'Project Info & Instructions'!A6","v":"Revised 5-01-25"}]

{"sheet":"AC % Data","index":3,"n_rows":24,"n_cols":30,"rows_kept":24,"cut":false,"hidden":false,"merged":[[1,20,1,29],[3,25,5,25],[3,26,5,26],[5,6,5,7],[16,1,18,6],[11,1,11,6],[2,2,2,3],[2,6,2,7],[3,2,3,3],[3,6,3,7],[4,2,4,3],[4,6,4,7]]}
[null,"Asphalt Content (AC) % Testing Data"]
[null,null,null,null,null,null,null,null,null,null,null,null,null,null,null,null,null,null,null,null,"Worksheet Variables"]
[null,"Date:",{"$f":"IF('Project Info & Instructions'!C10=\"\",\"\",'Project Info & Instructions'!C10)","v":""},null,null,"Test Strip #:",{"$f":"IF('Project Info & Instructions'!C11=\"\",\"\",'Project Info & Instructions'!C11)","v":""},null,null,"Test strip type",null,null,null,null,null,null,null,null,null,null,"Sample","Acceptance Limits","QC % Below JMF","QV % Below JMF","Unacceptable QC/QV Material AC%","Split Sample Comparison Requires BTS","BTS Number of Tests Entered","BTS % Below JMF","Unacceptable BTS Material AC%","BTS for Graph"]
[null,"Project ID:",{"$f":"IF('Project Info & Instructions'!C13=\"\",\"\",'Project Info & Instructions'!C13)","v":""},null,null,"Route/Road:",{"$f":"IF('Project Info & Instructions'!C14=\"\",\"\",'Project Info & Instructions'!C14)","v":""},null,null,null,null,null,null,null,null,null,null,null,null,null,1,{"$f":"IF('Project Info & Instructions'!$G$22=\"\",\"\",$G$6-0.5)","v":""},{"$f":"IF(OR(D9=\"\",'Project Info & Instructions'!$G$24=\"\",'Project Info & Instructions'!$G$23=\"\"),\"\",D9-$G$6)","v":""},{"$f":"IF(OR(E9=\"\",'Project Info & Instructions'!$G$24=\"\",'Project Info & Instructions'!$G$23=\"\"),\"\",E9-$G$6)","v":""},{"$f":"IF(OR(W4<-0.5,X4<-0.5),\"Yes\",\"No\")","v":"No"},{"$f":"IF('Split Sample Comparison'!$V$7=\"Yes\",\"Yes\",\"No\")","v":"No"},{"$f":"COUNT(G9:G11)","v":0},{"$f":"(IF(ISNUMBER(G9),G9-$G$6,\"\"))","v":""},{"$f":"IF(AB4<-0.5,\"Yes\",\"No\")","v":"No"},{"$f":"IF(OR(G9=\"\",G9=\"Enter BTS AC%\"),#N/A,G9)","v":{"$error":"#N/A"}}]
[null,"Mix Type:",{"$f":"IF('Project Info & Instructions'!C21=\"\",\"\",'Project Info & Instructions'!C21)","v":"--"},null,null," Layer:",{"$f":"IF('Project Info & Instructions'!G16=\"\",\"\",'Project Info & Instructions'!G16)","v":""},null,null,null,null,null,null,null,null,null,null,null,null,null,2,{"$f":"IF('Project Info & Instructions'!$G$22=\"\",\"\",$G$6-0.5)","v":""},{"$f":"IF(OR(D10=\"\",'Project Info & Instructions'!$G$24=\"\",'Project Info & Instructions'!$G$23=\"\"),\"\",D10-$G$6)","v":""},{"$f":"IF(OR(E10=\"\",'Project Info & Instructions'!$G$24=\"\",'Project Info & Instructions'!$G$23=\"\"),\"\",E10-$G$6)","v":""},{"$f":"IF(OR(W5<-0.5,X5<-0.5),\"Yes\",\"No\")","v":"No"},null,null,{"$f":"(IF(ISNUMBER(G10),G10-$G$6,\"\"))","v":""},{"$f":"IF(AB5<-0.5,\"Yes\",\"No\")","v":"No"},{"$f":"IF(OR(G10=\"\",G10=\"Enter BTS AC%\"),#N/A,G10)","v":{"$error":"#N/A"}}]
[null,null,null,null,null,"JMF AC%:",{"$f":"IF('Project Info & Instructions'!G22=\"\",INTERNAL_SYS_MSGS!$B$34,'Project Info & Instructions'!G22)","v":"Enter JMF Binder AC%."},null,null,null,null,null,null,null,null,null,null,null,null,null,3,{"$f":"IF('Project Info & Instructions'!$G$22=\"\",\"\",$G$6-0.5)","v":""},{"$f":"IF(OR(D11=\"\",'Project Info & Instructions'!$G$24=\"\",'Project Info & Instructions'!$G$23=\"\"),\"\",D11-$G$6)","v":""},{"$f":"IF(OR(E11=\"\",'Project Info & Instructions'!$G$24=\"\",'Project Info & Instructions'!$G$23=\"\"),\"\",E11-$G$6)","v":""},"No",null,null,{"$f":"(IF(ISNUMBER(G11),G11-$G$6,\"\"))","v":""},"No",{"$f":"IF(OR(G11=\"\",G11=\"Enter BTS AC%\"),#N/A,G11)","v":{"$error":"#N/A"}}]
[null,"AC Binder %",null,null,null,null,null,null,null,null,null,null,null,null,null,null,null,null,null,null,null,null,null,"Sum:",{"$f":"COUNTIF(Y4:Y6,\"Yes\")","v":0},null,null,null,{"$f":"COUNTIF(AC4:AC6,\"Yes\")","v":0}]
[null,"Split Sample Number","Tonnage","QC AC%","QV AC%","Difference QC & QV","BTS Referee AC%"]
[null,1,{"$f":"IF('Project Info & Instructions'!$G$29=\"\",\"\",'Project Info & Instructions'!$G$29)","v":""},null,null,{"$f":"IF(OR(D9=\"\",E9=\"\"),\"\",ABS(D9-E9))","v":""},{"$f":"IF(OR($Y4=\"Yes\",$Z4=\"Yes\"),INTERNAL_SYS_MSGS!$B$35,\"\")","v":""},null,null,null,null,null,null,null,null,null,null,null,null,null,null,null,null,null,"Asphalt Contents Differences Large?","Pass/Fail"]
[null,2,{"$f":"IF('Project Info & Instructions'!$G$30=\"\",\"\",'Project Info & Instructions'!$G$30)","v":""},null,null,{"$f":"IF(OR(D10=\"\",E10=\"\"),\"\",ABS(D10-E10))","v":""},{"$f":"IF(OR($Y5=\"Yes\",$Z4=\"Yes\"),INTERNAL_SYS_MSGS!$B$35,\"\")","v":""},null,null,null,null,null,null,null,null,null,null,null,null,null,null,null,null,null,{"$f":"IF(OR(F9=\"\",F10=\"\",F11=\"\"),\"\",IF(OR(F9>=0.3,F10>=0.3,F11>=0.3),TRUE,FALSE))","v":""},{"$f":"IF(AND(Y7>0,AA4=0),\"Fail\",IF(AND(Y7>0,AC7>0),\"Fail\",IF(AND(Y7=0,AC7>0),\"Fail\",IF(AND(Y7=0,AC7=0),\"Pass\",IF(AND(Y7>0,AC7=0),\"Pass\",\"Fail\")))))","v":"Pass"}]
[null,3,{"$f":"IF('Project Info & Instructions'!$G$31=\"\",\"\",'Project Info & Instructions'!$G$31)","v":""},null,null,{"$f":"IF(OR(D11=\"\",E11=\"\"),\"\",ABS(D11-E11))","v":""},{"$f":"IF(OR($Y6=\"Yes\",$Z4=\"Yes\"),INTERNAL_SYS_MSGS!$B$35,\"\")","v":""}]
[null,"AC% below calculated from the JMF Gse, JMF AC Sp Gr., and each Split Sample's GMM for reference only."]
[null,"Split Sample Number","Tonnage","QC Calc AC%","QV Calc AC%","Difference QC & QV","BTS Calc AC%"]
[null,1,{"$f":"IF('Project Info & Instructions'!$G$29=\"\",\"\",'Project Info & Instructions'!$G$29)","v":""},{"$f":"IF(OR('Project Info & Instructions'!$R$3=2,'Project Info & Instructions'!$G$24=\"\",'Project Info & Instructions'!$G$23=\"\"),\"\",IF('Split Sample Comparison'!D9=\"\",\"\",100*('Project Info & Instructions'!$G$23/'Split Sample Comparison'!D9)*(('Project Info & Instructions'!$G$24-'Split Sample Comparison'!D9)/('Project Info & Instructions'!$G$24-'Project Info & Instructions'!$G$23))))","v":""},{"$f":"IF(OR('Project Info & Instructions'!$R$3=2,'Project Info & Instructions'!$G$24=\"\",'Project Info & Instructions'!$G$23=\"\"),\"\",IF('Split Sample Comparison'!E9=\"\",\"\",100*('Project Info & Instructions'!$G$23/'Split Sample Comparison'!E9)*(('Project Info & Instructions'!$G$24-'Split Sample Comparison'!E9)/('Project Info & Instructions'!$G$24-'Project Info & Instructions'!$G$23))))","v":""},{"$f":"IF(OR(D14=\"\",E14=\"\"),\"\",ABS(D14-E14))","v":""},{"$f":"IF(OR('Project Info & Instructions'!$G$24=\"\",'Project Info & Instructions'!$G$23=\"\"),\"\",IF('Split Sample Comparison'!K9=\"\",\"\",IF('Split Sample Comparison'!K9=\"BTS Result\",\"BTS Result\",100*('Project Info & Instructions'!$G$23/'Split Sample Comparison'!K9)*(('Project Info & Instructions'!$G$24-'Split Sample Comparison'!K9)/('Project Info & Instructions'!$G$24-'Project Info & Instructions'!$G$23)))))","v":""}]
[null,2,{"$f":"IF('Project Info & Instructions'!$G$30=\"\",\"\",'Project Info & Instructions'!$G$30)","v":""},{"$f":"IF(OR('Project Info & Instructions'!$R$3=2,'Project Info & Instructions'!$G$24=\"\",'Project Info & Instructions'!$G$23=\"\"),\"\",IF('Split Sample Comparison'!D10=\"\",\"\",100*('Project Info & Instructions'!$G$23/'Split Sample Comparison'!D10)*(('Project Info & Instructions'!$G$24-'Split Sample Comparison'!D10)/('Project Info & Instructions'!$G$24-'Project Info & Instructions'!$G$23))))","v":""},{"$f":"IF(OR('Project Info & Instructions'!$R$3=2,'Project Info & Instructions'!$G$24=\"\",'Project Info & Instructions'!$G$23=\"\"),\"\",IF('Split Sample Comparison'!E10=\"\",\"\",100*('Project Info & Instructions'!$G$23/'Split Sample Comparison'!E10)*(('Project Info & Instructions'!$G$24-'Split Sample Comparison'!E10)/('Project Info & Instructions'!$G$24-'Project Info & Instructions'!$G$23))))","v":""},{"$f":"IF(OR(D15=\"\",E15=\"\"),\"\",ABS(D15-E15))","v":""},{"$f":"IF(OR('Project Info & Instructions'!$G$24=\"\",'Project Info & Instructions'!$G$23=\"\"),\"\",IF('Split Sample Comparison'!K10=\"\",\"\",IF('Split Sample Comparison'!K10=\"BTS Result\",\"BTS Result\",100*('Project Info & Instructions'!$G$23/'Split Sample Comparison'!K10)*(('Project Info & Instructions'!$G$24-'Split Sample Comparison'!K10)/('Project Info & Instructions'!$G$24-'Project Info & Instructions'!$G$23)))))","v":""}]
[null,3,{"$f":"IF('Project Info & Instructions'!$G$31=\"\",\"\",'Project Info & Instructions'!$G$31)","v":""},{"$f":"IF(OR('Project Info & Instructions'!$R$3=2,'Project Info & Instructions'!$G$24=\"\",'Project Info & Instructions'!$G$23=\"\"),\"\",IF('Split Sample Comparison'!D11=\"\",\"\",100*('Project Info & Instructions'!$G$23/'Split Sample Comparison'!D11)*(('Project Info & Instructions'!$G$24-'Split Sample Comparison'!D11)/('Project Info & Instructions'!$G$24-'Project Info & Instructions'!$G$23))))","v":""},{"$f":"IF(OR('Project Info & Instructions'!$R$3=2,'Project Info & Instructions'!$G$24=\"\",'Project Info & Instructions'!$G$23=\"\"),\"\",IF('Split Sample Comparison'!E11=\"\",\"\",100*('Project Info & Instructions'!$G$23/'Split Sample Comparison'!E11)*(('Project Info & Instructions'!$G$24-'Split Sample Comparison'!E11)/('Project Info & Instructions'!$G$24-'Project Info & Instructions'!$G$23))))","v":""},{"$f":"IF(OR(D16=\"\",E16=\"\"),\"\",ABS(D16-E16))","v":""},{"$f":"IF(OR('Project Info & Instructions'!$G$24=\"\",'Project Info & Instructions'!$G$23=\"\"),\"\",IF('Split Sample Comparison'!K11=\"\",\"\",IF('Split Sample Comparison'!K11=\"BTS Result\",\"BTS Result\",100*('Project Info & Instructions'!$G$23/'Split Sample Comparison'!K11)*(('Project Info & Instructions'!$G$24-'Split Sample Comparison'!K11)/('Project Info & Instructions'!$G$24-'Project Info & Instructions'!$G$23)))))","v":""}]
[null,{"$f":"IF('Project Info & Instructions'!$R$3=2,\"\",IF(OR('Project Info & Instructions'!G24=\"\",'Project Info & Instructions'!G23=\"\"),INTERNAL_SYS_MSGS!$B$33,IF($Y$10=TRUE,INTERNAL_SYS_MSGS!$B$36,\"\")))","v":"Enter the JMF Gse and AC Sp. Gr. on Project Info & Instructions Tab."}]
[]
[]
[null,"Note:    "]
[null,"Enter JMF AC %, JMF Gse, and JMF AC Specific Gravity on the Project Info & Instructions tab. "]
[null,"No pay adjustment will be assessed based on AC % test results. However, results of AC % "]
[null,"testing will be referenced when determining test strip approval."]
[null,null,null,null,null,null,{"$f":"'Project Info & Instructions'!A6","v":"Revised 5-01-25"}]

{"sheet":"Mix Acceptance","index":4,"n_rows":23,"n_cols":14,"rows_kept":23,"cut":false,"hidden":false,"merged":[[22,4,22,6],[13,14,15,15],[1,9,1,12],[6,1,7,1],[6,2,7,2],[1,0,3,2],[19,1,21,2],[0,3,3,7],[4,4,4,6]]}
["Mix Acceptance Results",null,null,"Confirm that the mixture conforms to acceptance limits by checking the boxes below. "]
["Test strip HMA mixture shall conform to the following limits based on individual QC and QV test results (tolerances based on most recent JMF):",null,null,null,null,null,null,null,null,"Worksheet Variables"]
[null,null,null,null,null,null,null,null,null,"Parameter","Split Sample 1 Checkboxes","Split Sample 2 Checkboxes","Split Sample 3 Checkboxes"]
[null,null,null,null,null,null,null,null,null,"37.5-mm",false,false,false]
[null,null,null,null,"Split Sample ",null,null,null,null,"25.0-mm",false,false,false]
[null,null,null,null,1,2,3,null,null,"19.0-mm",false,false,false]
[null,"Item\n% passing given Sieve:","Acceptance Limits",null,null,null,null,null,null,"12.5-mm",false,false,false]
[null,null,null,null,null,null,null,null,null,"9.5-mm",false,false,false]
[null,"37.5-mm","+/- 8.0",null,null,null,null,null,null,"2.36-mm",false,false,false]
[null,"25.0-mm","+/- 8.0",null,null,null,null,null,null,"75-µm",false,false,false]
[null,"19.0-mm","+/- 7.5",null,null,null,null,null,null,"VMA in percent",false,false,false]
[null,"12.5-mm","+/- 7.5",null,null,null,null,null,null,"Sums",{"$f":"COUNTIF(K4:K11,TRUE)","v":0},{"$f":"COUNTIF(L4:L11,TRUE)","v":0},{"$f":"COUNTIF(M4:M11,TRUE)","v":0},{"$f":"SUM(K12:M12)","v":0}]
[null,"9.5-mm","+/- 7.5"]
[null,"2.36-mm","+/- 7.0"]
[null,"75-µm","+/- 3.0"]
[null,"VMA in Percent[1]",-1]
[]
[null,null,"Test Result",null,{"$f":"IF(K12=0,\"\",IF(K12=8,\"PASS\",\"FAIL\"))","v":""},{"$f":"IF(L12=0,\"\",IF(L12=8,\"PASS\",\"FAIL\"))","v":""},{"$f":"IF(M12=0,\"\",IF(M12=8,\"PASS\",\"FAIL\"))","v":""}]
[]
[null,"[1] VMA limits based on minimum requirement for mix design nominal maximum aggregate size in table 460‑1."]
[]
[]
[null,null,null,null,{"$f":"'Project Info & Instructions'!A6","v":"Revised 5-01-25"}]

{"sheet":"Air Voids Pay Factor","index":5,"n_rows":13,"n_cols":28,"rows_kept":13,"cut":false,"hidden":false,"merged":[[10,3,10,5],[11,3,11,5],[12,22,12,23],[6,2,8,2],[6,0,8,0],[2,27,4,27],[3,2,3,3],[2,25,4,25],[2,26,4,26],[4,0,4,20],[1,22,4,22],[1,23,4,23],[1,2,1,3],[1,5,1,6],[2,5,2,6],[3,5,3,6],[2,2,2,3]]}
[null,"Air Voids Pay Factor"]
[null,"Date:",{"$f":"IF('Project Info & Instructions'!C10=\"\",\"\",'Project Info & Instructions'!C10)","v":""},null,"Test Strip #:",{"$f":"IF('Project Info & Instructions'!C11=\"\",\"\",'Project Info & Instructions'!C11)","v":""},null,null,null,null,null,null,null,null,null,null,null,"TargetVa:",3,null,null,null,"PWL Default Unit Price","Contract Unit Price"]
[null,"Project ID:",{"$f":"IF('Project Info & Instructions'!C13=\"\",\"\",'Project Info & Instructions'!C13)","v":""},null,"Route/Road:",{"$f":"IF('Project Info & Instructions'!C14=\"\",\"\",'Project Info & Instructions'!C14)","v":""},null,null,null,null,null,null,null,null,null,null,null,"LSLVa:",2,null,null,null,null,null,null,"LSL","Target","USL"]
[null,"Mix Type:",{"$f":"IF('Project Info & Instructions'!C21=\"\",\"\",'Project Info & Instructions'!C21)","v":"--"},null," Layer:",{"$f":"IF('Project Info & Instructions'!G16=\"\",\"\",'Project Info & Instructions'!G16)","v":""},null,null,null,null,null,null,null,null,null,null,null,"USLVa:",4.3]
["Air Voids"]
["Lot","Split Sample No.","Date","Gmm","Gmb","Air Voids","Standard Deviation","Mean","Number of Tests in Lot","Quality IndexUL","d2","x","PWLUL","Quality IndexLL","d2","x","PWLLL","PWLVa","PFVa","Lot Size (Ton)","Air Voids Pay Adjustment",null,65,{"$f":"IF('Project Info & Instructions'!C22=\"\",\"\",'Project Info & Instructions'!C22)","v":""},null,2,3,4.3]
[{"$f":"_xlfn.CONCAT(\"TS-\",$F$2)","v":"TS-"},1,{"$f":"IF('Project Info & Instructions'!C10=\"\",\"\",'Project Info & Instructions'!C10)","v":""},{"$f":"IF('Split Sample Comparison'!D9=\"\",\"\",IF('Split Sample Comparison'!$V$7=\"No\",'Split Sample Comparison'!D9,IF('Split Sample Comparison'!K9=\"\",INTERNAL_SYS_MSGS!$B$38,'Split Sample Comparison'!K9)))","v":""},{"$f":"IF('Split Sample Comparison'!D19=\"\",\"\",IF('Split Sample Comparison'!$V$7=\"No\",'Split Sample Comparison'!D19,IF('Split Sample Comparison'!K19=\"\",INTERNAL_SYS_MSGS!$B$38,'Split Sample Comparison'!K19)))","v":""},{"$f":"IF(OR(D7=INTERNAL_SYS_MSGS!$B$38,E7=INTERNAL_SYS_MSGS!$B$38),\"\",IF('Split Sample Comparison'!$V$4<12,\"\",ROUND(100*(D7-E7)/D7,3)))","v":""}]
[null,2,null,{"$f":"IF('Split Sample Comparison'!D10=\"\",\"\",IF('Split Sample Comparison'!$V$7=\"No\",'Split Sample Comparison'!D10,IF('Split Sample Comparison'!K10=\"\",INTERNAL_SYS_MSGS!$B$38,'Split Sample Comparison'!K10)))","v":""},{"$f":"IF('Split Sample Comparison'!D20=\"\",\"\",IF('Split Sample Comparison'!$V$7=\"No\",'Split Sample Comparison'!D20,IF('Split Sample Comparison'!K20=\"\",INTERNAL_SYS_MSGS!$B$38,'Split Sample Comparison'!K20)))","v":""},{"$f":"IF(OR(D8=INTERNAL_SYS_MSGS!$B$38,E8=INTERNAL_SYS_MSGS!$B$38),\"\",IF('Split Sample Comparison'!$V$4<12,\"\",ROUND(100*(D8-E8)/D8,3)))","v":""}]
[null,3,null,{"$f":"IF('Split Sample Comparison'!D11=\"\",\"\",IF('Split Sample Comparison'!$V$7=\"No\",'Split Sample Comparison'!D11,IF('Split Sample Comparison'!K11=\"\",INTERNAL_SYS_MSGS!$B$38,'Split Sample Comparison'!K11)))","v":""},{"$f":"IF('Split Sample Comparison'!D21=\"\",\"\",IF('Split Sample Comparison'!$V$7=\"No\",'Split Sample Comparison'!D21,IF('Split Sample Comparison'!K21=\"\",INTERNAL_SYS_MSGS!$B$38,'Split Sample Comparison'!K21)))","v":""},{"$f":"IF(OR(D9=INTERNAL_SYS_MSGS!$B$38,E9=INTERNAL_SYS_MSGS!$B$38),\"\",IF('Split Sample Comparison'!$V$4<12,\"\",ROUND(100*(D9-E9)/D9,3)))","v":""},{"$f":"IF(OR(F7=\"\",F8=\"\",F9=\"\"),\"\",IF('Split Sample Comparison'!$V$4<12,\"\",IF(_xlfn.STDEV.S(F7:F9)<0.001,0.001,_xlfn.STDEV.S(F7:F9))))","v":""},{"$f":"IF(OR(F7=\"\",F8=\"\",F9=\"\"),\"\",IF('Split Sample Comparison'!$V$4<12,\"\",ROUND(AVERAGE(F7:F9),3)))","v":""},3,{"$f":"($AB$6-H9)/G9","v":{"$error":"#VALUE!"}},{"$f":"IF(D7=\"BTS Result\",\"\",SQRT($I9))","v":1.7320508075688772},{"$f":"IF(D7=0,\"\",IF(MAX(0,0.5-(J9*$K9/(2*($I9-1))))>1,1,MAX(0,0.5-(J9*$K9/(2*($I9-1))))))","v":{"$error":"#VALUE!"}},{"$f":"IF(D7=\"\",\"\",100-(BETADIST(L9,($I9/2)-1,($I9/2)-1)*100))","v":""},{"$f":"(H9-Z$6)/G9","v":{"$error":"#VALUE!"}},{"$f":"IF(D7=0,\"\",SQRT($I9))","v":1.7320508075688772},{"$f":"IF(D7=0,\"\",IF(MAX(0,0.5-(N9*$K9/(2*($I9-1))))>1,1,MAX(0,0.5-(N9*$K9/(2*($I9-1))))))","v":{"$error":"#VALUE!"}},{"$f":"IF(D7=\"\",\"\",100-(BETADIST(P9,($I9/2)-1,($I9/2)-1)*100))","v":""},{"$f":"IF(OR(F7=\"\",F8=\"\",F9=\"\"),\"\",IF('Split Sample Comparison'!$V$4<12,\"\",(M9+Q9)-100))","v":""},{"$f":"IF(OR(F7=\"\",F8=\"\",F9=\"\"),\"\",IF(R9<50,50,IF(R9<90,R9*0.5+55,(R9-90)*0.4+100)))","v":""},{"$f":"IF(OR(F7=\"\",F8=\"\",F9=\"\"),\"\",IF('Project Info & Instructions'!C23=\"\",INTERNAL_SYS_MSGS!$B$39,'Project Info & Instructions'!C23))","v":""},{"$f":"IF(OR(F7=\"\",F8=\"\",F9=\"\",'Project Info & Instructions'!C23=\"\"),\"\",IF(S9=50,((S9-100)*(X6*$T9)/(100)),IF(T9=\"\",\"\",((S9-100)*W$6*$T9)/(2*100))))","v":""},{"$f":"IF(U9>0,\"460.2010 Incentive Air Voids HMA Pavement\",\"804.2015 Disincentive Air Voids HMA Pavement\")","v":"460.2010 Incentive Air Voids HMA Pavement"}]
[]
[null,null,"Average Gmm:",{"$f":"IF(SUM(D7:D9)<0.01,\"\",IF('Split Sample Comparison'!$V$7=\"No\",AVERAGE('Split Sample Comparison'!D9:D11),AVERAGE(D7:D9)))","v":""}]
[null,null,"Gmm Source:",{"$f":"IF('Split Sample Comparison'!$V$7=\"No\",\"QC\",\"BTS Referee\")","v":"QC"}]
["Acceptable Gmm & Gmb values carried in as determined from the Split Sample Comparison worksheet.",null,null,null,null,null,null,null,null,null,null,null,null,null,null,null,null,null,null,null,null,null,{"$f":"'Project Info & Instructions'!A6","v":"Revised 5-01-25"}]

{"sheet":"Density Pay Factor","index":6,"n_rows":27,"n_cols":16,"rows_kept":27,"cut":false,"hidden":false,"merged":[[18,3,18,5],[19,3,19,5],[20,3,20,5],[18,0,18,2],[1,15,4,15],[6,2,15,2],[1,2,1,3],[2,2,2,3],[3,2,3,3],[4,0,4,13],[1,5,1,6],[2,5,2,6],[3,5,3,6],[6,0,10,0],[11,0,15,0],[1,14,4,14]]}
[null,"Density Pay Factor"]
[null,"Date:",{"$f":"IF('Project Info & Instructions'!$C$10=\"\",\"\",'Project Info & Instructions'!$C$10)","v":""},null,"Test Strip #:",{"$f":"IF('Project Info & Instructions'!$C$11=\"\",\"\",'Project Info & Instructions'!$C$11)","v":""},null,null,null,null,null,null,"Lane Width(ft):",{"$f":"IF('Project Info & Instructions'!$G$11=\"\",\"\",'Project Info & Instructions'!$G$11)","v":""},"PWL Default Unit Price","Contract Unit Price"]
[null,"Project ID:",{"$f":"IF('Project Info & Instructions'!$C$13=\"\",\"\",'Project Info & Instructions'!$C$13)","v":""},null,"Route/Road:",{"$f":"IF('Project Info & Instructions'!$C$14=\"\",\"\",'Project Info & Instructions'!$C$14)","v":""},null,null,null,null,null,null,"Nominal Thickness(in):",{"$f":"IF('Project Info & Instructions'!$G$12=\"\",\"\",'Project Info & Instructions'!$G$12)","v":""}]
[null,"Mix Type:",{"$f":"IF('Project Info & Instructions'!$C$21=\"\",\"\",'Project Info & Instructions'!$C$21)","v":"--"},null," Layer:",{"$f":"IF('Project Info & Instructions'!$G$16=\"\",\"\",'Project Info & Instructions'!$G$16)","v":""},null,null,null,null,null,null,"LSL(%):",{"$f":"IF('Project Info & Instructions'!$G$18=INTERNAL_SYS_MSGS!$B$16,\"\",'Project Info & Instructions'!$G$18)","v":""}]
["Density"]
["Zone","Core No.","Date","Core Data (%Gmm)","Standard Deviation","Mean","Number of Tests in Lot","Quality Index","d2","x","PWLD","PFD","Lot Size (Ton)","Density Pay Adjustment",65,{"$f":"IF('Project Info & Instructions'!C22=\"\",\"\",'Project Info & Instructions'!C22)","v":""}]
[1,{"$f":"'Core Data'!A11","v":""},{"$f":"IF('Project Info & Instructions'!$C$10=\"\",\"\",'Project Info & Instructions'!$C$10)","v":""},{"$f":"'Core Data'!AA11","v":""}]
[null,{"$f":"'Core Data'!A12","v":""},null,{"$f":"'Core Data'!AA12","v":""}]
[null,{"$f":"'Core Data'!A13","v":""},null,{"$f":"'Core Data'!AA13","v":""}]
[null,{"$f":"'Core Data'!A14","v":""},null,{"$f":"'Core Data'!AA14","v":""}]
[null,{"$f":"'Core Data'!A15","v":""},null,{"$f":"'Core Data'!AA15","v":""}]
[2,{"$f":"'Core Data'!A19","v":""},null,{"$f":"'Core Data'!AA19","v":""}]
[null,{"$f":"'Core Data'!A20","v":""},null,{"$f":"'Core Data'!AA20","v":""}]
[null,{"$f":"'Core Data'!A21","v":""},null,{"$f":"'Core Data'!AA21","v":""}]
[null,{"$f":"'Core Data'!A22","v":""},null,{"$f":"'Core Data'!AA22","v":""}]
[null,{"$f":"'Core Data'!A23","v":""},null,{"$f":"'Core Data'!AA23","v":""}]
[null,null,null,null,{"$f":"IF(SUM(D7:D16)=0,\"\",IF(_xlfn.STDEV.S(D7:D16)<0.001,0.001,_xlfn.STDEV.S(D7:D16)))","v":""},{"$f":"IF(SUM(D7:D16)=0,\"\",AVERAGE(D7:D16))","v":""},{"$f":"COUNT(D7:D16)","v":0},{"$f":"(F17-N4)/E17","v":{"$error":"#VALUE!"}},{"$f":"SQRT($G17)","v":0},{"$f":"IF(MAX(0,0.5-(H17*$I17/(2*($G17-1))))>1,1,MAX(0,0.5-(H17*$I17/(2*($G17-1)))))","v":{"$error":"#VALUE!"}},{"$f":"IF(SUM(D7:D16)=0,\"\",100-(BETADIST(J17,($G17/2)-1,($G17/2)-1)*100))","v":""},{"$f":"IF(SUM(D7:D16)=0,\"\",IF(K17<50,50,IF(K17<90,K17*0.5+55,(K17-90)*0.4+100)))","v":""},{"$f":"IF(SUM(D7:D16)=0,\"\",IF('Project Info & Instructions'!C24=\"\",INTERNAL_SYS_MSGS!$B$41,IF(N4=\"\",\"\",((L27*$N$2)/9*112*$N$3/2000))))","v":""},{"$f":"IF(OR(SUM(D7:D16)=0,'Project Info & Instructions'!C24=\"\"),\"\",IF(L17=50,((L17-100)*(P6*$M17)/(100)),IF(L27=\"\",\"\",((L17-100)*O$6*$M17)/(2*100))))","v":""},{"$f":"IF(N17>0,\"460.2005 Incentive Density PWL HMA Pavement\",\"804.2010 Disincentive PWL HMA Pavement\")","v":"460.2005 Incentive Density PWL HMA Pavement"}]
[]
["Average Gmm:",null,null,{"$f":"IF(AND('Project Info & Instructions'!$R$3=2,'Core Data'!I1=\"\"),INTERNAL_SYS_MSGS!$B$42,IF('Project Info & Instructions'!$R$3=2,'Core Data'!I1,IF('Air Voids Pay Factor'!D11=\"\",\"\",'Air Voids Pay Factor'!D11)))","v":""}]
[null,null,"Gmm Source:",{"$f":"IF('Split Sample Comparison'!$V$7=\"No\",\"QC\",\"BTS Referee\")","v":"QC"}]
[null,null,"Core Density Source:",{"$f":"IF('Core Data'!$AD$3=1,\"QC\",\"QV\")","v":"QC"}]
[null,null,null,"Core data calculated from Contractor measured Gmb under Dept. supervision, "]
[null,null,null,"and Gmm values determined acceptable in accordance with the paired t-test"]
[]
[]
[]
[null,null,null,null,null,null,null,null,null,null,"Final Length:",{"$f":"IF('Project Info & Instructions'!C24=\"\",\"\",'Project Info & Instructions'!C24)","v":""}," Feet",null,{"$f":"'Project Info & Instructions'!A6","v":"Revised 5-01-25"}]

{"sheet":"Test Strip Summary","index":7,"n_rows":52,"n_cols":15,"rows_kept":52,"cut":false,"hidden":false,"merged":[[5,2,5,3],[11,13,12,13],[10,12,12,12],[11,14,12,14],[11,1,11,7],[7,8,11,9],[5,6,5,7],[3,12,7,12],[8,12,9,12],[17,1,17,7],[12,4,12,7],[13,4,13,7],[20,4,20,7],[20,1,20,3],[18,1,18,7],[19,1,19,7],[14,1,14,3],[14,4,14,7],[21,4,21,7],[30,1,30,3],[30,4,30,7],[23,1,23,3],[25,1,25,7],[24,4,24,7],[28,1,28,3],[28,4,28,7],[27,1,27,7],[29,1,29,3],[29,4,29,7],[24,1,24,3],[26,1,26,7],[21,1,21,3],[22,1,22,3],[1,2,1,3],[2,2,2,3],[3,2,3,3],[4,2,4,3],[2,6,2,7],[1,6,1,7],[3,6,3,7],[4,6,4,7],[51,6,51,7],[39,4,39,5],[40,4,43,5],[32,1,32,7],[34,1,34,7],[35,1,35,3],[36,1,36,3],[35,4,35,7],[36,4,36,7],[33,1,33,7],[38,1,38,10],[45,2,50,7],[2,13,2,14],[31,1,31,3],[31,4,31,7],[15,4,15,7],[16,4,16,7],[12,1,12,3],[13,1,13,3],[7,1,7,7],[8,2,8,7],[9,2,9,7],[15,1,15,3],[16,1,16,3],[10,1,10,7],[22,4,22,7],[13,12,14,12],[23,4,23,7]]}
[null,"Test Strip Summary"]
[null,"Contract:",{"$f":"IF('Project Info & Instructions'!C12=\"\",\"\",'Project Info & Instructions'!C12)","v":""},null,null,"Test Strip #:",{"$f":"IF('Project Info & Instructions'!C11=\"\",\"\",'Project Info & Instructions'!C11)","v":""},null,"Paving Width(ft):",{"$f":"IF('Project Info & Instructions'!G10=\"\",\"\",'Project Info & Instructions'!G10)","v":""}]
[null,"Job No./Project ID:",{"$f":"IF('Project Info & Instructions'!C13=\"\",\"\",'Project Info & Instructions'!C13)","v":""},null,null,"Route/Road:",{"$f":"IF('Project Info & Instructions'!C14=\"\",\"\",'Project Info & Instructions'!C14)","v":""},null,"Lane Width(ft):",{"$f":"IF('Project Info & Instructions'!G11=\"\",\"\",'Project Info & Instructions'!G11)","v":""},null,null,null,"Worksheet Variables"]
[null,"WisDOT Mix No.:",{"$f":"IF('Project Info & Instructions'!C16=\"\",\"\",'Project Info & Instructions'!C16)","v":""},null,null,"Test Strip Layer:",{"$f":"IF('Project Info & Instructions'!G16=\"\",\"\",'Project Info & Instructions'!G16)","v":""},null,"Nominal Thickness(in):",{"$f":"IF('Project Info & Instructions'!G12=\"\",\"\",'Project Info & Instructions'!G12)","v":""},null,null,"Split Sample Comparison","QC/QV Compare?:",{"$f":"IF(COUNT('Split Sample Comparison'!D9:E11,'Split Sample Comparison'!D19:E21)<12,\"\",IF(AND(COUNT('Split Sample Comparison'!D9:E11,'Split Sample Comparison'!D19:E21)=12,'Split Sample Comparison'!$V$3=TRUE),INTERNAL_SYS_MSGS!$B$54,IF(AND(COUNT('Split Sample Comparison'!D9:E11,'Split Sample Comparison'!D19:E21)=12,'Split Sample Comparison'!G10=INTERNAL_SYS_MSGS!B18,'Split Sample Comparison'!I11=INTERNAL_SYS_MSGS!B21,'Split Sample Comparison'!G20=INTERNAL_SYS_MSGS!B18,'Split Sample Comparison'!I21=INTERNAL_SYS_MSGS!B21),INTERNAL_SYS_MSGS!$B$54,INTERNAL_SYS_MSGS!$B$55)))","v":""}]
[null,"Mix Type:",{"$f":"IF('Project Info & Instructions'!C21=\"\",\"\",'Project Info & Instructions'!C21)","v":"--"},null,null,"Underlying Layer:",{"$f":"IF('Project Info & Instructions'!G17=\"\",\"\",'Project Info & Instructions'!G17)","v":""},null,"Contract Unit Price:",{"$f":"IF('Project Info & Instructions'!C22=\"\",\"\",'Project Info & Instructions'!C22)","v":""},null,null,null,"BTS Test Results Entered?:",{"$f":"IF(COUNT('Split Sample Comparison'!K9:K11,'Split Sample Comparison'!K19:K21)<6,\"No\",\"Yes\")","v":"No"}]
[null,"File Name:",{"$f":"'Project Info & Instructions'!C35","v":"__--__PWL-TS--Combined"},null,null,"Test Strip Type:",{"$f":"'Project Info & Instructions'!R4","v":"Combined Density and Volumetrics Test Strip"},null,null,null,null,null,null,"Failed t-test but Xd Mean and Gmm All Within Tolerance-No Referee Test Needed:",{"$f":"'Split Sample Comparison'!$V$3","v":false}]
[null,null,null,null,null,null,null,null,null,null,null,null,null," Regional PWL Rep. Approving Split Sample Data:",{"$f":"'Split Sample Comparison'!$K$24","v":"Enter Regional PWL Rep Name"}]
[null,"Overall Test Strip Approval and Material Acceptance",null,null,null,null,null,null,{"$f":"INTERNAL_SYS_MSGS!$B$60&\" (\"&INTERNAL_SYS_MSGS!$B$61&\").\"","v":"Save with Suggested File Name and send a copy of the completed Test Strip Excel file to the Regional PWL Rep. and BTS (Daniel.Kopacz@dot.wi.gov)."},null,null,null,null,"One or more Gmm exceeds the Acceptance Limits?:",{"$f":"IF('Split Sample Comparison'!$V$5<6,\"\",IF('Split Sample Comparison'!F13=INTERNAL_SYS_MSGS!$B$22,INTERNAL_SYS_MSGS!$B$55,INTERNAL_SYS_MSGS!$B$54))","v":""}]
[null,"Test Strip",{"$f":"IF(AND('Project Info & Instructions'!$R$3=1,OR($B$18=\"\",$B$26=\"\",$B$33=\"\",$E$36=\"\",$E$37=\"\")),\"\",IF(AND('Project Info & Instructions'!$R$3=2,OR($B$26=\"\",$E$25=INTERNAL_SYS_MSGS!$B$44,$E$25=INTERNAL_SYS_MSGS!$B$45)),\"\",IF(AND('Project Info & Instructions'!$R$3=3,OR($B$18=\"\",$B$33=\"\",$E$36=\"\",$E$37=\"\")),\"\",IF(OR(AND('Project Info & Instructions'!$R$3=1,OR($O$9<50,$O$11<50,$O$12=\"Fail\",$O$14=\"Fail\",$O$16=\"Fail\")),AND('Project Info & Instructions'!$R$3=2,OR($O$9<50,$O$10=\"Fail\")),AND('Project Info & Instructions'!$R$3=3,OR($O$11<50,$O$12=\"Fail\",$O$14=\"Fail\",$O$16=\"Fail\"))),INTERNAL_SYS_MSGS!$B$49,IF(OR(AND('Project Info & Instructions'!$R$3=1,$O$4=\"Pass\",$O$8=\"Pass\",$O$9>=75,$O$11>=75,$O$14=\"Pass\",$O$15=FALSE,$O$16=\"Pass\"),AND('Project Info & Instructions'!$R$3=2,$O$9>=75,$O$10=\"Pass\"),AND('Project Info & Instructions'!$R$3=3,$O$8=\"Pass\",$O$11>=75,$O$14=\"Pass\",$O$15=FALSE,$O$16=\"Pass\")),INTERNAL_SYS_MSGS!B48,INTERNAL_SYS_MSGS!B47)))))","v":""},null,null,null,null,null,null,null,null,null,"Density","PWL:",{"$f":"IF('Density Pay Factor'!$K$17=\"\",\"\",'Density Pay Factor'!$K$17)","v":""}]
[null,"Material",{"$f":"IF(AND('Project Info & Instructions'!$R$3=1,OR(B18=\"\",B26=\"\",B33=\"\",E36=\"\",E37=\"\")),\"\",IF(AND('Project Info & Instructions'!$R$3=2,B26=\"\"),\"\",IF(AND('Project Info & Instructions'!$R$3=3,OR(B18=\"\",B33=\"\",E36=\"\",E37=\"\")),\"\",IF(OR($O$8=\"Fail\",$O$9<50,$O$11<50,$O$12=\"Fail\",$O$14=\"Fail\",$O$16=\"Fail\"),INTERNAL_SYS_MSGS!$B$51,INTERNAL_SYS_MSGS!$B$50))))","v":""},null,null,null,null,null,null,null,null,null,null,"Non-Random Gmm Exceeds Acceptance Limits?:",{"$f":"IF('Project Info & Instructions'!R3<>2,\"\",IF(AND('Project Info & Instructions'!$R$3=2,'Core Data'!I2=\"\"),\"\",IF(ABS('Core Data'!$I$2-'Core Data'!$F$8)>0.024,INTERNAL_SYS_MSGS!$B$55,INTERNAL_SYS_MSGS!$B$54)))","v":""}]
[null,null,null,null,null,null,null,null,null,null,null,null,"Air Voids","PWL:",{"$f":"IF('Air Voids Pay Factor'!$R$9=\"\",\"\",'Air Voids Pay Factor'!$R$9)","v":""}]
[null,"Split Sample Comparison",null,null,null,null,null,null,null,null,null,null,null,"BTS Air Voids Exceed Acceptance Limits?:",{"$f":"IF(COUNT('Split Sample Comparison'!N27:O29)<6,\"\",IF(SUM(COUNTIF('Split Sample Comparison'!P27:P29,\">\"&5),COUNTIF('Split Sample Comparison'!P27:P29,\"<\"&1.5))=0,INTERNAL_SYS_MSGS!$B$54,INTERNAL_SYS_MSGS!$B$55))","v":""}]
[null,"Gmm Split Sample t-test Results",null,null,{"$f":"IF('Project Info & Instructions'!$R$3=2,INTERNAL_SYS_MSGS!$B$56,IF('Split Sample Comparison'!I11=\"\",\"\",'Split Sample Comparison'!I11))","v":""}]
[null,"Gmm Test Differences Within Tolerance?",null,null,{"$f":"IF('Project Info & Instructions'!$R$3=2,INTERNAL_SYS_MSGS!$B$56,IF('Split Sample Comparison'!G10=\"\",\"\",'Split Sample Comparison'!G10))","v":""},null,null,null,null,null,null,null,"AC","Asphalt Contents Acceptable?:",{"$f":"IF(COUNT('AC % Data'!D9:E11)<6,\"\",'AC % Data'!$Z$10)","v":""}]
[null,"Gmm Within Tolerance to JMF?",null,null,{"$f":"IF('Project Info & Instructions'!$R$3=2,INTERNAL_SYS_MSGS!$B$56,IF($O$8=\"\",\"\",IF($O$8=INTERNAL_SYS_MSGS!$B$55,INTERNAL_SYS_MSGS!$B$22,INTERNAL_SYS_MSGS!$B$23)))","v":""},null,null,null,null,null,null,null,null,"Asphalt Contents Differences Large?:",{"$f":"'AC % Data'!$Y$10","v":""}]
[null,"Gmb Split Sample t-test Results",null,null,{"$f":"IF('Project Info & Instructions'!$R$3=2,INTERNAL_SYS_MSGS!$B$56,IF('Split Sample Comparison'!I21=\"\",\"\",'Split Sample Comparison'!I21))","v":""},null,null,null,null,null,null,null,"Mix","Any Mix Parameter Exceeds Acceptance Limits?:",{"$f":"IF('Project Info & Instructions'!$R$3=2,\"\",IF(AND('Project Info & Instructions'!$R$3<>2,'Mix Acceptance'!N12=0),\"\",IF(AND('Project Info & Instructions'!$R$3<>2,'Mix Acceptance'!N12<24),INTERNAL_SYS_MSGS!$B$55,INTERNAL_SYS_MSGS!$B$54)))","v":""}]
[null,"Gmb Test Differences Within Tolerance?",null,null,{"$f":"IF('Project Info & Instructions'!$R$3=2,INTERNAL_SYS_MSGS!$B$56,IF('Split Sample Comparison'!G20=\"\",\"\",'Split Sample Comparison'!G20))","v":""}]
[null,{"$f":"IF('Project Info & Instructions'!$R$3=2,INTERNAL_SYS_MSGS!$B$56,IF($O$6=TRUE,CONCATENATE(INTERNAL_SYS_MSGS!$B$52,$O$7),IF($O$4=\"\",\"\",IF($O$4=INTERNAL_SYS_MSGS!$B$55,INTERNAL_SYS_MSGS!$B$53,IF($O$8=INTERNAL_SYS_MSGS!$B$55,INTERNAL_SYS_MSGS!$B$22,INTERNAL_SYS_MSGS!$B$54)))))","v":""}]
[]
[null,"Density"]
[null,"Density Test Strip Tonnage",null,null,{"$f":"IF('Project Info & Instructions'!$R$3=3,INTERNAL_SYS_MSGS!$B$56,'Density Pay Factor'!M17)","v":""}]
[null,"PWL",null,null,{"$f":"IF('Project Info & Instructions'!$R$3=3,INTERNAL_SYS_MSGS!$B$56,'Density Pay Factor'!K17)","v":""}]
[null,"Pay Factor",null,null,{"$f":"IF('Project Info & Instructions'!$R$3=3,INTERNAL_SYS_MSGS!$B$56,'Density Pay Factor'!L17)","v":""}]
[null,"Density Net Pay Adjustment",null,null,{"$f":"IF('Project Info & Instructions'!$R$3=3,INTERNAL_SYS_MSGS!$B$56,'Density Pay Factor'!N17)","v":""},null,null,null,{"$f":"IF($E$24=\"\",\"\",IF($E$24>0,\"460.2005 Incentive Density PWL HMA Pavement\",\"804.2010 Disincentive Density PWL HMA Pavement\"))","v":""}]
[null,"Non-Random Gmm Test Result (Density Only Test Strip)",null,null,{"$f":"IF('Project Info & Instructions'!$R$3<>2,INTERNAL_SYS_MSGS!$B$56,IF(AND('Project Info & Instructions'!$R$3=2,'Core Data'!I2=\"\"),INTERNAL_SYS_MSGS!$B$46,IF('Project Info & Instructions'!$R$3=2,'Core Data'!F3,\"\")))","v":"Not Applicable."}]
[null,{"$f":"IF('Project Info & Instructions'!$R$3=3,INTERNAL_SYS_MSGS!$B$56,IF(AND($O$9=\"\",$O$10=\"\"),\"\",IF(AND($O$9<75,$O$9>=50),INTERNAL_SYS_MSGS!$B$49,IF(OR($O$9<50,$O$10=INTERNAL_SYS_MSGS!$B$55),INTERNAL_SYS_MSGS!$B$55,INTERNAL_SYS_MSGS!$B$54))))","v":""}]
[]
[null,"Air Voids"]
[null,"Air Voids Test Strip Tonnage",null,null,{"$f":"IF('Project Info & Instructions'!$R$3=2,INTERNAL_SYS_MSGS!$B$56,IF('Air Voids Pay Factor'!T9=\"\",\"\",'Air Voids Pay Factor'!T9))","v":""}]
[null,"PWL",null,null,{"$f":"IF('Project Info & Instructions'!$R$3=2,INTERNAL_SYS_MSGS!$B$56,IF('Air Voids Pay Factor'!R9=\"\",\"\",'Air Voids Pay Factor'!R9))","v":""}]
[null,"Pay Factor",null,null,{"$f":"IF('Project Info & Instructions'!$R$3=2,INTERNAL_SYS_MSGS!$B$56,IF('Air Voids Pay Factor'!S9=\"\",\"\",'Air Voids Pay Factor'!S9))","v":""}]
[null,"Air Voids Net Pay Adjustment",null,null,{"$f":"IF('Project Info & Instructions'!$R$3=2,INTERNAL_SYS_MSGS!$B$56,IF('Air Voids Pay Factor'!U9=\"\",\"\",'Air Voids Pay Factor'!U9))","v":""},null,null,null,{"$f":"IF($E$32=\"\",\"\",IF($E$32>0,\"460.2010 Incentive Air Voids HMA Pavement\",\"804.2015 Disincentive Air Voids HMA Pavement\"))","v":""}]
[null,{"$f":"IF('Project Info & Instructions'!$R$3=2,INTERNAL_SYS_MSGS!$B$56,IF(AND($O$11=\"\",$O$12=\"\"),\"\",IF(AND($O$11<75,$O$11>=50),INTERNAL_SYS_MSGS!$B$49,IF(OR($O$11<50,$O$12=INTERNAL_SYS_MSGS!$B$55),INTERNAL_SYS_MSGS!$B$55,INTERNAL_SYS_MSGS!$B$54))))","v":""}]
[]
[null,"AC % and Mix Acceptance Results"]
[null,"AC %",null,null,{"$f":"IF('Project Info & Instructions'!$R$3=2,INTERNAL_SYS_MSGS!$B$56,IF(AND('Project Info & Instructions'!$R$3<>2,$O$14=\"\"),\"\",IF($O$14=INTERNAL_SYS_MSGS!$B$55,INTERNAL_SYS_MSGS!$B$57,IF($O$15=TRUE,INTERNAL_SYS_MSGS!$B$58,INTERNAL_SYS_MSGS!$B$54))))","v":""}]
[null,"Mix Acceptance",null,null,{"$f":"IF('Project Info & Instructions'!$R$3=2,INTERNAL_SYS_MSGS!$B$56,IF($O$16=\"\",\"\",IF($O$16=INTERNAL_SYS_MSGS!$B$55,INTERNAL_SYS_MSGS!$B$59,INTERNAL_SYS_MSGS!$B$54)))","v":""}]
[]
[null,"Nuclear Density Gauge Correlation (Info from QC/QV Density, Correlation, and Gauge-Core Variability Worksheets) "]
[null,"Gauge ID","NUCDENSITYTEC","Gauge Serial #","Core Spread (%)",null,"Gauge Spread (%)","Gauge Comp. Avg.","Correlation R2","Gauge Recommendation","Gauge Offset"]
[null,"QC-1",{"$f":"IF('QC-1 Density Worksheet'!I5=\"\",\"Enter Tech Info\",'QC-1 Density Worksheet'!I5)","v":"Enter Tech Info"},{"$f":"IF('QC-1 Density Worksheet'!M4=\"\",\"Enter Serial #\",'QC-1 Density Worksheet'!M4)","v":"Enter Serial #"},{"$f":"'QC-1 Correlation'!$O$41","v":0},null,{"$f":"'QC-1 Correlation'!M41","v":0},{"$f":"IF('Gauge-Core Variability'!B36=\"\",\"\",'Gauge-Core Variability'!B36)","v":""},{"$f":"'QC-1 Correlation'!U22","v":""},{"$f":"IF(H41=\"\",\"\",IF(H41>=1,\"SUSPECT GAUGE\",IF(H41>H42,\"Secondary QC\",IF(H41<H42,\"Primary QC\",IF(H41=H42,IF(I41>I42,\"Primary QC\",\"Secondary QC\"))))))","v":""},{"$f":"'QC-1 Correlation'!U41","v":""}]
[null,"QC-2",{"$f":"IF('QC-2 Density Worksheet'!I5=\"\",\"Enter Tech Info\",'QC-2 Density Worksheet'!I5)","v":"Enter Tech Info"},{"$f":"IF('QC-2 Density Worksheet'!M4=\"\",\"Enter Serial #\",'QC-2 Density Worksheet'!M4)","v":"Enter Serial #"},null,null,{"$f":"'QC-2 Correlation'!M41","v":0},{"$f":"IF('Gauge-Core Variability'!C36=\"\",\"\",'Gauge-Core Variability'!C36)","v":""},{"$f":"'QC-2 Correlation'!U22","v":""},{"$f":"IF(H41=\"\",\"\",IF(H41>=1,\"SUSPECT GAUGE\",IF(H42>H41,\"Secondary QC\",IF(H42<H41,\"Primary QC\",IF(H42=H41,IF(I42>I41,\"Primary QC\",\"Secondary QC\"))))))","v":""},{"$f":"'QC-2 Correlation'!U41","v":""}]
[null,"QV-1",{"$f":"IF('QV-1 Density Worksheet'!I6=\"\",\"Enter Tech Info\",'QV-1 Density Worksheet'!I6)","v":"Enter Tech Info"},{"$f":"IF('QV-1 Density Worksheet'!M4=\"\",\"Enter Serial #\",'QV-1 Density Worksheet'!M4)","v":"Enter Serial #"},null,null,{"$f":"'QV-1 Correlation'!M41","v":0},{"$f":"IF('Gauge-Core Variability'!D36=\"\",\"\",'Gauge-Core Variability'!D36)","v":""},{"$f":"'QV-1 Correlation'!U22","v":""},{"$f":"IF(H43=\"\",\"\",IF(H43>=1,\"SUSPECT GAUGE\",IF(H43>H44,\"Secondary QV\",IF(H43<H44,\"Primary QV\",IF(H43=H44,IF(I43>I44,\"Primary QV\",\"Secondary QV\"))))))","v":""},{"$f":"'QV-1 Correlation'!U41","v":""}]
[null,"QV-2",{"$f":"IF('QV-2 Density Worksheet'!I6=\"\",\"Enter Tech Info\",'QV-2 Density Worksheet'!I6)","v":"Enter Tech Info"},{"$f":"IF('QV-2 Density Worksheet'!M4=\"\",\"Enter Serial #\",'QV-2 Density Worksheet'!M4)","v":"Enter Serial #"},null,null,{"$f":"'QV-2 Correlation'!M41","v":0},{"$f":"IF('Gauge-Core Variability'!E36=\"\",\"\",'Gauge-Core Variability'!E36)","v":""},{"$f":"'QV-2 Correlation'!U22","v":""},{"$f":"IF(H43=\"\",\"\",IF(H43>=1,\"SUSPECT GAUGE\",IF(H44>H43,\"Secondary QV\",IF(H44<H43,\"Primary QV\",IF(H44=H43,IF(I44>I43,\"Primary QV\",\"Secondary QV\"))))))","v":""},{"$f":"'QV-2 Correlation'!U41","v":""}]
[]
[null,"Resolutions:"]
[]
[]
[]
[]
[]
[null,null,null,null,null,null,{"$f":"'Project Info & Instructions'!$A$6","v":"Revised 5-01-25"}]

{"sheet":"Gauge-Core Variability","index":8,"n_rows":40,"n_cols":23,"rows_kept":40,"cut":false,"hidden":false,"merged":[[9,21,9,22],[1,10,1,11],[2,10,2,11],[3,10,3,11],[1,2,1,6],[6,14,6,23],[4,10,4,11],[4,2,4,6],[3,2,3,6],[2,2,2,6],[6,2,6,6],[5,2,5,6],[1,13,1,14],[2,13,2,14],[3,13,3,14],[4,13,4,14],[39,4,39,6],[8,1,8,4],[22,1,22,4],[22,16,22,19],[8,16,8,19],[34,1,34,4],[9,6,9,8],[34,16,34,19],[23,6,37,11],[9,10,20,12]]}
[null,"Gauge-Core Variability"]
[null,"Contract:",{"$f":"IF('Project Info & Instructions'!C12=\"\",\"\",'Project Info & Instructions'!C12)","v":""},null,null,null,null,null,null,"Test Strip #:",{"$f":"IF('Project Info & Instructions'!C11=\"\",\"\",'Project Info & Instructions'!C11)","v":""},null,"Paving Width(ft):",{"$f":"IF('Project Info & Instructions'!G10=\"\",\"\",'Project Info & Instructions'!G10)","v":""}]
[null,"Job No./Project ID:",{"$f":"IF('Project Info & Instructions'!C13=\"\",\"\",'Project Info & Instructions'!C13)","v":""},null,null,null,null,null,null,"Route/Road:",{"$f":"IF('Project Info & Instructions'!C14=\"\",\"\",'Project Info & Instructions'!C14)","v":""},null,"Lane Width(ft):",{"$f":"IF('Project Info & Instructions'!G11=\"\",\"\",'Project Info & Instructions'!G11)","v":""}]
[null,"WisDOT Mix No.:",{"$f":"IF('Project Info & Instructions'!C16=\"\",\"\",'Project Info & Instructions'!C16)","v":""},null,null,null,null,null,null,"Test Strip Layer:",{"$f":"IF('Project Info & Instructions'!G16=\"\",\"\",'Project Info & Instructions'!G16)","v":""},null,"Nominal Thickness(in):",{"$f":"IF('Project Info & Instructions'!G12=\"\",\"\",'Project Info & Instructions'!G12)","v":""}]
[null,"Mix Type:",{"$f":"IF('Project Info & Instructions'!C21=\"\",\"\",'Project Info & Instructions'!C21)","v":"--"},null,null,null,null,null,null,"Underlying Layer:",{"$f":"IF('Project Info & Instructions'!G17=\"\",\"\",'Project Info & Instructions'!G17)","v":""},null,"Contract Unit Price:",{"$f":"IF('Project Info & Instructions'!C22=\"\",\"\",'Project Info & Instructions'!C22)","v":""}]
[null,"File Name:",{"$f":"'Project Info & Instructions'!C35","v":"__--__PWL-TS--Combined"}]
[null,"Core Data Used:",{"$f":"IF('Core Data'!$AD$3=1,\"QC\",\"QV\")","v":"QC"},null,null,null,null,null,null,null,null,null,null,null,"Original Data Including Removed Cores"]
[]
[null,"Nuclear Density Gauge Adjusted Difference",null,null,null,null,null,null,null,null,null,null,null,null,null,null,"Nuclear Density Gauge Adjusted Difference"]
[null,"QC-1","QC-2","QV-1","QV-2",null,"Location Comparison",null,null,null,{"$f":"INTERNAL_SYS_MSGS!$B$63","v":"Location Comparison Averages (shown in cells G12 - G21) ≥ 1.0 or ≤ -1.0 indicate a core that may be damaged.  In such cases the individual core can be removed from the analysis by checking the \"Remove Core X\" box on the Core Data tab of this spreadsheet."},null,null,null,null,null,"QC-1","QC-2","QV-1","QV-2",null,"Location Comparison"]
["Core",{"$f":"'Test Strip Summary'!D41","v":"Enter Serial #"},{"$f":"'Test Strip Summary'!D42","v":"Enter Serial #"},{"$f":"'Test Strip Summary'!D43","v":"Enter Serial #"},{"$f":"'Test Strip Summary'!D44","v":"Enter Serial #"},null,"Avg.","Std.","Suspect Core?",null,null,null,null,null,null,"Core",{"$f":"'Test Strip Summary'!D41","v":"Enter Serial #"},{"$f":"'Test Strip Summary'!D42","v":"Enter Serial #"},{"$f":"'Test Strip Summary'!D43","v":"Enter Serial #"},{"$f":"'Test Strip Summary'!D44","v":"Enter Serial #"},null,"Avg.","Std."]
[{"$f":"'QC-1 Correlation'!A25","v":""},{"$f":"'QC-1 Correlation'!U25","v":""},{"$f":"'QC-2 Correlation'!U25","v":""},{"$f":"'QV-1 Correlation'!U25","v":""},{"$f":"'QV-2 Correlation'!U25","v":""},null,{"$f":"IF(COUNT(B12:E12)=0,\"\",ROUND(AVERAGE(B12:E12),1))","v":""},{"$f":"IF(COUNT(B12:E12)=0,\"\",STDEV(B12:E12))","v":""},{"$f":"IF(G12=\"\",\"\",IF(OR(G12>=1,G12<=-1),\"Suspect Core\",\"\"))","v":""},null,null,null,null,null,null,{"$f":"A12","v":""},{"$f":"'QC-1 Correlation'!AB25","v":""},{"$f":"'QC-2 Correlation'!AB25","v":""},{"$f":"'QV-1 Correlation'!AB25","v":""},{"$f":"'QV-2 Correlation'!AB25","v":""},null,{"$f":"IF(COUNT(Q12:T12)=0,\"\",ROUND(AVERAGE(Q12:T12),1))","v":""},{"$f":"IF(COUNT(Q12:T12)=0,\"\",STDEV(Q12:T12))","v":""}]
[{"$f":"'QC-1 Correlation'!A26","v":""},{"$f":"'QC-1 Correlation'!U26","v":""},{"$f":"'QC-2 Correlation'!U26","v":""},{"$f":"'QV-1 Correlation'!U26","v":""},{"$f":"'QV-2 Correlation'!U26","v":""},null,"",{"$f":"IF(COUNT(B13:E13)=0,\"\",STDEV(B13:E13))","v":""},"",null,null,null,null,null,null,{"$f":"A13","v":""},{"$f":"'QC-1 Correlation'!AB26","v":""},{"$f":"'QC-2 Correlation'!AB26","v":""},{"$f":"'QV-1 Correlation'!AB26","v":""},{"$f":"'QV-2 Correlation'!AB26","v":""},null,"",{"$f":"IF(COUNT(Q13:T13)=0,\"\",STDEV(Q13:T13))","v":""}]
[{"$f":"'QC-1 Correlation'!A27","v":""},{"$f":"'QC-1 Correlation'!U27","v":""},{"$f":"'QC-2 Correlation'!U27","v":""},{"$f":"'QV-1 Correlation'!U27","v":""},{"$f":"'QV-2 Correlation'!U27","v":""},null,"","","",null,null,null,null,null,null,"",{"$f":"'QC-1 Correlation'!AB27","v":""},{"$f":"'QC-2 Correlation'!AB27","v":""},{"$f":"'QV-1 Correlation'!AB27","v":""},{"$f":"'QV-2 Correlation'!AB27","v":""},null,"",""]
[{"$f":"'QC-1 Correlation'!A28","v":""},{"$f":"'QC-1 Correlation'!U28","v":""},{"$f":"'QC-2 Correlation'!U28","v":""},{"$f":"'QV-1 Correlation'!U28","v":""},{"$f":"'QV-2 Correlation'!U28","v":""},null,"","","",null,null,null,null,null,null,"",{"$f":"'QC-1 Correlation'!AB28","v":""},{"$f":"'QC-2 Correlation'!AB28","v":""},{"$f":"'QV-1 Correlation'!AB28","v":""},{"$f":"'QV-2 Correlation'!AB28","v":""},null,"",""]
[{"$f":"'QC-1 Correlation'!A29","v":""},{"$f":"'QC-1 Correlation'!U29","v":""},{"$f":"'QC-2 Correlation'!U29","v":""},{"$f":"'QV-1 Correlation'!U29","v":""},{"$f":"'QV-2 Correlation'!U29","v":""},null,"","","",null,null,null,null,null,null,"",{"$f":"'QC-1 Correlation'!AB29","v":""},{"$f":"'QC-2 Correlation'!AB29","v":""},{"$f":"'QV-1 Correlation'!AB29","v":""},{"$f":"'QV-2 Correlation'!AB29","v":""},null,"",""]
[{"$f":"'QC-1 Correlation'!A35","v":""},{"$f":"'QC-1 Correlation'!U35","v":""},{"$f":"'QC-2 Correlation'!U35","v":""},{"$f":"'QV-1 Correlation'!U35","v":""},{"$f":"'QV-2 Correlation'!U35","v":""},null,"","","",null,null,null,null,null,null,"",{"$f":"'QC-1 Correlation'!AB35","v":""},{"$f":"'QC-2 Correlation'!AB35","v":""},{"$f":"'QV-1 Correlation'!AB35","v":""},{"$f":"'QV-2 Correlation'!AB35","v":""},null,"",""]
[{"$f":"'QC-1 Correlation'!A36","v":""},{"$f":"'QC-1 Correlation'!U36","v":""},{"$f":"'QC-2 Correlation'!U36","v":""},{"$f":"'QV-1 Correlation'!U36","v":""},{"$f":"'QV-2 Correlation'!U36","v":""},null,"","","",null,null,null,null,null,null,"",{"$f":"'QC-1 Correlation'!AB36","v":""},{"$f":"'QC-2 Correlation'!AB36","v":""},{"$f":"'QV-1 Correlation'!AB36","v":""},{"$f":"'QV-2 Correlation'!AB36","v":""},null,"",""]
[{"$f":"'QC-1 Correlation'!A37","v":""},{"$f":"'QC-1 Correlation'!U37","v":""},{"$f":"'QC-2 Correlation'!U37","v":""},{"$f":"'QV-1 Correlation'!U37","v":""},{"$f":"'QV-2 Correlation'!U37","v":""},null,"","","",null,null,null,null,null,null,"",{"$f":"'QC-1 Correlation'!AB37","v":""},{"$f":"'QC-2 Correlation'!AB37","v":""},{"$f":"'QV-1 Correlation'!AB37","v":""},{"$f":"'QV-2 Correlation'!AB37","v":""},null,"",""]
[{"$f":"'QC-1 Correlation'!A38","v":""},{"$f":"'QC-1 Correlation'!U38","v":""},{"$f":"'QC-2 Correlation'!U38","v":""},{"$f":"'QV-1 Correlation'!U38","v":""},{"$f":"'QV-2 Correlation'!U38","v":""},null,"","","",null,null,null,null,null,null,"",{"$f":"'QC-1 Correlation'!AB38","v":""},{"$f":"'QC-2 Correlation'!AB38","v":""},{"$f":"'QV-1 Correlation'!AB38","v":""},{"$f":"'QV-2 Correlation'!AB38","v":""},null,"",""]
[{"$f":"'QC-1 Correlation'!A39","v":""},{"$f":"'QC-1 Correlation'!U39","v":""},{"$f":"'QC-2 Correlation'!U39","v":""},{"$f":"'QV-1 Correlation'!U39","v":""},{"$f":"'QV-2 Correlation'!U39","v":""},null,"","","",null,null,null,null,null,null,"",{"$f":"'QC-1 Correlation'!AB39","v":""},{"$f":"'QC-2 Correlation'!AB39","v":""},{"$f":"'QV-1 Correlation'!AB39","v":""},{"$f":"'QV-2 Correlation'!AB39","v":""},null,"",""]
[]
["Core","Absolute Value",null,null,null,null,null,null,null,null,null,null,null,null,null,"Core","Absolute Value"]
[{"$f":"A12","v":""},{"$f":"IF(B12=\"\",\"\",ABS(B12))","v":""},{"$f":"IF(C12=\"\",\"\",ABS(C12))","v":""},"","",null,{"$f":"INTERNAL_SYS_MSGS!$B$64&\" \n\"&INTERNAL_SYS_MSGS!$B$65","v":"A Gauge Comparison Average (shown in cells B36, C36, D36, and E36) ≥ 1.0 indicates a gauge that has erratic readings.  In such cases the gauge in question should be removed from the project and further diagnostics should be performed in coordination with the WisDOT Radiation Safety Officer (RSO). \n WisDOT RSO Contact: \nBrian Jandrin\nBrian.Jandrin@dot.wi.gov\n(608) 516-6359, Primary"},null,null,null,null,null,null,null,null,{"$f":"P12","v":""},{"$f":"IF(Q12=\"\",\"\",ABS(Q12))","v":""},{"$f":"IF(R12=\"\",\"\",ABS(R12))","v":""},"",""]
[{"$f":"A13","v":""},{"$f":"IF(B13=\"\",\"\",ABS(B13))","v":""},"","","",null,null,null,null,null,null,null,null,null,null,{"$f":"P13","v":""},{"$f":"IF(Q13=\"\",\"\",ABS(Q13))","v":""},"","",""]
["",{"$f":"IF(B14=\"\",\"\",ABS(B14))","v":""},"","","",null,null,null,null,null,null,null,null,null,null,"",{"$f":"IF(Q14=\"\",\"\",ABS(Q14))","v":""},"","",""]
["",{"$f":"IF(B15=\"\",\"\",ABS(B15))","v":""},"","","",null,null,null,null,null,null,null,null,null,null,"",{"$f":"IF(Q15=\"\",\"\",ABS(Q15))","v":""},"","",""]
["",{"$f":"IF(B16=\"\",\"\",ABS(B16))","v":""},"","","",null,null,null,null,null,null,null,null,null,null,"",{"$f":"IF(Q16=\"\",\"\",ABS(Q16))","v":""},"","",""]
["",{"$f":"IF(B17=\"\",\"\",ABS(B17))","v":""},"","","",null,null,null,null,null,null,null,null,null,null,"",{"$f":"IF(Q17=\"\",\"\",ABS(Q17))","v":""},"","",""]
["",{"$f":"IF(B18=\"\",\"\",ABS(B18))","v":""},"","","",null,null,null,null,null,null,null,null,null,null,"",{"$f":"IF(Q18=\"\",\"\",ABS(Q18))","v":""},"","",""]
["",{"$f":"IF(B19=\"\",\"\",ABS(B19))","v":""},"","","",null,null,null,null,null,null,null,null,null,null,"",{"$f":"IF(Q19=\"\",\"\",ABS(Q19))","v":""},"","",""]
["",{"$f":"IF(B20=\"\",\"\",ABS(B20))","v":""},"","","",null,null,null,null,null,null,null,null,null,null,"",{"$f":"IF(Q20=\"\",\"\",ABS(Q20))","v":""},"","",""]
["",{"$f":"IF(B21=\"\",\"\",ABS(B21))","v":""},"","","",null,null,null,null,null,null,null,null,null,null,"",{"$f":"IF(Q21=\"\",\"\",ABS(Q21))","v":""},"","",""]
[]
[null,"Gauge Comparison",null,null,null,null,null,null,null,null,null,null,null,null,null,null,"Gauge Comparison"]
["Avg.",{"$f":"IF(SUM(B24:B33)<0.0001,\"\",ROUND(AVERAGE(B24:B33),1))","v":""},{"$f":"IF(SUM(C24:C33)<0.0001,\"\",ROUND(AVERAGE(C24:C33),1))","v":""},{"$f":"IF(SUM(D24:D33)<0.0001,\"\",ROUND(AVERAGE(D24:D33),1))","v":""},{"$f":"IF(SUM(E24:E33)<0.0001,\"\",ROUND(AVERAGE(E24:E33),1))","v":""},null,null,null,null,null,null,null,null,null,null,"Avg.",{"$f":"IF(SUM(Q24:Q33)<0.0001,\"\",ROUND(AVERAGE(Q24:Q33),1))","v":""},{"$f":"IF(SUM(R24:R33)<0.0001,\"\",ROUND(AVERAGE(R24:R33),1))","v":""},{"$f":"IF(SUM(S24:S33)<0.0001,\"\",ROUND(AVERAGE(S24:S33),1))","v":""},{"$f":"IF(SUM(T24:T33)<0.0001,\"\",ROUND(AVERAGE(T24:T33),1))","v":""}]
["Std.",{"$f":"IF(SUM(B24:B33)<0.0001,\"\",STDEV(B24:B33))","v":""},{"$f":"IF(SUM(C24:C33)<0.0001,\"\",STDEV(C24:C33))","v":""},"","",null,null,null,null,null,null,null,null,null,null,"Std.",{"$f":"IF(SUM(Q24:Q33)<0.0001,\"\",STDEV(Q24:Q33))","v":""},{"$f":"IF(SUM(R24:R33)<0.0001,\"\",STDEV(R24:R33))","v":""},"",""]
["Suspect Gauge?",{"$f":"IF(B36=\"\",\"\",IF(B36>=1,\"Suspect Gauge\",\"\"))","v":""},{"$f":"IF(C36=\"\",\"\",IF(C36>=1,\"Suspect Gauge\",\"\"))","v":""},{"$f":"IF(D36=\"\",\"\",IF(D36>=1,\"Suspect Gauge\",\"\"))","v":""},{"$f":"IF(E36=\"\",\"\",IF(E36>=1,\"Suspect Gauge\",\"\"))","v":""}]
[]
[null,null,null,null,{"$f":"'Project Info & Instructions'!$A$6","v":"Revised 5-01-25"}]

{"sheet":"QC-1 Density Worksheet","index":9,"n_rows":25,"n_cols":30,"rows_kept":25,"cut":false,"hidden":false,"merged":[[2,0,2,1],[11,26,11,28],[11,18,12,18],[11,29,12,29],[11,19,11,21],[11,22,11,25],[4,5,4,6],[1,12,1,14],[12,13,12,14],[11,12,11,14],[10,12,10,14],[9,12,9,14],[8,12,8,14],[7,12,7,14],[6,12,6,14],[5,12,5,14],[2,12,2,14],[4,12,4,14],[3,12,3,14],[14,13,14,14],[13,13,13,14],[4,8,4,10],[3,5,3,6],[5,0,5,6],[6,0,10,6],[0,0,0,4],[3,8,3,10],[7,8,7,10],[11,9,11,11],[1,0,1,4],[5,8,5,10],[11,3,11,5],[11,6,11,8],[8,8,8,10],[9,8,9,10],[10,8,10,10],[11,0,11,1],[3,1,3,3],[4,1,4,3],[2,8,2,9],[1,8,1,9],[25,0,32,14],[23,13,23,14],[22,13,22,14],[21,13,21,14],[20,13,20,14],[24,0,24,14],[19,13,19,14],[18,13,18,14],[17,13,17,14],[16,13,16,14],[15,13,15,14]]}
["PWL DENSITY DATA FORM (LANE FOOT)",null,null,null,null,{"$f":"'Project Info & Instructions'!A6","v":"Revised 5-01-25"}]
["               Nuclear HMA Density QC/QV Testing Records",null,null,null,null,{"$f":"CONCATENATE(\"TEST STRIP #\",'Project Info & Instructions'!C11)","v":"TEST STRIP #"},"QC-1","LAYER:",{"$f":"IF('Project Info & Instructions'!G16=\"\",\"\",'Project Info & Instructions'!G16)","v":""},null,null,"Density\nStandard:"]
["Station Decreasing:",null,{"$f":"'Project Info & Instructions'!R7","v":false},null,null,null,null,null,null,null,null,"Moisture\nStandard: "]
["Project ID:",{"$f":"IF('Project Info & Instructions'!C13=\"\",\"\",'Project Info & Instructions'!C13)","v":""},null,null,"Road Name:",{"$f":"IF('Project Info & Instructions'!C14=\"\",\"\",'Project Info & Instructions'!C14)","v":""},null,"Contractor:",{"$f":"IF('Project Info & Instructions'!G20=\"\",\"\",'Project Info & Instructions'!G20)","v":""},null,null,"Gauge Serial #:"]
["Project\nLeader:",{"$f":"IF('Project Info & Instructions'!G19=\"\",\"\",'Project Info & Instructions'!G19)","v":""},null,null,"County:",{"$f":"IF('Project Info & Instructions'!C15=\"\",\"\",'Project Info & Instructions'!C15)","v":""},null,"QC \nNUCDENSITYTEC:",null,null,null,"WisDOT Mix #:",{"$f":"IF('Project Info & Instructions'!C16=\"\",\"\",'Project Info & Instructions'!C16)","v":""}]
["TEST STRIP - Field Density Worksheet",null,null,null,null,null,null,"QV \nNUCDENSITYTEC:","N/A",null,null,"Mix Type:",{"$f":"IF('Project Info & Instructions'!C21=\"\",\"\",'Project Info & Instructions'!C21)","v":"--"}]
["• Offsets are predetermined according to the test strip layout in WisDOT's Manual of Test Procedures WTP H-002.\n• Gauge offset is set to ZERO since offsets will be determined from the test strip.\n• The Target Max Gmm is the average from the 3 split samples, except for a density only test strip, then it is the daily average Gmm from production.\n• Calculated per WisDOT's Manual of Test Procedures WTM T355.",null,null,null,null,null,null,"Start:",{"$f":"IF('Project Info & Instructions'!G14=\"\",\"\",'Project Info & Instructions'!G14)","v":""},"End:",{"$f":"IF('Project Info & Instructions'!I14=\"\",\"\",'Project Info & Instructions'!I14)","v":""},"Target Gmm:",{"$f":"IF('Project Info & Instructions'!R3=2,'Core Data'!I1,'Air Voids Pay Factor'!D11)","v":""}]
[null,null,null,null,null,null,null,"Length (ft):",{"$f":"IF(AND('Project Info & Instructions'!J15=\"\",'Project Info & Instructions'!G15=\"\"),\"\",IF(ISNUMBER('Project Info & Instructions'!J15),'Project Info & Instructions'!J15,'Project Info & Instructions'!G15))","v":""},null,null,"Target Max Density (PCF):",{"$f":"IF(M7=\"\",\"\",ROUND(M7*62.24,1))","v":""}]
[null,null,null,null,null,null,null,"Lane Width (ft):",{"$f":"IF('Project Info & Instructions'!G11=\"\",\"\",'Project Info & Instructions'!G11)","v":""},null,null,"Required\nDensity %:",{"$f":"IF('Project Info & Instructions'!G18=\"\",\"\",'Project Info & Instructions'!G18)","v":"Enter Mix and Layer Info"}]
[null,null,null,null,null,null,null,"Nominal \nThickness(in):",{"$f":"IF('Project Info & Instructions'!G12=\"\",\"\",'Project Info & Instructions'!G12)","v":""},null,null,"Date Placed:",{"$f":"IF('Project Info & Instructions'!C10=\"\",\"\",'Project Info & Instructions'!C10)","v":""}]
[null,null,null,null,null,null,null,"Gauge Offset","ZERO",null,null,"Date Tested:",{"$f":"IF('Project Info & Instructions'!C10=\"\",\"\",'Project Info & Instructions'!C10)","v":""}]
["Gauge/Core Spacing (ft)",null,{"$f":"INTERNAL_SYS_VAR!$C$4","v":50},"Reading 1",null,null,"Reading  2 (rotate 180)",null,null,"Reading  3 (if needed, original orientation)",null,null,"Final Density",null,null,null,null,null,"Lot/Sublot ID","Rounded Readings (0.1 pcf)",null,null,"Variation from Avg",null,null,null,"Filter Outlier",null,null,"Nuc Avg Excluding Outlier (pcf)"]
["Lot / Sub Lot ID","Station","Offset from CL","M Count / \nD Count","Wet Density 1             ","% Max Density 1","M Count / \nD Count","Wet Density 2            ","% Max Density 2","M Count / \nD Count","Wet Density 3             ","% Max Density 3","Average PCF","% Max Density",null,null,null,null,null,"Reading 1","Reading 2","Reading 3","Rounded Average of Readings (pcf)","Reading 1","Reading 2","Reading 3","Read 1","Read 2","Read 3"]
[{"$f":"'Core Data'!A11","v":""},{"$f":"IF(B16=\"\",\"\",IF($C$3=TRUE,B16+2*$C$12,B16-2*$C$12))","v":-100},{"$f":"IF('Project Info & Instructions'!G11=\"\",\"\",1.5)","v":""},null,null,{"$f":"IF(E14=\"\",\"\",ROUND((T14/$M$8),3))","v":""},null,null,{"$f":"IF(H14=\"\",\"\",ROUND((U14/$M$8),3))","v":""},null,null,{"$f":"IF(K14=\"\",\"\",ROUND((V14/$M$8),3))","v":""},{"$f":"IF(F14=\"\",\"\",AD14)","v":""},{"$f":"IF(F14=\"\",\"\",ROUND((M14/$M$8),3))","v":""},null,null,null,null,{"$f":"A14","v":""},{"$f":"IF(E14=\"\",\"\",ROUND(E14,1))","v":""},{"$f":"IF(H14=\"\",\"\",ROUND(H14,1))","v":""},{"$f":"IF(K14=\"\",\"\",ROUND(K14,1))","v":""},{"$f":"IFERROR(IF(ROUND(ABS(T14-U14),1)>1,ROUND(AVERAGE(T14:V14),1),ROUND(AVERAGE(T14:U14),1)),\"\")","v":""},{"$f":"IFERROR(ABS(ROUND(W14-T14,1)),NA())","v":{"$error":"#N/A"}},{"$f":"IFERROR(ABS(ROUND(W14-U14,1)),NA())","v":{"$error":"#N/A"}},{"$f":"IFERROR(ABS(ROUND(W14-V14,1)),NA())","v":{"$error":"#N/A"}},{"$f":"IF(X14=_xlfn.AGGREGATE(4,6,X14:Z14),0,T14)","v":{"$error":"#N/A"}},{"$f":"IF(Y14=_xlfn.AGGREGATE(4,6,X14:Z14),0,U14)","v":{"$error":"#N/A"}},{"$f":"IF(Z14=_xlfn.AGGREGATE(4,6,X14:Z14),0,V14)","v":{"$error":"#N/A"}},{"$f":"IFERROR(IF(OR(COUNT(T14:V14)<3,ROUND(ABS(T14-U14),1)<=1),ROUND(W14,1),IF(AND(COUNT(T14:V14)=3,OR(T14=W14,U14=W14,V14=W14)),ROUND(W14,1),IF(COUNTIF(AA14:AC14,\"=0\")=2,ROUND(W14,1),ROUND(AVERAGEIF(AA14:AC14,\">0\"),1)))),\"\")","v":""}]
[{"$f":"'Core Data'!A12","v":""},{"$f":"IF(B$16=\"\",\"\",IF($C$3=TRUE,B16+$C$12,B16-$C$12))","v":-50},{"$f":"IF('Project Info & Instructions'!G11=\"\",\"\",3.5)","v":""},null,null,{"$f":"IF(E15=\"\",\"\",ROUND((T15/$M$8),3))","v":""},null,null,{"$f":"IF(H15=\"\",\"\",ROUND((U15/$M$8),3))","v":""},null,null,{"$f":"IF(K15=\"\",\"\",ROUND((V15/$M$8),3))","v":""},{"$f":"IF(F15=\"\",\"\",AD15)","v":""},{"$f":"IF(F15=\"\",\"\",ROUND((M15/$M$8),3))","v":""},null,null,null,null,{"$f":"A15","v":""},{"$f":"IF(E15=\"\",\"\",ROUND(E15,1))","v":""},{"$f":"IF(H15=\"\",\"\",ROUND(H15,1))","v":""},{"$f":"IF(K15=\"\",\"\",ROUND(K15,1))","v":""},{"$f":"IFERROR(IF(ROUND(ABS(T15-U15),1)>1,ROUND(AVERAGE(T15:V15),1),ROUND(AVERAGE(T15:U15),1)),\"\")","v":""},{"$f":"IFERROR(ABS(ROUND(W15-T15,1)),NA())","v":{"$error":"#N/A"}},{"$f":"IFERROR(ABS(ROUND(W15-U15,1)),NA())","v":{"$error":"#N/A"}},{"$f":"IFERROR(ABS(ROUND(W15-V15,1)),NA())","v":{"$error":"#N/A"}},{"$f":"IF(X15=_xlfn.AGGREGATE(4,6,X15:Z15),0,T15)","v":{"$error":"#N/A"}},{"$f":"IF(Y15=_xlfn.AGGREGATE(4,6,X15:Z15),0,U15)","v":{"$error":"#N/A"}},{"$f":"IF(Z15=_xlfn.AGGREGATE(4,6,X15:Z15),0,V15)","v":{"$error":"#N/A"}},{"$f":"IFERROR(IF(OR(COUNT(T15:V15)<3,ROUND(ABS(T15-U15),1)<=1),ROUND(W15,1),IF(AND(COUNT(T15:V15)=3,OR(T15=W15,U15=W15,V15=W15)),ROUND(W15,1),IF(COUNTIF(AA15:AC15,\"=0\")=2,ROUND(W15,1),ROUND(AVERAGEIF(AA15:AC15,\">0\"),1)))),\"\")","v":""}]
[{"$f":"'Core Data'!A13","v":""},{"$f":"'Project Info & Instructions'!G26","v":0},{"$f":"IF('Project Info & Instructions'!G11=\"\",\"\",'Project Info & Instructions'!G11/2)","v":""},null,null,"",null,null,"",null,null,"","","",null,null,null,null,"",{"$f":"IF(E16=\"\",\"\",ROUND(E16,1))","v":""},{"$f":"IF(H16=\"\",\"\",ROUND(H16,1))","v":""},{"$f":"IF(K16=\"\",\"\",ROUND(K16,1))","v":""},"",{"$error":"#N/A"},{"$error":"#N/A"},{"$error":"#N/A"},{"$error":"#N/A"},{"$error":"#N/A"},{"$error":"#N/A"},""]
[{"$f":"'Core Data'!A14","v":""},{"$f":"IF(B$16=\"\",\"\",IF($C$3=TRUE,B16-$C$12,B16+$C$12))","v":50},{"$f":"IF('Project Info & Instructions'!G11=\"\",\"\",'Project Info & Instructions'!G11-3.5)","v":""},null,null,"",null,null,"",null,null,"","","",null,null,null,null,"",{"$f":"IF(E17=\"\",\"\",ROUND(E17,1))","v":""},{"$f":"IF(H17=\"\",\"\",ROUND(H17,1))","v":""},{"$f":"IF(K17=\"\",\"\",ROUND(K17,1))","v":""},"",{"$error":"#N/A"},{"$error":"#N/A"},{"$error":"#N/A"},{"$error":"#N/A"},{"$error":"#N/A"},{"$error":"#N/A"},""]
[{"$f":"'Core Data'!A15","v":""},{"$f":"IF(B16=\"\",\"\",IF($C$3=TRUE,B16-2*$C$12,B16+2*$C$12))","v":100},{"$f":"IF('Project Info & Instructions'!G11=\"\",\"\",'Project Info & Instructions'!G11-1.5)","v":""},null,null,"",null,null,"",null,null,"",{"$f":"IF(F18=\"\",\"\",AD18)","v":""},"",null,null,null,null,"",{"$f":"IF(E18=\"\",\"\",ROUND(E18,1))","v":""},{"$f":"IF(H18=\"\",\"\",ROUND(H18,1))","v":""},{"$f":"IF(K18=\"\",\"\",ROUND(K18,1))","v":""},"",{"$error":"#N/A"},{"$error":"#N/A"},{"$error":"#N/A"},{"$error":"#N/A"},{"$error":"#N/A"},{"$error":"#N/A"},""]
[]
[{"$f":"'Core Data'!A19","v":""},{"$f":"IF(B22=\"\",\"\",IF($C$3=TRUE,B22+2*$C$12,B22-2*$C$12))","v":-100},{"$f":"C14","v":""},null,null,{"$f":"IF(E20=\"\",\"\",ROUND((T20/$M$8),3))","v":""},null,null,"",null,null,"",{"$f":"IF(F20=\"\",\"\",AD20)","v":""},"",null,null,null,null,"",{"$f":"IF(E20=\"\",\"\",ROUND(E20,1))","v":""},{"$f":"IF(H20=\"\",\"\",ROUND(H20,1))","v":""},{"$f":"IF(K20=\"\",\"\",ROUND(K20,1))","v":""},"",{"$error":"#N/A"},{"$error":"#N/A"},{"$error":"#N/A"},{"$error":"#N/A"},{"$error":"#N/A"},{"$error":"#N/A"},""]
[{"$f":"'Core Data'!A20","v":""},{"$f":"IF(B$16=\"\",\"\",IF($C$3=TRUE,B22+$C$12,B22-$C$12))","v":-50},{"$f":"C15","v":""},null,null,"",null,null,"",null,null,"","","",null,null,null,null,"",{"$f":"IF(E21=\"\",\"\",ROUND(E21,1))","v":""},{"$f":"IF(H21=\"\",\"\",ROUND(H21,1))","v":""},{"$f":"IF(K21=\"\",\"\",ROUND(K21,1))","v":""},"",{"$error":"#N/A"},{"$error":"#N/A"},{"$error":"#N/A"},{"$error":"#N/A"},{"$error":"#N/A"},{"$error":"#N/A"},""]
[{"$f":"'Core Data'!A21","v":""},{"$f":"'Project Info & Instructions'!G27","v":0},{"$f":"C16","v":""},null,null,"",null,null,"",null,null,"","","",null,null,null,null,"",{"$f":"IF(E22=\"\",\"\",ROUND(E22,1))","v":""},{"$f":"IF(H22=\"\",\"\",ROUND(H22,1))","v":""},{"$f":"IF(K22=\"\",\"\",ROUND(K22,1))","v":""},"",{"$error":"#N/A"},{"$error":"#N/A"},{"$error":"#N/A"},{"$error":"#N/A"},{"$error":"#N/A"},{"$error":"#N/A"},""]
[{"$f":"'Core Data'!A22","v":""},{"$f":"IF(B$16=\"\",\"\",IF($C$3=TRUE,B22-$C$12,B22+$C$12))","v":50},{"$f":"C17","v":""},null,null,"",null,null,"",null,null,"","","",null,null,null,null,"",{"$f":"IF(E23=\"\",\"\",ROUND(E23,1))","v":""},{"$f":"IF(H23=\"\",\"\",ROUND(H23,1))","v":""},{"$f":"IF(K23=\"\",\"\",ROUND(K23,1))","v":""},"",{"$error":"#N/A"},{"$error":"#N/A"},{"$error":"#N/A"},{"$error":"#N/A"},{"$error":"#N/A"},{"$error":"#N/A"},""]
[{"$f":"'Core Data'!A23","v":""},{"$f":"IF(B22=\"\",\"\",IF($C$3=TRUE,B22-2*$C$12,B22+2*$C$12))","v":100},{"$f":"C18","v":""},null,null,"",null,null,"",null,null,"",{"$f":"IF(F24=\"\",\"\",AD24)","v":""},"",null,null,null,null,"",{"$f":"IF(E24=\"\",\"\",ROUND(E24,1))","v":""},{"$f":"IF(H24=\"\",\"\",ROUND(H24,1))","v":""},{"$f":"IF(K24=\"\",\"\",ROUND(K24,1))","v":""},"",{"$error":"#N/A"},{"$error":"#N/A"},{"$error":"#N/A"},{"$error":"#N/A"},{"$error":"#N/A"},{"$error":"#N/A"},""]
["Target Max Density = Gmm x 62.24                                                                                                                                                                                           Test Remarks"]

{"sheet":"QC-2 Density Worksheet","index":10,"n_rows":25,"n_cols":30,"rows_kept":25,"cut":false,"hidden":false,"merged":[[11,0,11,1],[1,8,1,9],[3,8,3,10],[4,8,4,10],[11,3,11,5],[11,6,11,8],[11,9,11,11],[5,0,5,6],[6,0,10,6],[2,0,2,1],[8,8,8,10],[4,1,4,3],[4,5,4,6],[3,12,3,14],[0,0,0,4],[1,0,1,4],[1,12,1,14],[2,12,2,14],[2,8,2,9],[3,1,3,3],[3,5,3,6],[4,12,4,14],[5,8,5,10],[5,12,5,14],[6,12,6,14],[7,8,7,10],[7,12,7,14],[8,12,8,14],[9,8,9,10],[9,12,9,14],[10,8,10,10],[10,12,10,14],[11,26,11,28],[11,29,12,29],[14,13,14,14],[12,13,12,14],[15,13,15,14],[11,12,11,14],[13,13,13,14],[11,18,12,18],[11,19,11,21],[11,22,11,25],[16,13,16,14],[17,13,17,14],[18,13,18,14],[19,13,19,14],[20,13,20,14],[24,0,24,14],[25,0,32,14],[21,13,21,14],[22,13,22,14],[23,13,23,14]]}
["PWL DENSITY DATA FORM (LANE FOOT)",null,null,null,null,{"$f":"'Project Info & Instructions'!A6","v":"Revised 5-01-25"}]
["               Nuclear HMA Density QC/QV Testing Records",null,null,null,null,{"$f":"CONCATENATE(\"TEST STRIP #\",'Project Info & Instructions'!C11)","v":"TEST STRIP #"},"QC-2","LAYER:",{"$f":"IF('Project Info & Instructions'!G16=\"\",\"\",'Project Info & Instructions'!G16)","v":""},null,null,"Density\nStandard:"]
["Station Decreasing:",null,{"$f":"'Project Info & Instructions'!R7","v":false},null,null,null,null,null,null,null,null,"Moisture\nStandard: "]
["Project ID:",{"$f":"IF('Project Info & Instructions'!C13=\"\",\"\",'Project Info & Instructions'!C13)","v":""},null,null,"Road Name:",{"$f":"IF('Project Info & Instructions'!C14=\"\",\"\",'Project Info & Instructions'!C14)","v":""},null,"Contractor:",{"$f":"IF('Project Info & Instructions'!G20=\"\",\"\",'Project Info & Instructions'!G20)","v":""},null,null,"Gauge Serial #:"]
["Project\nLeader:",{"$f":"IF('Project Info & Instructions'!G19=\"\",\"\",'Project Info & Instructions'!G19)","v":""},null,null,"County:",{"$f":"IF('Project Info & Instructions'!C15=\"\",\"\",'Project Info & Instructions'!C15)","v":""},null,"QC \nNUCDENSITYTEC:",null,null,null,"WisDOT Mix #:",{"$f":"IF('Project Info & Instructions'!C16=\"\",\"\",'Project Info & Instructions'!C16)","v":""}]
["TEST STRIP - Field Density Worksheet",null,null,null,null,null,null,"QV \nNUCDENSITYTEC:","N/A",null,null,"Mix Type:",{"$f":"IF('Project Info & Instructions'!C21=\"\",\"\",'Project Info & Instructions'!C21)","v":"--"}]
["• Offsets are predetermined according to the test strip layout in WisDOT's Manual of Test Procedures WTP H-002.\n• Gauge offset is set to ZERO since offsets will be determined from the test strip.\n• The Target Max Gmm is the average from the 3 split samples, except for a density only test strip, then it is the daily average Gmm from production.\n• Calculated per WisDOT's Manual of Test Procedures WTM T355.",null,null,null,null,null,null,"Start:",{"$f":"IF('Project Info & Instructions'!G14=\"\",\"\",'Project Info & Instructions'!G14)","v":""},"End:",{"$f":"IF('Project Info & Instructions'!I14=\"\",\"\",'Project Info & Instructions'!I14)","v":""},"Target Gmm:",{"$f":"IF('Project Info & Instructions'!R3=2,'Core Data'!I1,'Air Voids Pay Factor'!D11)","v":""}]
[null,null,null,null,null,null,null,"Length (ft):",{"$f":"IF(AND('Project Info & Instructions'!J15=\"\",'Project Info & Instructions'!G15=\"\"),\"\",IF(ISNUMBER('Project Info & Instructions'!J15),'Project Info & Instructions'!J15,'Project Info & Instructions'!G15))","v":""},null,null,"Target Max Density (PCF):",{"$f":"IF(M7=\"\",\"\",ROUND(M7*62.24,1))","v":""}]
[null,null,null,null,null,null,null,"Lane Width (ft):",{"$f":"IF('Project Info & Instructions'!G11=\"\",\"\",'Project Info & Instructions'!G11)","v":""},null,null,"Required\nDensity %:",{"$f":"IF('Project Info & Instructions'!G18=\"\",\"\",'Project Info & Instructions'!G18)","v":"Enter Mix and Layer Info"}]
[null,null,null,null,null,null,null,"Nominal \nThickness(in):",{"$f":"IF('Project Info & Instructions'!G12=\"\",\"\",'Project Info & Instructions'!G12)","v":""},null,null,"Date Placed:",{"$f":"IF('Project Info & Instructions'!C10=\"\",\"\",'Project Info & Instructions'!C10)","v":""}]
[null,null,null,null,null,null,null,"Gauge Offset","ZERO",null,null,"Date Tested:",{"$f":"IF('Project Info & Instructions'!C10=\"\",\"\",'Project Info & Instructions'!C10)","v":""}]
["Gauge/Core Spacing (ft)",null,{"$f":"INTERNAL_SYS_VAR!$C$4","v":50},"Reading 1",null,null,"Reading  2 (rotate 180)",null,null,"Reading  3 (if needed, original orientation)",null,null,"Final Density",null,null,null,null,null,"Lot/Sublot ID","Rounded Readings (0.1 pcf)",null,null,"Variation from Avg",null,null,null,"Filter Outlier",null,null,"Nuc Avg Excluding Outlier (pcf)"]
["Lot / Sub Lot ID","Station","Offset from CL","M Count / \nD Count","Wet Density 1             ","% Max Density 1","M Count / \nD Count","Wet Density 2            ","% Max Density 2","M Count / \nD Count","Wet Density 3             ","% Max Density 3","Average PCF","% Max Density",null,null,null,null,null,"Reading 1","Reading 2","Reading 3","Rounded Average of Readings (pcf)","Reading 1","Reading 2","Reading 3","Read 1","Read 2","Read 3"]
[{"$f":"'Core Data'!A11","v":""},{"$f":"IF(B16=\"\",\"\",IF($C$3=TRUE,B16+2*$C$12,B16-2*$C$12))","v":-100},{"$f":"'QC-1 Density Worksheet'!C14","v":""},null,null,{"$f":"IF(E14=\"\",\"\",ROUND((T14/$M$8),3))","v":""},null,null,{"$f":"IF(H14=\"\",\"\",ROUND((U14/$M$8),3))","v":""},null,null,{"$f":"IF(K14=\"\",\"\",ROUND((V14/$M$8),3))","v":""},{"$f":"IF(F14=\"\",\"\",AD14)","v":""},{"$f":"IF(F14=\"\",\"\",ROUND((M14/$M$8),3))","v":""},null,null,null,null,{"$f":"A14","v":""},{"$f":"IF(E14=\"\",\"\",ROUND(E14,1))","v":""},{"$f":"IF(H14=\"\",\"\",ROUND(H14,1))","v":""},{"$f":"IF(K14=\"\",\"\",ROUND(K14,1))","v":""},{"$f":"IFERROR(IF(ROUND(ABS(T14-U14),1)>1,ROUND(AVERAGE(T14:V14),1),ROUND(AVERAGE(T14:U14),1)),\"\")","v":""},{"$f":"IFERROR(ABS(ROUND(W14-T14,1)),NA())","v":{"$error":"#N/A"}},{"$f":"IFERROR(ABS(ROUND(W14-U14,1)),NA())","v":{"$error":"#N/A"}},{"$f":"IFERROR(ABS(ROUND(W14-V14,1)),NA())","v":{"$error":"#N/A"}},{"$f":"IF(X14=_xlfn.AGGREGATE(4,6,X14:Z14),0,T14)","v":{"$error":"#N/A"}},{"$f":"IF(Y14=_xlfn.AGGREGATE(4,6,X14:Z14),0,U14)","v":{"$error":"#N/A"}},{"$f":"IF(Z14=_xlfn.AGGREGATE(4,6,X14:Z14),0,V14)","v":{"$error":"#N/A"}},{"$f":"IFERROR(IF(OR(COUNT(T14:V14)<3,ROUND(ABS(T14-U14),1)<=1),ROUND(W14,1),IF(AND(COUNT(T14:V14)=3,OR(T14=W14,U14=W14,V14=W14)),ROUND(W14,1),IF(COUNTIF(AA14:AC14,\"=0\")=2,ROUND(W14,1),ROUND(AVERAGEIF(AA14:AC14,\">0\"),1)))),\"\")","v":""}]
[{"$f":"'Core Data'!A12","v":""},{"$f":"IF(B$16=\"\",\"\",IF($C$3=TRUE,B16+$C$12,B16-$C$12))","v":-50},{"$f":"'QC-1 Density Worksheet'!C15","v":""},null,null,{"$f":"IF(E15=\"\",\"\",ROUND((T15/$M$8),3))","v":""},null,null,{"$f":"IF(H15=\"\",\"\",ROUND((U15/$M$8),3))","v":""},null,null,{"$f":"IF(K15=\"\",\"\",ROUND((V15/$M$8),3))","v":""},{"$f":"IF(F15=\"\",\"\",AD15)","v":""},{"$f":"IF(F15=\"\",\"\",ROUND((M15/$M$8),3))","v":""},null,null,null,null,{"$f":"A15","v":""},{"$f":"IF(E15=\"\",\"\",ROUND(E15,1))","v":""},{"$f":"IF(H15=\"\",\"\",ROUND(H15,1))","v":""},{"$f":"IF(K15=\"\",\"\",ROUND(K15,1))","v":""},{"$f":"IFERROR(IF(ROUND(ABS(T15-U15),1)>1,ROUND(AVERAGE(T15:V15),1),ROUND(AVERAGE(T15:U15),1)),\"\")","v":""},{"$f":"IFERROR(ABS(ROUND(W15-T15,1)),NA())","v":{"$error":"#N/A"}},{"$f":"IFERROR(ABS(ROUND(W15-U15,1)),NA())","v":{"$error":"#N/A"}},{"$f":"IFERROR(ABS(ROUND(W15-V15,1)),NA())","v":{"$error":"#N/A"}},{"$f":"IF(X15=_xlfn.AGGREGATE(4,6,X15:Z15),0,T15)","v":{"$error":"#N/A"}},{"$f":"IF(Y15=_xlfn.AGGREGATE(4,6,X15:Z15),0,U15)","v":{"$error":"#N/A"}},{"$f":"IF(Z15=_xlfn.AGGREGATE(4,6,X15:Z15),0,V15)","v":{"$error":"#N/A"}},{"$f":"IFERROR(IF(OR(COUNT(T15:V15)<3,ROUND(ABS(T15-U15),1)<=1),ROUND(W15,1),IF(AND(COUNT(T15:V15)=3,OR(T15=W15,U15=W15,V15=W15)),ROUND(W15,1),IF(COUNTIF(AA15:AC15,\"=0\")=2,ROUND(W15,1),ROUND(AVERAGEIF(AA15:AC15,\">0\"),1)))),\"\")","v":""}]
[{"$f":"'Core Data'!A13","v":""},{"$f":"'Project Info & Instructions'!G26","v":0},{"$f":"'QC-1 Density Worksheet'!C16","v":""},null,null,"",null,null,"",null,null,"","","",null,null,null,null,"",{"$f":"IF(E16=\"\",\"\",ROUND(E16,1))","v":""},{"$f":"IF(H16=\"\",\"\",ROUND(H16,1))","v":""},{"$f":"IF(K16=\"\",\"\",ROUND(K16,1))","v":""},"",{"$error":"#N/A"},{"$error":"#N/A"},{"$error":"#N/A"},{"$error":"#N/A"},{"$error":"#N/A"},{"$error":"#N/A"},""]
[{"$f":"'Core Data'!A14","v":""},{"$f":"IF(B$16=\"\",\"\",IF($C$3=TRUE,B16-$C$12,B16+$C$12))","v":50},{"$f":"'QC-1 Density Worksheet'!C17","v":""},null,null,"",null,null,"",null,null,"","","",null,null,null,null,"",{"$f":"IF(E17=\"\",\"\",ROUND(E17,1))","v":""},{"$f":"IF(H17=\"\",\"\",ROUND(H17,1))","v":""},{"$f":"IF(K17=\"\",\"\",ROUND(K17,1))","v":""},"",{"$error":"#N/A"},{"$error":"#N/A"},{"$error":"#N/A"},{"$error":"#N/A"},{"$error":"#N/A"},{"$error":"#N/A"},""]
[{"$f":"'Core Data'!A15","v":""},{"$f":"IF(B16=\"\",\"\",IF($C$3=TRUE,B16-2*$C$12,B16+2*$C$12))","v":100},{"$f":"'QC-1 Density Worksheet'!C18","v":""},null,null,"",null,null,"",null,null,"","","",null,null,null,null,"",{"$f":"IF(E18=\"\",\"\",ROUND(E18,1))","v":""},{"$f":"IF(H18=\"\",\"\",ROUND(H18,1))","v":""},{"$f":"IF(K18=\"\",\"\",ROUND(K18,1))","v":""},"",{"$error":"#N/A"},{"$error":"#N/A"},{"$error":"#N/A"},{"$error":"#N/A"},{"$error":"#N/A"},{"$error":"#N/A"},""]
[]
[{"$f":"'Core Data'!A19","v":""},{"$f":"IF(B22=\"\",\"\",IF($C$3=TRUE,B22+2*$C$12,B22-2*$C$12))","v":-100},{"$f":"'QC-1 Density Worksheet'!C20","v":""},null,null,"",null,null,"",null,null,"","","",null,null,null,null,"",{"$f":"IF(E20=\"\",\"\",ROUND(E20,1))","v":""},{"$f":"IF(H20=\"\",\"\",ROUND(H20,1))","v":""},{"$f":"IF(K20=\"\",\"\",ROUND(K20,1))","v":""},"",{"$error":"#N/A"},{"$error":"#N/A"},{"$error":"#N/A"},{"$error":"#N/A"},{"$error":"#N/A"},{"$error":"#N/A"},""]
[{"$f":"'Core Data'!A20","v":""},{"$f":"IF(B$16=\"\",\"\",IF($C$3=TRUE,B22+$C$12,B22-$C$12))","v":-50},{"$f":"'QC-1 Density Worksheet'!C21","v":""},null,null,"",null,null,"",null,null,"","","",null,null,null,null,"",{"$f":"IF(E21=\"\",\"\",ROUND(E21,1))","v":""},{"$f":"IF(H21=\"\",\"\",ROUND(H21,1))","v":""},{"$f":"IF(K21=\"\",\"\",ROUND(K21,1))","v":""},"",{"$error":"#N/A"},{"$error":"#N/A"},{"$error":"#N/A"},{"$error":"#N/A"},{"$error":"#N/A"},{"$error":"#N/A"},""]
[{"$f":"'Core Data'!A21","v":""},{"$f":"'Project Info & Instructions'!G27","v":0},{"$f":"'QC-1 Density Worksheet'!C22","v":""},null,null,"",null,null,"",null,null,"","","",null,null,null,null,"",{"$f":"IF(E22=\"\",\"\",ROUND(E22,1))","v":""},{"$f":"IF(H22=\"\",\"\",ROUND(H22,1))","v":""},{"$f":"IF(K22=\"\",\"\",ROUND(K22,1))","v":""},"",{"$error":"#N/A"},{"$error":"#N/A"},{"$error":"#N/A"},{"$error":"#N/A"},{"$error":"#N/A"},{"$error":"#N/A"},""]
[{"$f":"'Core Data'!A22","v":""},{"$f":"IF(B$16=\"\",\"\",IF($C$3=TRUE,B22-$C$12,B22+$C$12))","v":50},{"$f":"'QC-1 Density Worksheet'!C23","v":""},null,null,"",null,null,"",null,null,"","","",null,null,null,null,"",{"$f":"IF(E23=\"\",\"\",ROUND(E23,1))","v":""},{"$f":"IF(H23=\"\",\"\",ROUND(H23,1))","v":""},{"$f":"IF(K23=\"\",\"\",ROUND(K23,1))","v":""},"",{"$error":"#N/A"},{"$error":"#N/A"},{"$error":"#N/A"},{"$error":"#N/A"},{"$error":"#N/A"},{"$error":"#N/A"},""]
[{"$f":"'Core Data'!A23","v":""},{"$f":"IF(B22=\"\",\"\",IF($C$3=TRUE,B22-2*$C$12,B22+2*$C$12))","v":100},{"$f":"'QC-1 Density Worksheet'!C24","v":""},null,null,"",null,null,"",null,null,"","","",null,null,null,null,"",{"$f":"IF(E24=\"\",\"\",ROUND(E24,1))","v":""},{"$f":"IF(H24=\"\",\"\",ROUND(H24,1))","v":""},{"$f":"IF(K24=\"\",\"\",ROUND(K24,1))","v":""},"",{"$error":"#N/A"},{"$error":"#N/A"},{"$error":"#N/A"},{"$error":"#N/A"},{"$error":"#N/A"},{"$error":"#N/A"},""]
["Target Max Density = Gmm x 62.24                                                                                                                                                                                           Test Remarks"]

{"sheet":"QV-1 Density Worksheet","index":11,"n_rows":25,"n_cols":30,"rows_kept":25,"cut":false,"hidden":false,"merged":[[11,0,11,1],[1,8,1,9],[3,8,3,10],[4,8,4,10],[11,3,11,5],[11,6,11,8],[11,9,11,11],[5,0,5,6],[6,0,10,6],[2,0,2,1],[8,8,8,10],[4,1,4,3],[4,5,4,6],[3,12,3,14],[0,0,0,4],[1,0,1,4],[1,12,1,14],[2,12,2,14],[2,8,2,9],[3,1,3,3],[3,5,3,6],[4,12,4,14],[5,8,5,10],[5,12,5,14],[6,12,6,14],[7,8,7,10],[7,12,7,14],[8,12,8,14],[9,8,9,10],[9,12,9,14],[10,8,10,10],[10,12,10,14],[11,26,11,28],[11,29,12,29],[14,13,14,14],[12,13,12,14],[15,13,15,14],[11,12,11,14],[13,13,13,14],[11,18,12,18],[11,19,11,21],[11,22,11,25],[16,13,16,14],[17,13,17,14],[18,13,18,14],[19,13,19,14],[20,13,20,14],[24,0,24,14],[25,0,32,14],[21,13,21,14],[22,13,22,14],[23,13,23,14]]}
["PWL DENSITY DATA FORM (LANE FOOT)",null,null,null,null,{"$f":"'Project Info & Instructions'!A6","v":"Revised 5-01-25"}]
["               Nuclear HMA Density QC/QV Testing Records",null,null,null,null,{"$f":"CONCATENATE(\"TEST STRIP #\",'Project Info & Instructions'!C11)","v":"TEST STRIP #"},"QV-1","LAYER:",{"$f":"IF('Project Info & Instructions'!G16=\"\",\"\",'Project Info & Instructions'!G16)","v":""},null,null,"Density\nStandard:"]
["Station Decreasing:",null,{"$f":"'Project Info & Instructions'!R7","v":false},null,null,null,null,null,null,null,null,"Moisture\nStandard: "]
["Project ID:",{"$f":"IF('Project Info & Instructions'!C13=\"\",\"\",'Project Info & Instructions'!C13)","v":""},null,null,"Road Name:",{"$f":"IF('Project Info & Instructions'!C14=\"\",\"\",'Project Info & Instructions'!C14)","v":""},null,"Contractor:",{"$f":"IF('Project Info & Instructions'!G20=\"\",\"\",'Project Info & Instructions'!G20)","v":""},null,null,"Gauge Serial #:"]
["Project\nLeader:",{"$f":"IF('Project Info & Instructions'!G19=\"\",\"\",'Project Info & Instructions'!G19)","v":""},null,null,"County:",{"$f":"IF('Project Info & Instructions'!C15=\"\",\"\",'Project Info & Instructions'!C15)","v":""},null,"QC \nNUCDENSITYTEC:","N/A",null,null,"WisDOT Mix #:",{"$f":"IF('Project Info & Instructions'!C16=\"\",\"\",'Project Info & Instructions'!C16)","v":""}]
["TEST STRIP - Field Density Worksheet",null,null,null,null,null,null,"QV \nNUCDENSITYTEC:",null,null,null,"Mix Type:",{"$f":"IF('Project Info & Instructions'!C21=\"\",\"\",'Project Info & Instructions'!C21)","v":"--"}]
["• Offsets are predetermined according to the test strip layout in WisDOT's Manual of Test Procedures WTP H-002.\n• Gauge offset is set to ZERO since offsets will be determined from the test strip.\n• The Target Max Gmm is the average from the 3 split samples, except for a density only test strip, then it is the daily average Gmm from production.\n• Calculated per WisDOT's Manual of Test Procedures WTM T355.",null,null,null,null,null,null,"Start:",{"$f":"IF('Project Info & Instructions'!G14=\"\",\"\",'Project Info & Instructions'!G14)","v":""},"End:",{"$f":"IF('Project Info & Instructions'!I14=\"\",\"\",'Project Info & Instructions'!I14)","v":""},"Target Gmm:",{"$f":"IF('Project Info & Instructions'!R3=2,'Core Data'!I1,'Air Voids Pay Factor'!D11)","v":""}]
[null,null,null,null,null,null,null,"Length (ft):",{"$f":"IF(AND('Project Info & Instructions'!J15=\"\",'Project Info & Instructions'!G15=\"\"),\"\",IF(ISNUMBER('Project Info & Instructions'!J15),'Project Info & Instructions'!J15,'Project Info & Instructions'!G15))","v":""},null,null,"Target Max Density (PCF):",{"$f":"IF(M7=\"\",\"\",ROUND(M7*62.24,1))","v":""}]
[null,null,null,null,null,null,null,"Lane Width (ft):",{"$f":"IF('Project Info & Instructions'!G11=\"\",\"\",'Project Info & Instructions'!G11)","v":""},null,null,"Required\nDensity %:",{"$f":"IF('Project Info & Instructions'!G18=\"\",\"\",'Project Info & Instructions'!G18)","v":"Enter Mix and Layer Info"}]
[null,null,null,null,null,null,null,"Nominal \nThickness(in):",{"$f":"IF('Project Info & Instructions'!G12=\"\",\"\",'Project Info & Instructions'!G12)","v":""},null,null,"Date Placed:",{"$f":"IF('Project Info & Instructions'!C10=\"\",\"\",'Project Info & Instructions'!C10)","v":""}]
[null,null,null,null,null,null,null,"Gauge Offset","ZERO",null,null,"Date Tested:",{"$f":"IF('Project Info & Instructions'!C10=\"\",\"\",'Project Info & Instructions'!C10)","v":""}]
["Gauge/Core Spacing (ft)",null,{"$f":"INTERNAL_SYS_VAR!$C$4","v":50},"Reading 1",null,null,"Reading  2 (rotate 180)",null,null,"Reading  3 (if needed, original orientation)",null,null,"Final Density",null,null,null,null,null,"Lot/Sublot ID","Rounded Readings (0.1 pcf)",null,null,"Variation from Avg",null,null,null,"Filter Outlier",null,null,"Nuc Avg Excluding Outlier (pcf)"]
["Lot / Sub Lot ID","Station","Offset from CL","M Count / \nD Count","Wet Density 1             ","% Max Density 1","M Count / \nD Count","Wet Density 2            ","% Max Density 2","M Count / \nD Count","Wet Density 3             ","% Max Density 3","Average PCF","% Max Density",null,null,null,null,null,"Reading 1","Reading 2","Reading 3","Rounded Average of Readings (pcf)","Reading 1","Reading 2","Reading 3","Read 1","Read 2","Read 3"]
[{"$f":"'Core Data'!A11","v":""},{"$f":"IF(B16=\"\",\"\",IF($C$3=TRUE,B16+2*$C$12,B16-2*$C$12))","v":-100},{"$f":"'QC-1 Density Worksheet'!C14","v":""},null,null,{"$f":"IF(E14=\"\",\"\",ROUND((T14/$M$8),3))","v":""},null,null,{"$f":"IF(H14=\"\",\"\",ROUND((U14/$M$8),3))","v":""},null,null,{"$f":"IF(K14=\"\",\"\",ROUND((V14/$M$8),3))","v":""},{"$f":"IF(F14=\"\",\"\",AD14)","v":""},{"$f":"IF(F14=\"\",\"\",ROUND((M14/$M$8),3))","v":""},null,null,null,null,{"$f":"A14","v":""},{"$f":"IF(E14=\"\",\"\",ROUND(E14,1))","v":""},{"$f":"IF(H14=\"\",\"\",ROUND(H14,1))","v":""},{"$f":"IF(K14=\"\",\"\",ROUND(K14,1))","v":""},{"$f":"IFERROR(IF(ROUND(ABS(T14-U14),1)>1,ROUND(AVERAGE(T14:V14),1),ROUND(AVERAGE(T14:U14),1)),\"\")","v":""},{"$f":"IFERROR(ABS(ROUND(W14-T14,1)),NA())","v":{"$error":"#N/A"}},{"$f":"IFERROR(ABS(ROUND(W14-U14,1)),NA())","v":{"$error":"#N/A"}},{"$f":"IFERROR(ABS(ROUND(W14-V14,1)),NA())","v":{"$error":"#N/A"}},{"$f":"IF(X14=_xlfn.AGGREGATE(4,6,X14:Z14),0,T14)","v":{"$error":"#N/A"}},{"$f":"IF(Y14=_xlfn.AGGREGATE(4,6,X14:Z14),0,U14)","v":{"$error":"#N/A"}},{"$f":"IF(Z14=_xlfn.AGGREGATE(4,6,X14:Z14),0,V14)","v":{"$error":"#N/A"}},{"$f":"IFERROR(IF(OR(COUNT(T14:V14)<3,ROUND(ABS(T14-U14),1)<=1),ROUND(W14,1),IF(AND(COUNT(T14:V14)=3,OR(T14=W14,U14=W14,V14=W14)),ROUND(W14,1),IF(COUNTIF(AA14:AC14,\"=0\")=2,ROUND(W14,1),ROUND(AVERAGEIF(AA14:AC14,\">0\"),1)))),\"\")","v":""}]
[{"$f":"'Core Data'!A12","v":""},{"$f":"IF(B$16=\"\",\"\",IF($C$3=TRUE,B16+$C$12,B16-$C$12))","v":-50},{"$f":"'QC-1 Density Worksheet'!C15","v":""},null,null,{"$f":"IF(E15=\"\",\"\",ROUND((T15/$M$8),3))","v":""},null,null,{"$f":"IF(H15=\"\",\"\",ROUND((U15/$M$8),3))","v":""},null,null,{"$f":"IF(K15=\"\",\"\",ROUND((V15/$M$8),3))","v":""},{"$f":"IF(F15=\"\",\"\",AD15)","v":""},{"$f":"IF(F15=\"\",\"\",ROUND((M15/$M$8),3))","v":""},null,null,null,null,{"$f":"A15","v":""},{"$f":"IF(E15=\"\",\"\",ROUND(E15,1))","v":""},{"$f":"IF(H15=\"\",\"\",ROUND(H15,1))","v":""},{"$f":"IF(K15=\"\",\"\",ROUND(K15,1))","v":""},{"$f":"IFERROR(IF(ROUND(ABS(T15-U15),1)>1,ROUND(AVERAGE(T15:V15),1),ROUND(AVERAGE(T15:U15),1)),\"\")","v":""},{"$f":"IFERROR(ABS(ROUND(W15-T15,1)),NA())","v":{"$error":"#N/A"}},{"$f":"IFERROR(ABS(ROUND(W15-U15,1)),NA())","v":{"$error":"#N/A"}},{"$f":"IFERROR(ABS(ROUND(W15-V15,1)),NA())","v":{"$error":"#N/A"}},{"$f":"IF(X15=_xlfn.AGGREGATE(4,6,X15:Z15),0,T15)","v":{"$error":"#N/A"}},{"$f":"IF(Y15=_xlfn.AGGREGATE(4,6,X15:Z15),0,U15)","v":{"$error":"#N/A"}},{"$f":"IF(Z15=_xlfn.AGGREGATE(4,6,X15:Z15),0,V15)","v":{"$error":"#N/A"}},{"$f":"IFERROR(IF(OR(COUNT(T15:V15)<3,ROUND(ABS(T15-U15),1)<=1),ROUND(W15,1),IF(AND(COUNT(T15:V15)=3,OR(T15=W15,U15=W15,V15=W15)),ROUND(W15,1),IF(COUNTIF(AA15:AC15,\"=0\")=2,ROUND(W15,1),ROUND(AVERAGEIF(AA15:AC15,\">0\"),1)))),\"\")","v":""}]
[{"$f":"'Core Data'!A13","v":""},{"$f":"'Project Info & Instructions'!G26","v":0},{"$f":"'QC-1 Density Worksheet'!C16","v":""},null,null,"",null,null,"",null,null,"","","",null,null,null,null,"",{"$f":"IF(E16=\"\",\"\",ROUND(E16,1))","v":""},{"$f":"IF(H16=\"\",\"\",ROUND(H16,1))","v":""},{"$f":"IF(K16=\"\",\"\",ROUND(K16,1))","v":""},"",{"$error":"#N/A"},{"$error":"#N/A"},{"$error":"#N/A"},{"$error":"#N/A"},{"$error":"#N/A"},{"$error":"#N/A"},""]
[{"$f":"'Core Data'!A14","v":""},{"$f":"IF(B$16=\"\",\"\",IF($C$3=TRUE,B16-$C$12,B16+$C$12))","v":50},{"$f":"'QC-1 Density Worksheet'!C17","v":""},null,null,"",null,null,"",null,null,"","","",null,null,null,null,"",{"$f":"IF(E17=\"\",\"\",ROUND(E17,1))","v":""},{"$f":"IF(H17=\"\",\"\",ROUND(H17,1))","v":""},{"$f":"IF(K17=\"\",\"\",ROUND(K17,1))","v":""},"",{"$error":"#N/A"},{"$error":"#N/A"},{"$error":"#N/A"},{"$error":"#N/A"},{"$error":"#N/A"},{"$error":"#N/A"},""]
[{"$f":"'Core Data'!A15","v":""},{"$f":"IF(B16=\"\",\"\",IF($C$3=TRUE,B16-2*$C$12,B16+2*$C$12))","v":100},{"$f":"'QC-1 Density Worksheet'!C18","v":""},null,null,"",null,null,"",null,null,"","","",null,null,null,null,"",{"$f":"IF(E18=\"\",\"\",ROUND(E18,1))","v":""},{"$f":"IF(H18=\"\",\"\",ROUND(H18,1))","v":""},{"$f":"IF(K18=\"\",\"\",ROUND(K18,1))","v":""},"",{"$error":"#N/A"},{"$error":"#N/A"},{"$error":"#N/A"},{"$error":"#N/A"},{"$error":"#N/A"},{"$error":"#N/A"},""]
[]
[{"$f":"'Core Data'!A19","v":""},{"$f":"IF(B22=\"\",\"\",IF($C$3=TRUE,B22+2*$C$12,B22-2*$C$12))","v":-100},{"$f":"'QC-1 Density Worksheet'!C20","v":""},null,null,"",null,null,"",null,null,"","","",null,null,null,null,"",{"$f":"IF(E20=\"\",\"\",ROUND(E20,1))","v":""},{"$f":"IF(H20=\"\",\"\",ROUND(H20,1))","v":""},{"$f":"IF(K20=\"\",\"\",ROUND(K20,1))","v":""},"",{"$error":"#N/A"},{"$error":"#N/A"},{"$error":"#N/A"},{"$error":"#N/A"},{"$error":"#N/A"},{"$error":"#N/A"},""]
[{"$f":"'Core Data'!A20","v":""},{"$f":"IF(B$16=\"\",\"\",IF($C$3=TRUE,B22+$C$12,B22-$C$12))","v":-50},{"$f":"'QC-1 Density Worksheet'!C21","v":""},null,null,"",null,null,"",null,null,"","","",null,null,null,null,"",{"$f":"IF(E21=\"\",\"\",ROUND(E21,1))","v":""},{"$f":"IF(H21=\"\",\"\",ROUND(H21,1))","v":""},{"$f":"IF(K21=\"\",\"\",ROUND(K21,1))","v":""},"",{"$error":"#N/A"},{"$error":"#N/A"},{"$error":"#N/A"},{"$error":"#N/A"},{"$error":"#N/A"},{"$error":"#N/A"},""]
[{"$f":"'Core Data'!A21","v":""},{"$f":"'Project Info & Instructions'!G27","v":0},{"$f":"'QC-1 Density Worksheet'!C22","v":""},null,null,"",null,null,"",null,null,"","","",null,null,null,null,"",{"$f":"IF(E22=\"\",\"\",ROUND(E22,1))","v":""},{"$f":"IF(H22=\"\",\"\",ROUND(H22,1))","v":""},{"$f":"IF(K22=\"\",\"\",ROUND(K22,1))","v":""},"",{"$error":"#N/A"},{"$error":"#N/A"},{"$error":"#N/A"},{"$error":"#N/A"},{"$error":"#N/A"},{"$error":"#N/A"},""]
[{"$f":"'Core Data'!A22","v":""},{"$f":"IF(B$16=\"\",\"\",IF($C$3=TRUE,B22-$C$12,B22+$C$12))","v":50},{"$f":"'QC-1 Density Worksheet'!C23","v":""},null,null,"",null,null,"",null,null,"","","",null,null,null,null,"",{"$f":"IF(E23=\"\",\"\",ROUND(E23,1))","v":""},{"$f":"IF(H23=\"\",\"\",ROUND(H23,1))","v":""},{"$f":"IF(K23=\"\",\"\",ROUND(K23,1))","v":""},"",{"$error":"#N/A"},{"$error":"#N/A"},{"$error":"#N/A"},{"$error":"#N/A"},{"$error":"#N/A"},{"$error":"#N/A"},""]
[{"$f":"'Core Data'!A23","v":""},{"$f":"IF(B22=\"\",\"\",IF($C$3=TRUE,B22-2*$C$12,B22+2*$C$12))","v":100},{"$f":"'QC-1 Density Worksheet'!C24","v":""},null,null,"",null,null,"",null,null,"","","",null,null,null,null,"",{"$f":"IF(E24=\"\",\"\",ROUND(E24,1))","v":""},{"$f":"IF(H24=\"\",\"\",ROUND(H24,1))","v":""},{"$f":"IF(K24=\"\",\"\",ROUND(K24,1))","v":""},"",{"$error":"#N/A"},{"$error":"#N/A"},{"$error":"#N/A"},{"$error":"#N/A"},{"$error":"#N/A"},{"$error":"#N/A"},""]
["Target Max Density = Gmm x 62.24                                                                                                                                                                                           Test Remarks"]

{"sheet":"QV-2 Density Worksheet","index":12,"n_rows":25,"n_cols":30,"rows_kept":25,"cut":false,"hidden":false,"merged":[[11,0,11,1],[1,8,1,9],[3,8,3,10],[4,8,4,10],[11,3,11,5],[11,6,11,8],[11,9,11,11],[5,0,5,6],[6,0,10,6],[2,0,2,1],[8,8,8,10],[4,1,4,3],[4,5,4,6],[3,12,3,14],[0,0,0,4],[1,0,1,4],[1,12,1,14],[2,12,2,14],[2,8,2,9],[3,1,3,3],[3,5,3,6],[4,12,4,14],[5,8,5,10],[5,12,5,14],[6,12,6,14],[7,8,7,10],[7,12,7,14],[8,12,8,14],[9,8,9,10],[9,12,9,14],[10,8,10,10],[10,12,10,14],[11,26,11,28],[11,29,12,29],[14,13,14,14],[12,13,12,14],[15,13,15,14],[11,12,11,14],[13,13,13,14],[11,18,12,18],[11,19,11,21],[11,22,11,25],[16,13,16,14],[17,13,17,14],[18,13,18,14],[19,13,19,14],[20,13,20,14],[24,0,24,14],[25,0,32,14],[21,13,21,14],[22,13,22,14],[23,13,23,14]]}
["PWL DENSITY DATA FORM (LANE FOOT)",null,null,null,null,{"$f":"'Project Info & Instructions'!A6","v":"Revised 5-01-25"}]
["               Nuclear HMA Density QC/QV Testing Records",null,null,null,null,{"$f":"CONCATENATE(\"TEST STRIP #\",'Project Info & Instructions'!C11)","v":"TEST STRIP #"},"QV-2","LAYER:",{"$f":"IF('Project Info & Instructions'!G16=\"\",\"\",'Project Info & Instructions'!G16)","v":""},null,null,"Density\nStandard:"]
["Station Decreasing:",null,{"$f":"'Project Info & Instructions'!R7","v":false},null,null,null,null,null,null,null,null,"Moisture\nStandard: "]
["Project ID:",{"$f":"IF('Project Info & Instructions'!C13=\"\",\"\",'Project Info & Instructions'!C13)","v":""},null,null,"Road Name:",{"$f":"IF('Project Info & Instructions'!C14=\"\",\"\",'Project Info & Instructions'!C14)","v":""},null,"Contractor:",{"$f":"IF('Project Info & Instructions'!G20=\"\",\"\",'Project Info & Instructions'!G20)","v":""},null,null,"Gauge Serial #:"]
["Project\nLeader:",{"$f":"IF('Project Info & Instructions'!G19=\"\",\"\",'Project Info & Instructions'!G19)","v":""},null,null,"County:",{"$f":"IF('Project Info & Instructions'!C15=\"\",\"\",'Project Info & Instructions'!C15)","v":""},null,"QC \nNUCDENSITYTEC:","N/A",null,null,"WisDOT Mix #:",{"$f":"IF('Project Info & Instructions'!C16=\"\",\"\",'Project Info & Instructions'!C16)","v":""}]
["TEST STRIP - Field Density Worksheet",null,null,null,null,null,null,"QV \nNUCDENSITYTEC:",null,null,null,"Mix Type:",{"$f":"IF('Project Info & Instructions'!C21=\"\",\"\",'Project Info & Instructions'!C21)","v":"--"}]
["• Offsets are predetermined according to the test strip layout in WisDOT's Manual of Test Procedures WTP H-002.\n• Gauge offset is set to ZERO since offsets will be determined from the test strip.\n• The Target Max Gmm is the average from the 3 split samples, except for a density only test strip, then it is the daily average Gmm from production.\n• Calculated per WisDOT's Manual of Test Procedures WTM T355.",null,null,null,null,null,null,"Start:",{"$f":"IF('Project Info & Instructions'!G14=\"\",\"\",'Project Info & Instructions'!G14)","v":""},"End:",{"$f":"IF('Project Info & Instructions'!I14=\"\",\"\",'Project Info & Instructions'!I14)","v":""},"Target Gmm:",{"$f":"IF('Project Info & Instructions'!R3=2,'Core Data'!I1,'Air Voids Pay Factor'!D11)","v":""}]
[null,null,null,null,null,null,null,"Length (ft):",{"$f":"IF(AND('Project Info & Instructions'!J15=\"\",'Project Info & Instructions'!G15=\"\"),\"\",IF(ISNUMBER('Project Info & Instructions'!J15),'Project Info & Instructions'!J15,'Project Info & Instructions'!G15))","v":""},null,null,"Target Max Density (PCF):",{"$f":"IF(M7=\"\",\"\",ROUND(M7*62.24,1))","v":""}]
[null,null,null,null,null,null,null,"Lane Width (ft):",{"$f":"IF('Project Info & Instructions'!G11=\"\",\"\",'Project Info & Instructions'!G11)","v":""},null,null,"Required\nDensity %:",{"$f":"IF('Project Info & Instructions'!G18=\"\",\"\",'Project Info & Instructions'!G18)","v":"Enter Mix and Layer Info"}]
[null,null,null,null,null,null,null,"Nominal \nThickness(in):",{"$f":"IF('Project Info & Instructions'!G12=\"\",\"\",'Project Info & Instructions'!G12)","v":""},null,null,"Date Placed:",{"$f":"IF('Project Info & Instructions'!C10=\"\",\"\",'Project Info & Instructions'!C10)","v":""}]
[null,null,null,null,null,null,null,"Gauge Offset","ZERO",null,null,"Date Tested:",{"$f":"IF('Project Info & Instructions'!C10=\"\",\"\",'Project Info & Instructions'!C10)","v":""}]
["Gauge/Core Spacing (ft)",null,{"$f":"INTERNAL_SYS_VAR!C4","v":50},"Reading 1",null,null,"Reading  2 (rotate 180)",null,null,"Reading  3 (if needed, original orientation)",null,null,"Final Density",null,null,null,null,null,"Lot/Sublot ID","Rounded Readings (0.1 pcf)",null,null,"Variation from Avg",null,null,null,"Filter Outlier",null,null,"Nuc Avg Excluding Outlier (pcf)"]
["Lot / Sub Lot ID","Station","Offset from CL","M Count / \nD Count","Wet Density 1             ","% Max Density 1","M Count / \nD Count","Wet Density 2            ","% Max Density 2","M Count / \nD Count","Wet Density 3             ","% Max Density 3","Average PCF","% Max Density",null,null,null,null,null,"Reading 1","Reading 2","Reading 3","Rounded Average of Readings (pcf)","Reading 1","Reading 2","Reading 3","Read 1","Read 2","Read 3"]
[{"$f":"'Core Data'!A11","v":""},{"$f":"IF(B16=\"\",\"\",IF($C$3=TRUE,B16+2*$C$12,B16-2*$C$12))","v":-100},{"$f":"'QC-1 Density Worksheet'!C14","v":""},null,null,{"$f":"IF(E14=\"\",\"\",ROUND((T14/$M$8),3))","v":""},null,null,{"$f":"IF(H14=\"\",\"\",ROUND((U14/$M$8),3))","v":""},null,null,{"$f":"IF(K14=\"\",\"\",ROUND((V14/$M$8),3))","v":""},{"$f":"IF(F14=\"\",\"\",AD14)","v":""},{"$f":"IF(F14=\"\",\"\",ROUND((M14/$M$8),3))","v":""},null,null,null,null,{"$f":"A14","v":""},{"$f":"IF(E14=\"\",\"\",ROUND(E14,1))","v":""},{"$f":"IF(H14=\"\",\"\",ROUND(H14,1))","v":""},{"$f":"IF(K14=\"\",\"\",ROUND(K14,1))","v":""},{"$f":"IFERROR(IF(ROUND(ABS(T14-U14),1)>1,ROUND(AVERAGE(T14:V14),1),ROUND(AVERAGE(T14:U14),1)),\"\")","v":""},{"$f":"IFERROR(ABS(ROUND(W14-T14,1)),NA())","v":{"$error":"#N/A"}},{"$f":"IFERROR(ABS(ROUND(W14-U14,1)),NA())","v":{"$error":"#N/A"}},{"$f":"IFERROR(ABS(ROUND(W14-V14,1)),NA())","v":{"$error":"#N/A"}},{"$f":"IF(X14=_xlfn.AGGREGATE(4,6,X14:Z14),0,T14)","v":{"$error":"#N/A"}},{"$f":"IF(Y14=_xlfn.AGGREGATE(4,6,X14:Z14),0,U14)","v":{"$error":"#N/A"}},{"$f":"IF(Z14=_xlfn.AGGREGATE(4,6,X14:Z14),0,V14)","v":{"$error":"#N/A"}},{"$f":"IFERROR(IF(OR(COUNT(T14:V14)<3,ROUND(ABS(T14-U14),1)<=1),ROUND(W14,1),IF(AND(COUNT(T14:V14)=3,OR(T14=W14,U14=W14,V14=W14)),ROUND(W14,1),IF(COUNTIF(AA14:AC14,\"=0\")=2,ROUND(W14,1),ROUND(AVERAGEIF(AA14:AC14,\">0\"),1)))),\"\")","v":""}]
[{"$f":"'Core Data'!A12","v":""},{"$f":"IF(B$16=\"\",\"\",IF($C$3=TRUE,B16+$C$12,B16-$C$12))","v":-50},{"$f":"'QC-1 Density Worksheet'!C15","v":""},null,null,{"$f":"IF(E15=\"\",\"\",ROUND((T15/$M$8),3))","v":""},null,null,{"$f":"IF(H15=\"\",\"\",ROUND((U15/$M$8),3))","v":""},null,null,{"$f":"IF(K15=\"\",\"\",ROUND((V15/$M$8),3))","v":""},{"$f":"IF(F15=\"\",\"\",AD15)","v":""},{"$f":"IF(F15=\"\",\"\",ROUND((M15/$M$8),3))","v":""},null,null,null,null,{"$f":"A15","v":""},{"$f":"IF(E15=\"\",\"\",ROUND(E15,1))","v":""},{"$f":"IF(H15=\"\",\"\",ROUND(H15,1))","v":""},{"$f":"IF(K15=\"\",\"\",ROUND(K15,1))","v":""},{"$f":"IFERROR(IF(ROUND(ABS(T15-U15),1)>1,ROUND(AVERAGE(T15:V15),1),ROUND(AVERAGE(T15:U15),1)),\"\")","v":""},{"$f":"IFERROR(ABS(ROUND(W15-T15,1)),NA())","v":{"$error":"#N/A"}},{"$f":"IFERROR(ABS(ROUND(W15-U15,1)),NA())","v":{"$error":"#N/A"}},{"$f":"IFERROR(ABS(ROUND(W15-V15,1)),NA())","v":{"$error":"#N/A"}},{"$f":"IF(X15=_xlfn.AGGREGATE(4,6,X15:Z15),0,T15)","v":{"$error":"#N/A"}},{"$f":"IF(Y15=_xlfn.AGGREGATE(4,6,X15:Z15),0,U15)","v":{"$error":"#N/A"}},{"$f":"IF(Z15=_xlfn.AGGREGATE(4,6,X15:Z15),0,V15)","v":{"$error":"#N/A"}},{"$f":"IFERROR(IF(OR(COUNT(T15:V15)<3,ROUND(ABS(T15-U15),1)<=1),ROUND(W15,1),IF(AND(COUNT(T15:V15)=3,OR(T15=W15,U15=W15,V15=W15)),ROUND(W15,1),IF(COUNTIF(AA15:AC15,\"=0\")=2,ROUND(W15,1),ROUND(AVERAGEIF(AA15:AC15,\">0\"),1)))),\"\")","v":""}]
[{"$f":"'Core Data'!A13","v":""},{"$f":"'Project Info & Instructions'!G26","v":0},{"$f":"'QC-1 Density Worksheet'!C16","v":""},null,null,"",null,null,"",null,null,"","","",null,null,null,null,"",{"$f":"IF(E16=\"\",\"\",ROUND(E16,1))","v":""},{"$f":"IF(H16=\"\",\"\",ROUND(H16,1))","v":""},{"$f":"IF(K16=\"\",\"\",ROUND(K16,1))","v":""},"",{"$error":"#N/A"},{"$error":"#N/A"},{"$error":"#N/A"},{"$error":"#N/A"},{"$error":"#N/A"},{"$error":"#N/A"},""]
[{"$f":"'Core Data'!A14","v":""},{"$f":"IF(B$16=\"\",\"\",IF($C$3=TRUE,B16-$C$12,B16+$C$12))","v":50},{"$f":"'QC-1 Density Worksheet'!C17","v":""},null,null,"",null,null,"",null,null,"","","",null,null,null,null,"",{"$f":"IF(E17=\"\",\"\",ROUND(E17,1))","v":""},{"$f":"IF(H17=\"\",\"\",ROUND(H17,1))","v":""},{"$f":"IF(K17=\"\",\"\",ROUND(K17,1))","v":""},"",{"$error":"#N/A"},{"$error":"#N/A"},{"$error":"#N/A"},{"$error":"#N/A"},{"$error":"#N/A"},{"$error":"#N/A"},""]
[{"$f":"'Core Data'!A15","v":""},{"$f":"IF(B16=\"\",\"\",IF($C$3=TRUE,B16-2*$C$12,B16+2*$C$12))","v":100},{"$f":"'QC-1 Density Worksheet'!C18","v":""},null,null,"",null,null,"",null,null,"","","",null,null,null,null,"",{"$f":"IF(E18=\"\",\"\",ROUND(E18,1))","v":""},{"$f":"IF(H18=\"\",\"\",ROUND(H18,1))","v":""},{"$f":"IF(K18=\"\",\"\",ROUND(K18,1))","v":""},"",{"$error":"#N/A"},{"$error":"#N/A"},{"$error":"#N/A"},{"$error":"#N/A"},{"$error":"#N/A"},{"$error":"#N/A"},""]
[]
[{"$f":"'Core Data'!A19","v":""},{"$f":"IF(B22=\"\",\"\",IF($C$3=TRUE,B22+2*$C$12,B22-2*$C$12))","v":-100},{"$f":"'QC-1 Density Worksheet'!C20","v":""},null,null,"",null,null,"",null,null,"","",{"$f":"IF(F20=\"\",\"\",ROUND((M20/$M$8),3))","v":""},null,null,null,null,"",{"$f":"IF(E20=\"\",\"\",ROUND(E20,1))","v":""},{"$f":"IF(H20=\"\",\"\",ROUND(H20,1))","v":""},{"$f":"IF(K20=\"\",\"\",ROUND(K20,1))","v":""},"",{"$error":"#N/A"},{"$error":"#N/A"},{"$error":"#N/A"},{"$error":"#N/A"},{"$error":"#N/A"},{"$error":"#N/A"},""]
[{"$f":"'Core Data'!A20","v":""},{"$f":"IF(B$16=\"\",\"\",IF($C$3=TRUE,B22+$C$12,B22-$C$12))","v":-50},{"$f":"'QC-1 Density Worksheet'!C21","v":""},null,null,"",null,null,"",null,null,"","","",null,null,null,null,"",{"$f":"IF(E21=\"\",\"\",ROUND(E21,1))","v":""},{"$f":"IF(H21=\"\",\"\",ROUND(H21,1))","v":""},{"$f":"IF(K21=\"\",\"\",ROUND(K21,1))","v":""},"",{"$error":"#N/A"},{"$error":"#N/A"},{"$error":"#N/A"},{"$error":"#N/A"},{"$error":"#N/A"},{"$error":"#N/A"},""]
[{"$f":"'Core Data'!A21","v":""},{"$f":"'Project Info & Instructions'!G27","v":0},{"$f":"'QC-1 Density Worksheet'!C22","v":""},null,null,"",null,null,"",null,null,"","","",null,null,null,null,"",{"$f":"IF(E22=\"\",\"\",ROUND(E22,1))","v":""},{"$f":"IF(H22=\"\",\"\",ROUND(H22,1))","v":""},{"$f":"IF(K22=\"\",\"\",ROUND(K22,1))","v":""},"",{"$error":"#N/A"},{"$error":"#N/A"},{"$error":"#N/A"},{"$error":"#N/A"},{"$error":"#N/A"},{"$error":"#N/A"},""]
[{"$f":"'Core Data'!A22","v":""},{"$f":"IF(B$16=\"\",\"\",IF($C$3=TRUE,B22-$C$12,B22+$C$12))","v":50},{"$f":"'QC-1 Density Worksheet'!C23","v":""},null,null,"",null,null,"",null,null,"","","",null,null,null,null,"",{"$f":"IF(E23=\"\",\"\",ROUND(E23,1))","v":""},{"$f":"IF(H23=\"\",\"\",ROUND(H23,1))","v":""},{"$f":"IF(K23=\"\",\"\",ROUND(K23,1))","v":""},"",{"$error":"#N/A"},{"$error":"#N/A"},{"$error":"#N/A"},{"$error":"#N/A"},{"$error":"#N/A"},{"$error":"#N/A"},""]
[{"$f":"'Core Data'!A23","v":""},{"$f":"IF(B22=\"\",\"\",IF($C$3=TRUE,B22-2*$C$12,B22+2*$C$12))","v":100},{"$f":"'QC-1 Density Worksheet'!C24","v":""},null,null,"",null,null,"",null,null,"","","",null,null,null,null,"",{"$f":"IF(E24=\"\",\"\",ROUND(E24,1))","v":""},{"$f":"IF(H24=\"\",\"\",ROUND(H24,1))","v":""},{"$f":"IF(K24=\"\",\"\",ROUND(K24,1))","v":""},"",{"$error":"#N/A"},{"$error":"#N/A"},{"$error":"#N/A"},{"$error":"#N/A"},{"$error":"#N/A"},{"$error":"#N/A"},""]
["Target Max Density = Gmm x 62.24                                                                                                                                                                                           Test Remarks"]

{"sheet":"QC-1 Correlation","index":13,"n_rows":42,"n_cols":30,"rows_kept":42,"cut":false,"hidden":false,"merged":[[40,10,40,11],[1,25,1,26],[1,28,1,29],[21,1,21,3],[31,1,31,3],[40,16,40,19],[6,3,6,8],[41,16,41,19],[21,16,21,19],[1,22,1,23],[22,22,22,27],[21,4,21,6],[9,2,9,4],[10,2,10,4],[18,2,18,4],[15,2,15,8],[17,2,17,4],[11,7,11,8],[12,7,12,8],[14,7,14,8],[13,7,13,8],[9,7,9,8],[0,3,4,8],[37,36,39,38],[31,4,31,6],[14,2,14,4],[10,7,10,8],[8,2,8,4],[11,2,11,4],[12,2,12,4],[13,2,13,4],[8,7,8,8]]}
[null,null,null,"Wisconsin Department \nof Transportation "]
[null,null,null,null,null,null,null,null,null,null,null,null,null,null,null,null,null,null,null,null,null,null,"Worksheet Variables",null,null,"Graph Points",null,null,"R-Squared Calculation"]
[null,null,null,null,null,null,null,null,null,null,null,null,null,null,null,null,null,null,null,null,null,null,"Core 1 Removed:",{"$f":"IF('Core Data'!AD4=TRUE,TRUE,FALSE)","v":false},null,"Nuclear","Core",null,"Nuclear","Core"]
[null,null,null,null,null,null,null,null,null,null,null,null,null,null,null,null,null,null,null,null,null,null,"Core 2 Removed:",{"$f":"IF('Core Data'!AD5=TRUE,TRUE,FALSE)","v":false},null,{"$f":"IF(M25=\"\",#N/A,M25)","v":{"$error":"#N/A"}},{"$f":"IF(O25=\"\",#N/A,O25)","v":{"$error":"#N/A"}},null,{"$f":"IF(ISNUMBER(Z4),Z4,\"\")","v":""},{"$f":"IF(ISNUMBER(AA4),AA4,\"\")","v":""}]
[null,null,null,null,null,null,null,null,null,null,null,null,null,null,null,null,null,null,null,null,null,null,"Core 3 Removed:",{"$f":"IF('Core Data'!AD6=TRUE,TRUE,FALSE)","v":false},null,{"$f":"IF(M26=\"\",#N/A,M26)","v":{"$error":"#N/A"}},{"$f":"IF(O26=\"\",#N/A,O26)","v":{"$error":"#N/A"}},null,"",""]
[null,{"$f":"'Project Info & Instructions'!A6","v":"Revised 5-01-25"},null,null,null,null,null,null,null,null,null,null,null,null,null,null,null,null,null,null,null,null,"Core 4 Removed:",{"$f":"IF('Core Data'!AD7=TRUE,TRUE,FALSE)","v":false},null,{"$f":"IF(M27=\"\",#N/A,M27)","v":{"$error":"#N/A"}},{"$f":"IF(O27=\"\",#N/A,O27)","v":{"$error":"#N/A"}},null,"",""]
[null,null,null,"Nuclear / Core Correlation Worksheet",null,null,null,null,null,null,null,null,null,null,null,null,null,null,null,null,null,null,"Core 5 Removed:",{"$f":"IF('Core Data'!AD8=TRUE,TRUE,FALSE)","v":false},null,{"$f":"IF(M28=\"\",#N/A,M28)","v":{"$error":"#N/A"}},{"$f":"IF(O28=\"\",#N/A,O28)","v":{"$error":"#N/A"}},null,"",""]
[null,null,null,null,null,null,null,null,null,null,null,null,null,null,null,null,null,null,null,null,null,null,"Core 6 Removed:",{"$f":"IF('Core Data'!AD9=TRUE,TRUE,FALSE)","v":false},null,{"$f":"IF(M29=\"\",#N/A,M29)","v":{"$error":"#N/A"}},{"$f":"IF(O29=\"\",#N/A,O29)","v":{"$error":"#N/A"}},null,"",""]
[null,"Date:",{"$f":"IF('Project Info & Instructions'!C10=\"\",\"\",'Project Info & Instructions'!C10)","v":""},null,null,null,"Test Strip #:",{"$f":"IF('Project Info & Instructions'!C11=\"\",\"\",'Project Info & Instructions'!C11)","v":""},null,null,null,null,null,null,null,null,null,null,null,null,null,null,"Core 7 Removed:",{"$f":"IF('Core Data'!AD10=TRUE,TRUE,FALSE)","v":false},null,{"$f":"IF(M35=\"\",#N/A,M35)","v":{"$error":"#N/A"}},{"$f":"IF(O35=\"\",#N/A,O35)","v":{"$error":"#N/A"}},null,"",""]
[null,"Contract:",{"$f":"IF('Project Info & Instructions'!C12=\"\",\"\",'Project Info & Instructions'!C12)","v":""},null,null,null,"Layer:",{"$f":"IF('Project Info & Instructions'!G16=\"\",\"\",'Project Info & Instructions'!G16)","v":""},null,null,null,null,null,null,null,null,null,null,null,null,null,null,"Core 8 Removed:",{"$f":"IF('Core Data'!AD11=TRUE,TRUE,FALSE)","v":false},null,{"$f":"IF(M36=\"\",#N/A,M36)","v":{"$error":"#N/A"}},{"$f":"IF(O36=\"\",#N/A,O36)","v":{"$error":"#N/A"}},null,"",""]
[null,"Job No.:",{"$f":"IF('Project Info & Instructions'!C13=\"\",\"\",'Project Info & Instructions'!C13)","v":""},null,null,null,"Mixture Type:",{"$f":"IF('Project Info & Instructions'!C21=\"\",\"\",'Project Info & Instructions'!C21)","v":"--"},null,null,null,null,null,null,null,null,null,null,null,null,null,null,"Core 9 Removed:",{"$f":"IF('Core Data'!AD12=TRUE,TRUE,FALSE)","v":false},null,{"$f":"IF(M37=\"\",#N/A,M37)","v":{"$error":"#N/A"}},{"$f":"IF(O37=\"\",#N/A,O37)","v":{"$error":"#N/A"}},null,"",""]
[null,"Route:",{"$f":"IF('Project Info & Instructions'!C14=\"\",\"\",'Project Info & Instructions'!C14)","v":""},null,null,null,null,null,null,null,null,null,null,null,null,null,null,null,null,null,null,null,"Core 10 Removed:",{"$f":"IF('Core Data'!AD13=TRUE,TRUE,FALSE)","v":false},null,{"$f":"IF(M38=\"\",#N/A,M38)","v":{"$error":"#N/A"}},{"$f":"IF(O38=\"\",#N/A,O38)","v":{"$error":"#N/A"}},null,"",""]
[null,"Underlying Matl.:",{"$f":"IF('Project Info & Instructions'!G17=\"\",\"\",'Project Info & Instructions'!G17)","v":""},null,null,null,"Layer Thickness:",{"$f":"IF('Project Info & Instructions'!G12=\"\",\"\",'Project Info & Instructions'!G12)","v":""},null,null,null,null,null,null,null,null,null,null,null,null,null,null,null,null,null,{"$f":"IF(M39=\"\",#N/A,M39)","v":{"$error":"#N/A"}},{"$f":"IF(O39=\"\",#N/A,O39)","v":{"$error":"#N/A"}},null,"",""]
[null,"WisDOT Mix No.:",{"$f":"IF('Project Info & Instructions'!C16=\"\",\"\",'Project Info & Instructions'!C16)","v":""},null,null,null,"Gmm:",{"$f":"IF('Project Info & Instructions'!R3=2,'Core Data'!I1,'Air Voids Pay Factor'!D11)","v":""}]
[null,"Mix Type:",{"$f":"IF('Project Info & Instructions'!C21=\"\",\"\",'Project Info & Instructions'!C21)","v":"--"},null,null,null,"Core Diameter:","6 inches"]
[null,"Test Strip Type:",{"$f":"'Project Info & Instructions'!R4","v":"Combined Density and Volumetrics Test Strip"}]
[]
[null,"NUCDENSITYTEC:",{"$f":"IF('QC-1 Density Worksheet'!I5=\"\",\"\",'QC-1 Density Worksheet'!I5)","v":""}]
[null,"Gauge No.:",{"$f":"IF('QC-1 Density Worksheet'!M4=\"\",\"\",'QC-1 Density Worksheet'!M4)","v":""}]
[]
[null,"ZONE 1"]
[null,"Station (@ center of Zone):",null,null,{"$f":"IF('Project Info & Instructions'!G26=\"\",\"\",'Project Info & Instructions'!G26)","v":""},null,null,null,null,null,null,null,"CALCULATIONS",null,null,null,"R-Squared:",null,null,null,{"$f":"IFERROR(RSQ(AC4:AC13,AD4:AD13),\"\")","v":""}]
[null,null,null,null,null,null,null,null,null,null,null,null,null,null,null,null,null,null,null,null,null,null,"All Values including removed cores"]
[null,"Reading 1\n(pcf)",null,"Reading 2\n(pcf)","Difference\n(pcf)",null,"Reading 3*            \n(pcf)",null,"Ave Nuclear\n(pcf)",null,"Core Gmb",null,"Ave Nuclear\n(%)",null,"Core Density (%)",null,"Difference\n(%)",null,"Adjusted Nuc. (%)",null,"Adj. Diff. (%)",null,"Core Gmb","Ave Nuclear","Core Density","Difference","Adjusted Nuc.","Adj. Diff."]
[{"$f":"'Core Data'!A11","v":""},{"$f":"'QC-1 Density Worksheet'!T14","v":""},null,{"$f":"'QC-1 Density Worksheet'!U14","v":""},{"$f":"IFERROR(ROUND(ABS(B25-D25),1),\"\")","v":""},null,{"$f":"'QC-1 Density Worksheet'!V14","v":""},null,{"$f":"IFERROR('QC-1 Density Worksheet'!AD14,\"\")","v":""},null,{"$f":"IF(X3=TRUE,\"\",IF('Core Data'!$AD$3=1,'Core Data'!G11,'Core Data'!O11))","v":""},null,{"$f":"IF(X3=TRUE,\"\",IFERROR(ROUND(I25/ROUND($H$14*62.24,1)*100,1),\"\"))","v":""},null,{"$f":"IF(X3=TRUE,\"\",IFERROR(ROUND(K25/$H$14*100,1),\"\"))","v":""},null,{"$f":"IFERROR(O25-M25,\"\")","v":""},null,{"$f":"IFERROR(M25+$U$41,\"\")","v":""},null,{"$f":"IFERROR(O25-S25,\"\")","v":""},null,{"$f":"IF('Core Data'!$AD$3=1,'Core Data'!G11,'Core Data'!O11)","v":""},{"$f":"IFERROR(ROUND(I25/ROUND($H$14*62.24,1)*100,1),\"\")","v":""},{"$f":"IFERROR(ROUND(W25/$H$14*100,1),\"\")","v":""},{"$f":"IFERROR(Y25-X25,\"\")","v":""},{"$f":"IFERROR(X25+$U$42,\"\")","v":""},{"$f":"IFERROR(Y25-AA25,\"\")","v":""}]
[{"$f":"'Core Data'!A12","v":""},{"$f":"'QC-1 Density Worksheet'!T15","v":""},null,{"$f":"'QC-1 Density Worksheet'!U15","v":""},{"$f":"IFERROR(ROUND(ABS(B26-D26),1),\"\")","v":""},null,{"$f":"'QC-1 Density Worksheet'!V15","v":""},null,{"$f":"IFERROR('QC-1 Density Worksheet'!AD15,\"\")","v":""},null,{"$f":"IF(X4=TRUE,\"\",IF('Core Data'!$AD$3=1,'Core Data'!G12,'Core Data'!O12))","v":""},null,{"$f":"IF(X4=TRUE,\"\",IFERROR(ROUND(I26/ROUND($H$14*62.24,1)*100,1),\"\"))","v":""},null,{"$f":"IF(X4=TRUE,\"\",IFERROR(ROUND(K26/$H$14*100,1),\"\"))","v":""},null,{"$f":"IFERROR(O26-M26,\"\")","v":""},null,{"$f":"IFERROR(M26+$U$41,\"\")","v":""},null,{"$f":"IFERROR(O26-S26,\"\")","v":""},null,{"$f":"IF('Core Data'!$AD$3=1,'Core Data'!G12,'Core Data'!O12)","v":""},{"$f":"IFERROR(ROUND(I26/ROUND($H$14*62.24,1)*100,1),\"\")","v":""},{"$f":"IFERROR(ROUND(W26/$H$14*100,1),\"\")","v":""},{"$f":"IFERROR(Y26-X26,\"\")","v":""},{"$f":"IFERROR(X26+$U$42,\"\")","v":""},{"$f":"IFERROR(Y26-AA26,\"\")","v":""}]
[{"$f":"'Core Data'!A13","v":""},{"$f":"'QC-1 Density Worksheet'!T16","v":""},null,{"$f":"'QC-1 Density Worksheet'!U16","v":""},{"$f":"IFERROR(ROUND(ABS(B27-D27),1),\"\")","v":""},null,{"$f":"'QC-1 Density Worksheet'!V16","v":""},null,{"$f":"IFERROR('QC-1 Density Worksheet'!AD16,\"\")","v":""},null,{"$f":"IF(X5=TRUE,\"\",IF('Core Data'!$AD$3=1,'Core Data'!G13,'Core Data'!O13))","v":""},null,{"$f":"IF(X5=TRUE,\"\",IFERROR(ROUND(I27/ROUND($H$14*62.24,1)*100,1),\"\"))","v":""},null,{"$f":"IF(X5=TRUE,\"\",IFERROR(ROUND(K27/$H$14*100,1),\"\"))","v":""},null,"",null,{"$f":"IFERROR(M27+$U$41,\"\")","v":""},null,{"$f":"IFERROR(O27-S27,\"\")","v":""},null,{"$f":"IF('Core Data'!$AD$3=1,'Core Data'!G13,'Core Data'!O13)","v":""},{"$f":"IFERROR(ROUND(I27/ROUND($H$14*62.24,1)*100,1),\"\")","v":""},"","",{"$f":"IFERROR(X27+$U$42,\"\")","v":""},""]
[{"$f":"'Core Data'!A14","v":""},{"$f":"'QC-1 Density Worksheet'!T17","v":""},null,{"$f":"'QC-1 Density Worksheet'!U17","v":""},"",null,{"$f":"'QC-1 Density Worksheet'!V17","v":""},null,{"$f":"IFERROR('QC-1 Density Worksheet'!AD17,\"\")","v":""},null,{"$f":"IF(X6=TRUE,\"\",IF('Core Data'!$AD$3=1,'Core Data'!G14,'Core Data'!O14))","v":""},null,{"$f":"IF(X6=TRUE,\"\",IFERROR(ROUND(I28/ROUND($H$14*62.24,1)*100,1),\"\"))","v":""},null,{"$f":"IF(X6=TRUE,\"\",IFERROR(ROUND(K28/$H$14*100,1),\"\"))","v":""},null,"",null,{"$f":"IFERROR(M28+$U$41,\"\")","v":""},null,{"$f":"IFERROR(O28-S28,\"\")","v":""},null,{"$f":"IF('Core Data'!$AD$3=1,'Core Data'!G14,'Core Data'!O14)","v":""},{"$f":"IFERROR(ROUND(I28/ROUND($H$14*62.24,1)*100,1),\"\")","v":""},"","",{"$f":"IFERROR(X28+$U$42,\"\")","v":""},""]
[{"$f":"'Core Data'!A15","v":""},{"$f":"'QC-1 Density Worksheet'!T18","v":""},null,{"$f":"'QC-1 Density Worksheet'!U18","v":""},"",null,{"$f":"'QC-1 Density Worksheet'!V18","v":""},null,{"$f":"IFERROR('QC-1 Density Worksheet'!AD18,\"\")","v":""},null,{"$f":"IF(X7=TRUE,\"\",IF('Core Data'!$AD$3=1,'Core Data'!G15,'Core Data'!O15))","v":""},null,{"$f":"IF(X7=TRUE,\"\",IFERROR(ROUND(I29/ROUND($H$14*62.24,1)*100,1),\"\"))","v":""},null,{"$f":"IF(X7=TRUE,\"\",IFERROR(ROUND(K29/$H$14*100,1),\"\"))","v":""},null,"",null,{"$f":"IFERROR(M29+$U$41,\"\")","v":""},null,{"$f":"IFERROR(O29-S29,\"\")","v":""},null,{"$f":"IF('Core Data'!$AD$3=1,'Core Data'!G15,'Core Data'!O15)","v":""},{"$f":"IFERROR(ROUND(I29/ROUND($H$14*62.24,1)*100,1),\"\")","v":""},"","",{"$f":"IFERROR(X29+$U$42,\"\")","v":""},""]
[]
[null,"ZONE 2"]
[null,"Station (@ center of Zone):",null,null,{"$f":"IF('Project Info & Instructions'!G27=\"\",\"\",'Project Info & Instructions'!G27)","v":""}]
[]
[null,"Reading 1\n(pcf)",null,"Reading 2\n(pcf)","Difference\n(pcf)",null,"Reading 3*            \n(pcf)",null,"Ave Nuclear\n(pcf)",null,"Core Gmb",null,"Ave Nuclear\n(%)",null,"Core Density (%)",null,"Difference\n(%)",null,"Adjusted Nuc. (%)",null,"Adj. Diff. (%)",null,"Core Gmb","Ave Nuclear","Core Density","Difference","Adjusted Nuc.","Adj. Diff."]
[{"$f":"'Core Data'!A19","v":""},{"$f":"'QC-1 Density Worksheet'!T20","v":""},null,{"$f":"'QC-1 Density Worksheet'!U20","v":""},{"$f":"IFERROR(ROUND(ABS(B35-D35),1),\"\")","v":""},null,{"$f":"'QC-1 Density Worksheet'!V20","v":""},null,{"$f":"IFERROR('QC-1 Density Worksheet'!AD20,\"\")","v":""},null,{"$f":"IF(X8=TRUE,\"\",IF('Core Data'!$AD$3=1,'Core Data'!G19,'Core Data'!O19))","v":""},null,{"$f":"IF(X8=TRUE,\"\",IFERROR(ROUND(I35/ROUND($H$14*62.24,1)*100,1),\"\"))","v":""},null,{"$f":"IF(X8=TRUE,\"\",IFERROR(ROUND(K35/$H$14*100,1),\"\"))","v":""},null,{"$f":"IFERROR(O35-M35,\"\")","v":""},null,{"$f":"IFERROR(M35+$U$41,\"\")","v":""},null,{"$f":"IFERROR(O35-S35,\"\")","v":""},null,{"$f":"IF('Core Data'!$AD$3=1,'Core Data'!G19,'Core Data'!O19)","v":""},{"$f":"IFERROR(ROUND(I35/ROUND($H$14*62.24,1)*100,1),\"\")","v":""},{"$f":"IFERROR(ROUND(W35/$H$14*100,1),\"\")","v":""},{"$f":"IFERROR(Y35-X35,\"\")","v":""},{"$f":"IFERROR(X35+$U$42,\"\")","v":""},{"$f":"IFERROR(Y35-AA35,\"\")","v":""}]
[{"$f":"'Core Data'!A20","v":""},{"$f":"'QC-1 Density Worksheet'!T21","v":""},null,{"$f":"'QC-1 Density Worksheet'!U21","v":""},{"$f":"IFERROR(ROUND(ABS(B36-D36),1),\"\")","v":""},null,{"$f":"'QC-1 Density Worksheet'!V21","v":""},null,{"$f":"IFERROR('QC-1 Density Worksheet'!AD21,\"\")","v":""},null,{"$f":"IF(X9=TRUE,\"\",IF('Core Data'!$AD$3=1,'Core Data'!G20,'Core Data'!O20))","v":""},null,{"$f":"IF(X9=TRUE,\"\",IFERROR(ROUND(I36/ROUND($H$14*62.24,1)*100,1),\"\"))","v":""},null,{"$f":"IF(X9=TRUE,\"\",IFERROR(ROUND(K36/$H$14*100,1),\"\"))","v":""},null,{"$f":"IFERROR(O36-M36,\"\")","v":""},null,{"$f":"IFERROR(M36+$U$41,\"\")","v":""},null,{"$f":"IFERROR(O36-S36,\"\")","v":""},null,{"$f":"IF('Core Data'!$AD$3=1,'Core Data'!G20,'Core Data'!O20)","v":""},{"$f":"IFERROR(ROUND(I36/ROUND($H$14*62.24,1)*100,1),\"\")","v":""},{"$f":"IFERROR(ROUND(W36/$H$14*100,1),\"\")","v":""},{"$f":"IFERROR(Y36-X36,\"\")","v":""},{"$f":"IFERROR(X36+$U$42,\"\")","v":""},{"$f":"IFERROR(Y36-AA36,\"\")","v":""}]
[{"$f":"'Core Data'!A21","v":""},{"$f":"'QC-1 Density Worksheet'!T22","v":""},null,{"$f":"'QC-1 Density Worksheet'!U22","v":""},"",null,{"$f":"'QC-1 Density Worksheet'!V22","v":""},null,{"$f":"IFERROR('QC-1 Density Worksheet'!AD22,\"\")","v":""},null,{"$f":"IF(X10=TRUE,\"\",IF('Core Data'!$AD$3=1,'Core Data'!G21,'Core Data'!O21))","v":""},null,{"$f":"IF(X10=TRUE,\"\",IFERROR(ROUND(I37/ROUND($H$14*62.24,1)*100,1),\"\"))","v":""},null,{"$f":"IF(X10=TRUE,\"\",IFERROR(ROUND(K37/$H$14*100,1),\"\"))","v":""},null,{"$f":"IFERROR(O37-M37,\"\")","v":""},null,{"$f":"IFERROR(M37+$U$41,\"\")","v":""},null,{"$f":"IFERROR(O37-S37,\"\")","v":""},null,{"$f":"IF('Core Data'!$AD$3=1,'Core Data'!G21,'Core Data'!O21)","v":""},{"$f":"IFERROR(ROUND(I37/ROUND($H$14*62.24,1)*100,1),\"\")","v":""},"","",{"$f":"IFERROR(X37+$U$42,\"\")","v":""},""]
[{"$f":"'Core Data'!A22","v":""},{"$f":"'QC-1 Density Worksheet'!T23","v":""},null,{"$f":"'QC-1 Density Worksheet'!U23","v":""},"",null,{"$f":"'QC-1 Density Worksheet'!V23","v":""},null,{"$f":"IFERROR('QC-1 Density Worksheet'!AD23,\"\")","v":""},null,{"$f":"IF(X11=TRUE,\"\",IF('Core Data'!$AD$3=1,'Core Data'!G22,'Core Data'!O22))","v":""},null,{"$f":"IF(X11=TRUE,\"\",IFERROR(ROUND(I38/ROUND($H$14*62.24,1)*100,1),\"\"))","v":""},null,{"$f":"IF(X11=TRUE,\"\",IFERROR(ROUND(K38/$H$14*100,1),\"\"))","v":""},null,{"$f":"IFERROR(O38-M38,\"\")","v":""},null,{"$f":"IFERROR(M38+$U$41,\"\")","v":""},null,{"$f":"IFERROR(O38-S38,\"\")","v":""},null,{"$f":"IF('Core Data'!$AD$3=1,'Core Data'!G22,'Core Data'!O22)","v":""},{"$f":"IFERROR(ROUND(I38/ROUND($H$14*62.24,1)*100,1),\"\")","v":""},"","",{"$f":"IFERROR(X38+$U$42,\"\")","v":""},""]
[{"$f":"'Core Data'!A23","v":""},{"$f":"'QC-1 Density Worksheet'!T24","v":""},null,{"$f":"'QC-1 Density Worksheet'!U24","v":""},"",null,{"$f":"'QC-1 Density Worksheet'!V24","v":""},null,{"$f":"IFERROR('QC-1 Density Worksheet'!AD24,\"\")","v":""},null,{"$f":"IF(X12=TRUE,\"\",IF('Core Data'!$AD$3=1,'Core Data'!G23,'Core Data'!O23))","v":""},null,{"$f":"IF(X12=TRUE,\"\",IFERROR(ROUND(I39/ROUND($H$14*62.24,1)*100,1),\"\"))","v":""},null,{"$f":"IF(X12=TRUE,\"\",IFERROR(ROUND(K39/$H$14*100,1),\"\"))","v":""},null,{"$f":"IFERROR(O39-M39,\"\")","v":""},null,{"$f":"IFERROR(M39+$U$41,\"\")","v":""},null,{"$f":"IFERROR(O39-S39,\"\")","v":""},null,{"$f":"IF('Core Data'!$AD$3=1,'Core Data'!G23,'Core Data'!O23)","v":""},{"$f":"IFERROR(ROUND(I39/ROUND($H$14*62.24,1)*100,1),\"\")","v":""},"","",{"$f":"IFERROR(X39+$U$42,\"\")","v":""},""]
[]
[null,null,null,null,null,null,null,null,null,null,"Spread (%):",null,{"$f":"MAX(M25:M29,M35:M39)-MIN(M25:M29,M35:M39)","v":0},null,{"$f":"MAX(O25:O29,O35:O39)-MIN(O25:O29,O35:O39)","v":0},null,"OFFSET:",null,null,null,{"$f":"IFERROR(ROUND(AVERAGE(Q25:Q29,Q35:Q39),1),\"\")","v":""}]
[null,null,null,null,null,null,null,null,null,null,null,null,null,null,null,null,"OFFSET:\n(including removed cores)",null,null,null,{"$f":"IFERROR(ROUND(AVERAGE(Z25:Z29,Z35:Z39),1),\"\")","v":""}]

{"sheet":"QC-2 Correlation","index":14,"n_rows":42,"n_cols":30,"rows_kept":42,"cut":false,"hidden":false,"merged":[[41,16,41,19],[1,22,1,23],[40,10,40,11],[1,25,1,26],[1,28,1,29],[40,16,40,19],[0,3,4,8],[6,3,6,8],[8,7,8,8],[8,2,8,4],[15,2,15,8],[18,2,18,4],[14,2,14,4],[14,7,14,8],[9,2,9,4],[11,7,11,8],[10,2,10,4],[12,7,12,8],[13,7,13,8],[9,7,9,8],[10,7,10,8],[11,2,11,4],[12,2,12,4],[13,2,13,4],[17,2,17,4],[21,1,21,3],[31,1,31,3],[21,4,21,6],[22,22,22,27],[37,36,39,38],[31,4,31,6],[21,16,21,19]]}
[null,null,null,"Wisconsin Department \nof Transportation "]
[null,null,null,null,null,null,null,null,null,null,null,null,null,null,null,null,null,null,null,null,null,null,"Worksheet Variables",null,null,"Graph Points",null,null,"R-Squared Calculation"]
[null,null,null,null,null,null,null,null,null,null,null,null,null,null,null,null,null,null,null,null,null,null,"Core 1 Removed:",{"$f":"IF('Core Data'!AD4=TRUE,TRUE,FALSE)","v":false},null,"Nuclear","Core",null,"Nuclear","Core"]
[null,null,null,null,null,null,null,null,null,null,null,null,null,null,null,null,null,null,null,null,null,null,"Core 2 Removed:",{"$f":"IF('Core Data'!AD5=TRUE,TRUE,FALSE)","v":false},null,{"$f":"IF(M25=\"\",#N/A,M25)","v":{"$error":"#N/A"}},{"$f":"IF(O25=\"\",#N/A,O25)","v":{"$error":"#N/A"}},null,{"$f":"IF(ISNUMBER(Z4),Z4,\"\")","v":""},{"$f":"IF(ISNUMBER(AA4),AA4,\"\")","v":""}]
[null,null,null,null,null,null,null,null,null,null,null,null,null,null,null,null,null,null,null,null,null,null,"Core 3 Removed:",{"$f":"IF('Core Data'!AD6=TRUE,TRUE,FALSE)","v":false},null,{"$f":"IF(M26=\"\",#N/A,M26)","v":{"$error":"#N/A"}},{"$f":"IF(O26=\"\",#N/A,O26)","v":{"$error":"#N/A"}},null,"",""]
[null,{"$f":"'Project Info & Instructions'!A6","v":"Revised 5-01-25"},null,null,null,null,null,null,null,null,null,null,null,null,null,null,null,null,null,null,null,null,"Core 4 Removed:",{"$f":"IF('Core Data'!AD7=TRUE,TRUE,FALSE)","v":false},null,{"$f":"IF(M27=\"\",#N/A,M27)","v":{"$error":"#N/A"}},{"$f":"IF(O27=\"\",#N/A,O27)","v":{"$error":"#N/A"}},null,"",""]
[null,null,null,"Nuclear / Core Correlation Worksheet",null,null,null,null,null,null,null,null,null,null,null,null,null,null,null,null,null,null,"Core 5 Removed:",{"$f":"IF('Core Data'!AD8=TRUE,TRUE,FALSE)","v":false},null,{"$f":"IF(M28=\"\",#N/A,M28)","v":{"$error":"#N/A"}},{"$f":"IF(O28=\"\",#N/A,O28)","v":{"$error":"#N/A"}},null,"",""]
[null,null,null,null,null,null,null,null,null,null,null,null,null,null,null,null,null,null,null,null,null,null,"Core 6 Removed:",{"$f":"IF('Core Data'!AD9=TRUE,TRUE,FALSE)","v":false},null,{"$f":"IF(M29=\"\",#N/A,M29)","v":{"$error":"#N/A"}},{"$f":"IF(O29=\"\",#N/A,O29)","v":{"$error":"#N/A"}},null,"",""]
[null,"Date:",{"$f":"IF('Project Info & Instructions'!C10=\"\",\"\",'Project Info & Instructions'!C10)","v":""},null,null,null,"Test Strip #:",{"$f":"IF('Project Info & Instructions'!C11=\"\",\"\",'Project Info & Instructions'!C11)","v":""},null,null,null,null,null,null,null,null,null,null,null,null,null,null,"Core 7 Removed:",{"$f":"IF('Core Data'!AD10=TRUE,TRUE,FALSE)","v":false},null,{"$f":"IF(M35=\"\",#N/A,M35)","v":{"$error":"#N/A"}},{"$f":"IF(O35=\"\",#N/A,O35)","v":{"$error":"#N/A"}},null,"",""]
[null,"Contract:",{"$f":"IF('Project Info & Instructions'!C12=\"\",\"\",'Project Info & Instructions'!C12)","v":""},null,null,null,"Layer:",{"$f":"IF('Project Info & Instructions'!G16=\"\",\"\",'Project Info & Instructions'!G16)","v":""},null,null,null,null,null,null,null,null,null,null,null,null,null,null,"Core 8 Removed:",{"$f":"IF('Core Data'!AD11=TRUE,TRUE,FALSE)","v":false},null,{"$f":"IF(M36=\"\",#N/A,M36)","v":{"$error":"#N/A"}},{"$f":"IF(O36=\"\",#N/A,O36)","v":{"$error":"#N/A"}},null,"",""]
[null,"Job No.:",{"$f":"IF('Project Info & Instructions'!C13=\"\",\"\",'Project Info & Instructions'!C13)","v":""},null,null,null,"Mixture Type:",{"$f":"IF('Project Info & Instructions'!C21=\"\",\"\",'Project Info & Instructions'!C21)","v":"--"},null,null,null,null,null,null,null,null,null,null,null,null,null,null,"Core 9 Removed:",{"$f":"IF('Core Data'!AD12=TRUE,TRUE,FALSE)","v":false},null,{"$f":"IF(M37=\"\",#N/A,M37)","v":{"$error":"#N/A"}},{"$f":"IF(O37=\"\",#N/A,O37)","v":{"$error":"#N/A"}},null,"",""]
[null,"Route:",{"$f":"IF('Project Info & Instructions'!C14=\"\",\"\",'Project Info & Instructions'!C14)","v":""},null,null,null,null,null,null,null,null,null,null,null,null,null,null,null,null,null,null,null,"Core 10 Removed:",{"$f":"IF('Core Data'!AD13=TRUE,TRUE,FALSE)","v":false},null,{"$f":"IF(M38=\"\",#N/A,M38)","v":{"$error":"#N/A"}},{"$f":"IF(O38=\"\",#N/A,O38)","v":{"$error":"#N/A"}},null,"",""]
[null,"Underlying Matl.:",{"$f":"IF('Project Info & Instructions'!G17=\"\",\"\",'Project Info & Instructions'!G17)","v":""},null,null,null,"Layer Thickness:",{"$f":"IF('Project Info & Instructions'!G12=\"\",\"\",'Project Info & Instructions'!G12)","v":""},null,null,null,null,null,null,null,null,null,null,null,null,null,null,null,null,null,{"$f":"IF(M39=\"\",#N/A,M39)","v":{"$error":"#N/A"}},{"$f":"IF(O39=\"\",#N/A,O39)","v":{"$error":"#N/A"}},null,"",""]
[null,"WisDOT Mix No.:",{"$f":"IF('Project Info & Instructions'!C16=\"\",\"\",'Project Info & Instructions'!C16)","v":""},null,null,null,"Gmm:",{"$f":"IF('Project Info & Instructions'!R3=2,'Core Data'!I1,'Air Voids Pay Factor'!D11)","v":""}]
[null,"Mix Type:",{"$f":"IF('Project Info & Instructions'!C21=\"\",\"\",'Project Info & Instructions'!C21)","v":"--"},null,null,null,"Core Diameter:","6 inches"]
[null,"Test Strip Type:",{"$f":"'Project Info & Instructions'!R4","v":"Combined Density and Volumetrics Test Strip"}]
[]
[null,"NUCDENSITYTEC:",{"$f":"IF('QC-2 Density Worksheet'!I5=\"\",\"\",'QC-2 Density Worksheet'!I5)","v":""}]
[null,"Gauge No.:",{"$f":"IF('QC-2 Density Worksheet'!M4=\"\",\"\",'QC-2 Density Worksheet'!M4)","v":""}]
[]
[null,"ZONE 1"]
[null,"Station (@ center of Zone):",null,null,{"$f":"IF('Project Info & Instructions'!G26=\"\",\"\",'Project Info & Instructions'!G26)","v":""},null,null,null,null,null,null,null,"CALCULATIONS",null,null,null,"R-Squared:",null,null,null,{"$f":"IFERROR(RSQ(AC4:AC13,AD4:AD13),\"\")","v":""}]
[null,null,null,null,null,null,null,null,null,null,null,null,null,null,null,null,null,null,null,null,null,null,"All Values including removed cores"]
[null,"Reading 1\n(pcf)",null,"Reading 2\n(pcf)","Difference\n(pcf)",null,"Reading 3*            \n(pcf)",null,"Ave Nuclear\n(pcf)",null,"Core Gmb",null,"Ave Nuclear\n(%)",null,"Core Density (%)",null,"Difference\n(%)",null,"Adjusted Nuc. (%)",null,"Adj. Diff. (%)",null,"Core Gmb","Ave Nuclear","Core Density","Difference","Adjusted Nuc.","Adj. Diff."]
[{"$f":"'Core Data'!A11","v":""},{"$f":"'QC-2 Density Worksheet'!T14","v":""},null,{"$f":"'QC-2 Density Worksheet'!U14","v":""},{"$f":"IFERROR(ROUND(ABS(B25-D25),1),\"\")","v":""},null,{"$f":"'QC-2 Density Worksheet'!V14","v":""},null,{"$f":"IFERROR('QC-2 Density Worksheet'!AD14,\"\")","v":""},null,{"$f":"IF(X3=TRUE,\"\",IF('Core Data'!$AD$3=1,'Core Data'!G11,'Core Data'!O11))","v":""},null,{"$f":"IF(X3=TRUE,\"\",IFERROR(ROUND(I25/ROUND($H$14*62.24,1)*100,1),\"\"))","v":""},null,{"$f":"IF(X3=TRUE,\"\",IFERROR(ROUND(K25/$H$14*100,1),\"\"))","v":""},null,{"$f":"IFERROR(O25-M25,\"\")","v":""},null,{"$f":"IFERROR(M25+$U$41,\"\")","v":""},null,{"$f":"IFERROR(O25-S25,\"\")","v":""},null,{"$f":"IF('Core Data'!$AD$3=1,'Core Data'!G11,'Core Data'!O11)","v":""},{"$f":"IFERROR(ROUND(I25/ROUND($H$14*62.24,1)*100,1),\"\")","v":""},{"$f":"IFERROR(ROUND(W25/$H$14*100,1),\"\")","v":""},{"$f":"IFERROR(Y25-X25,\"\")","v":""},{"$f":"IFERROR(X25+$U$42,\"\")","v":""},{"$f":"IFERROR(Y25-AA25,\"\")","v":""}]
[{"$f":"'Core Data'!A12","v":""},{"$f":"'QC-2 Density Worksheet'!T15","v":""},null,{"$f":"'QC-2 Density Worksheet'!U15","v":""},{"$f":"IFERROR(ROUND(ABS(B26-D26),1),\"\")","v":""},null,{"$f":"'QC-2 Density Worksheet'!V15","v":""},null,{"$f":"IFERROR('QC-2 Density Worksheet'!AD15,\"\")","v":""},null,{"$f":"IF(X4=TRUE,\"\",IF('Core Data'!$AD$3=1,'Core Data'!G12,'Core Data'!O12))","v":""},null,{"$f":"IF(X4=TRUE,\"\",IFERROR(ROUND(I26/ROUND($H$14*62.24,1)*100,1),\"\"))","v":""},null,{"$f":"IF(X4=TRUE,\"\",IFERROR(ROUND(K26/$H$14*100,1),\"\"))","v":""},null,{"$f":"IFERROR(O26-M26,\"\")","v":""},null,{"$f":"IFERROR(M26+$U$41,\"\")","v":""},null,{"$f":"IFERROR(O26-S26,\"\")","v":""},null,{"$f":"IF('Core Data'!$AD$3=1,'Core Data'!G12,'Core Data'!O12)","v":""},{"$f":"IFERROR(ROUND(I26/ROUND($H$14*62.24,1)*100,1),\"\")","v":""},{"$f":"IFERROR(ROUND(W26/$H$14*100,1),\"\")","v":""},{"$f":"IFERROR(Y26-X26,\"\")","v":""},{"$f":"IFERROR(X26+$U$42,\"\")","v":""},{"$f":"IFERROR(Y26-AA26,\"\")","v":""}]
[{"$f":"'Core Data'!A13","v":""},{"$f":"'QC-2 Density Worksheet'!T16","v":""},null,{"$f":"'QC-2 Density Worksheet'!U16","v":""},"",null,{"$f":"'QC-2 Density Worksheet'!V16","v":""},null,{"$f":"IFERROR('QC-2 Density Worksheet'!AD16,\"\")","v":""},null,{"$f":"IF(X5=TRUE,\"\",IF('Core Data'!$AD$3=1,'Core Data'!G13,'Core Data'!O13))","v":""},null,{"$f":"IF(X5=TRUE,\"\",IFERROR(ROUND(I27/ROUND($H$14*62.24,1)*100,1),\"\"))","v":""},null,{"$f":"IF(X5=TRUE,\"\",IFERROR(ROUND(K27/$H$14*100,1),\"\"))","v":""},null,{"$f":"IFERROR(O27-M27,\"\")","v":""},null,{"$f":"IFERROR(M27+$U$41,\"\")","v":""},null,{"$f":"IFERROR(O27-S27,\"\")","v":""},null,{"$f":"IF('Core Data'!$AD$3=1,'Core Data'!G13,'Core Data'!O13)","v":""},{"$f":"IFERROR(ROUND(I27/ROUND($H$14*62.24,1)*100,1),\"\")","v":""},"","",{"$f":"IFERROR(X27+$U$42,\"\")","v":""},""]
[{"$f":"'Core Data'!A14","v":""},{"$f":"'QC-2 Density Worksheet'!T17","v":""},null,{"$f":"'QC-2 Density Worksheet'!U17","v":""},"",null,{"$f":"'QC-2 Density Worksheet'!V17","v":""},null,{"$f":"IFERROR('QC-2 Density Worksheet'!AD17,\"\")","v":""},null,{"$f":"IF(X6=TRUE,\"\",IF('Core Data'!$AD$3=1,'Core Data'!G14,'Core Data'!O14))","v":""},null,{"$f":"IF(X6=TRUE,\"\",IFERROR(ROUND(I28/ROUND($H$14*62.24,1)*100,1),\"\"))","v":""},null,{"$f":"IF(X6=TRUE,\"\",IFERROR(ROUND(K28/$H$14*100,1),\"\"))","v":""},null,{"$f":"IFERROR(O28-M28,\"\")","v":""},null,{"$f":"IFERROR(M28+$U$41,\"\")","v":""},null,{"$f":"IFERROR(O28-S28,\"\")","v":""},null,{"$f":"IF('Core Data'!$AD$3=1,'Core Data'!G14,'Core Data'!O14)","v":""},{"$f":"IFERROR(ROUND(I28/ROUND($H$14*62.24,1)*100,1),\"\")","v":""},"","",{"$f":"IFERROR(X28+$U$42,\"\")","v":""},""]
[{"$f":"'Core Data'!A15","v":""},{"$f":"'QC-2 Density Worksheet'!T18","v":""},null,{"$f":"'QC-2 Density Worksheet'!U18","v":""},"",null,{"$f":"'QC-2 Density Worksheet'!V18","v":""},null,{"$f":"IFERROR('QC-2 Density Worksheet'!AD18,\"\")","v":""},null,{"$f":"IF(X7=TRUE,\"\",IF('Core Data'!$AD$3=1,'Core Data'!G15,'Core Data'!O15))","v":""},null,{"$f":"IF(X7=TRUE,\"\",IFERROR(ROUND(I29/ROUND($H$14*62.24,1)*100,1),\"\"))","v":""},null,{"$f":"IF(X7=TRUE,\"\",IFERROR(ROUND(K29/$H$14*100,1),\"\"))","v":""},null,{"$f":"IFERROR(O29-M29,\"\")","v":""},null,{"$f":"IFERROR(M29+$U$41,\"\")","v":""},null,{"$f":"IFERROR(O29-S29,\"\")","v":""},null,{"$f":"IF('Core Data'!$AD$3=1,'Core Data'!G15,'Core Data'!O15)","v":""},{"$f":"IFERROR(ROUND(I29/ROUND($H$14*62.24,1)*100,1),\"\")","v":""},"","",{"$f":"IFERROR(X29+$U$42,\"\")","v":""},""]
[]
[null,"ZONE 2"]
[null,"Station (@ center of Zone):",null,null,{"$f":"IF('Project Info & Instructions'!G27=\"\",\"\",'Project Info & Instructions'!G27)","v":""}]
[]
[null,"Reading 1\n(pcf)",null,"Reading 2\n(pcf)","Difference\n(pcf)",null,"Reading 3*            \n(pcf)",null,"Ave Nuclear\n(pcf)",null,"Core Gmb",null,"Ave Nuclear\n(%)",null,"Core Density (%)",null,"Difference\n(%)",null,"Adjusted Nuc. (%)",null,"Adj. Diff. (%)",null,"Core Gmb","Ave Nuclear","Core Density","Difference","Adjusted Nuc.","Adj. Diff."]
[{"$f":"'Core Data'!A19","v":""},{"$f":"'QC-2 Density Worksheet'!T20","v":""},null,{"$f":"'QC-2 Density Worksheet'!U20","v":""},{"$f":"IFERROR(ROUND(ABS(B35-D35),1),\"\")","v":""},null,{"$f":"'QC-2 Density Worksheet'!V20","v":""},null,{"$f":"IFERROR('QC-2 Density Worksheet'!AD20,\"\")","v":""},null,{"$f":"IF(X8=TRUE,\"\",IF('Core Data'!$AD$3=1,'Core Data'!G19,'Core Data'!O19))","v":""},null,{"$f":"IF(X8=TRUE,\"\",IFERROR(ROUND(I35/ROUND($H$14*62.24,1)*100,1),\"\"))","v":""},null,{"$f":"IF(X8=TRUE,\"\",IFERROR(ROUND(K35/$H$14*100,1),\"\"))","v":""},null,{"$f":"IFERROR(O35-M35,\"\")","v":""},null,{"$f":"IFERROR(M35+$U$41,\"\")","v":""},null,{"$f":"IFERROR(O35-S35,\"\")","v":""},null,{"$f":"IF('Core Data'!$AD$3=1,'Core Data'!G19,'Core Data'!O19)","v":""},{"$f":"IFERROR(ROUND(I35/ROUND($H$14*62.24,1)*100,1),\"\")","v":""},{"$f":"IFERROR(ROUND(W35/$H$14*100,1),\"\")","v":""},{"$f":"IFERROR(Y35-X35,\"\")","v":""},{"$f":"IFERROR(X35+$U$42,\"\")","v":""},{"$f":"IFERROR(Y35-AA35,\"\")","v":""}]
[{"$f":"'Core Data'!A20","v":""},{"$f":"'QC-2 Density Worksheet'!T21","v":""},null,{"$f":"'QC-2 Density Worksheet'!U21","v":""},{"$f":"IFERROR(ROUND(ABS(B36-D36),1),\"\")","v":""},null,{"$f":"'QC-2 Density Worksheet'!V21","v":""},null,{"$f":"IFERROR('QC-2 Density Worksheet'!AD21,\"\")","v":""},null,{"$f":"IF(X9=TRUE,\"\",IF('Core Data'!$AD$3=1,'Core Data'!G20,'Core Data'!O20))","v":""},null,{"$f":"IF(X9=TRUE,\"\",IFERROR(ROUND(I36/ROUND($H$14*62.24,1)*100,1),\"\"))","v":""},null,{"$f":"IF(X9=TRUE,\"\",IFERROR(ROUND(K36/$H$14*100,1),\"\"))","v":""},null,{"$f":"IFERROR(O36-M36,\"\")","v":""},null,{"$f":"IFERROR(M36+$U$41,\"\")","v":""},null,{"$f":"IFERROR(O36-S36,\"\")","v":""},null,{"$f":"IF('Core Data'!$AD$3=1,'Core Data'!G20,'Core Data'!O20)","v":""},{"$f":"IFERROR(ROUND(I36/ROUND($H$14*62.24,1)*100,1),\"\")","v":""},{"$f":"IFERROR(ROUND(W36/$H$14*100,1),\"\")","v":""},{"$f":"IFERROR(Y36-X36,\"\")","v":""},{"$f":"IFERROR(X36+$U$42,\"\")","v":""},{"$f":"IFERROR(Y36-AA36,\"\")","v":""}]
[{"$f":"'Core Data'!A21","v":""},{"$f":"'QC-2 Density Worksheet'!T22","v":""},null,{"$f":"'QC-2 Density Worksheet'!U22","v":""},"",null,{"$f":"'QC-2 Density Worksheet'!V22","v":""},null,{"$f":"IFERROR('QC-2 Density Worksheet'!AD22,\"\")","v":""},null,{"$f":"IF(X10=TRUE,\"\",IF('Core Data'!$AD$3=1,'Core Data'!G21,'Core Data'!O21))","v":""},null,{"$f":"IF(X10=TRUE,\"\",IFERROR(ROUND(I37/ROUND($H$14*62.24,1)*100,1),\"\"))","v":""},null,{"$f":"IF(X10=TRUE,\"\",IFERROR(ROUND(K37/$H$14*100,1),\"\"))","v":""},null,{"$f":"IFERROR(O37-M37,\"\")","v":""},null,{"$f":"IFERROR(M37+$U$41,\"\")","v":""},null,{"$f":"IFERROR(O37-S37,\"\")","v":""},null,{"$f":"IF('Core Data'!$AD$3=1,'Core Data'!G21,'Core Data'!O21)","v":""},{"$f":"IFERROR(ROUND(I37/ROUND($H$14*62.24,1)*100,1),\"\")","v":""},"","",{"$f":"IFERROR(X37+$U$42,\"\")","v":""},""]
[{"$f":"'Core Data'!A22","v":""},{"$f":"'QC-2 Density Worksheet'!T23","v":""},null,{"$f":"'QC-2 Density Worksheet'!U23","v":""},"",null,{"$f":"'QC-2 Density Worksheet'!V23","v":""},null,{"$f":"IFERROR('QC-2 Density Worksheet'!AD23,\"\")","v":""},null,{"$f":"IF(X11=TRUE,\"\",IF('Core Data'!$AD$3=1,'Core Data'!G22,'Core Data'!O22))","v":""},null,{"$f":"IF(X11=TRUE,\"\",IFERROR(ROUND(I38/ROUND($H$14*62.24,1)*100,1),\"\"))","v":""},null,{"$f":"IF(X11=TRUE,\"\",IFERROR(ROUND(K38/$H$14*100,1),\"\"))","v":""},null,{"$f":"IFERROR(O38-M38,\"\")","v":""},null,{"$f":"IFERROR(M38+$U$41,\"\")","v":""},null,{"$f":"IFERROR(O38-S38,\"\")","v":""},null,{"$f":"IF('Core Data'!$AD$3=1,'Core Data'!G22,'Core Data'!O22)","v":""},{"$f":"IFERROR(ROUND(I38/ROUND($H$14*62.24,1)*100,1),\"\")","v":""},"","",{"$f":"IFERROR(X38+$U$42,\"\")","v":""},""]
[{"$f":"'Core Data'!A23","v":""},{"$f":"'QC-2 Density Worksheet'!T24","v":""},null,{"$f":"'QC-2 Density Worksheet'!U24","v":""},"",null,{"$f":"'QC-2 Density Worksheet'!V24","v":""},null,{"$f":"IFERROR('QC-2 Density Worksheet'!AD24,\"\")","v":""},null,{"$f":"IF(X12=TRUE,\"\",IF('Core Data'!$AD$3=1,'Core Data'!G23,'Core Data'!O23))","v":""},null,{"$f":"IF(X12=TRUE,\"\",IFERROR(ROUND(I39/ROUND($H$14*62.24,1)*100,1),\"\"))","v":""},null,{"$f":"IF(X12=TRUE,\"\",IFERROR(ROUND(K39/$H$14*100,1),\"\"))","v":""},null,{"$f":"IFERROR(O39-M39,\"\")","v":""},null,{"$f":"IFERROR(M39+$U$41,\"\")","v":""},null,{"$f":"IFERROR(O39-S39,\"\")","v":""},null,{"$f":"IF('Core Data'!$AD$3=1,'Core Data'!G23,'Core Data'!O23)","v":""},{"$f":"IFERROR(ROUND(I39/ROUND($H$14*62.24,1)*100,1),\"\")","v":""},"","",{"$f":"IFERROR(X39+$U$42,\"\")","v":""},""]
[]
[null,null,null,null,null,null,null,null,null,null,"Spread (%):",null,{"$f":"MAX(M25:M29,M35:M39)-MIN(M25:M29,M35:M39)","v":0},null,{"$f":"MAX(O25:O29,O35:O39)-MIN(O25:O29,O35:O39)","v":0},null,"OFFSET:",null,null,null,{"$f":"IFERROR(ROUND(AVERAGE(Q25:Q29,Q35:Q39),1),\"\")","v":""}]
[null,null,null,null,null,null,null,null,null,null,null,null,null,null,null,null,"OFFSET:\n(including removed cores)",null,null,null,{"$f":"IFERROR(ROUND(AVERAGE(Z25:Z29,Z35:Z39),1),\"\")","v":""}]

{"sheet":"QV-1 Correlation","index":15,"n_rows":42,"n_cols":30,"rows_kept":42,"cut":false,"hidden":false,"merged":[[1,28,1,29],[21,1,21,3],[31,1,31,3],[21,16,21,19],[40,16,40,19],[0,3,4,8],[6,3,6,8],[11,2,11,4],[12,2,12,4],[13,2,13,4],[22,22,22,27],[10,2,10,4],[12,7,12,8],[1,22,1,23],[40,10,40,11],[1,25,1,26],[37,36,39,38],[31,4,31,6],[41,16,41,19],[8,2,8,4],[13,7,13,8],[9,7,9,8],[10,7,10,8],[17,2,17,4],[21,4,21,6],[15,2,15,8],[18,2,18,4],[8,7,8,8],[14,2,14,4],[14,7,14,8],[9,2,9,4],[11,7,11,8]]}
[null,null,null,"Wisconsin Department \nof Transportation "]
[null,null,null,null,null,null,null,null,null,null,null,null,null,null,null,null,null,null,null,null,null,null,"Worksheet Variables",null,null,"Graph Points",null,null,"R-Squared Calculation"]
[null,null,null,null,null,null,null,null,null,null,null,null,null,null,null,null,null,null,null,null,null,null,"Core 1 Removed:",{"$f":"IF('Core Data'!AD4=TRUE,TRUE,FALSE)","v":false},null,"Nuclear","Core",null,"Nuclear","Core"]
[null,null,null,null,null,null,null,null,null,null,null,null,null,null,null,null,null,null,null,null,null,null,"Core 2 Removed:",{"$f":"IF('Core Data'!AD5=TRUE,TRUE,FALSE)","v":false},null,{"$f":"IF(M25=\"\",#N/A,M25)","v":{"$error":"#N/A"}},{"$f":"IF(O25=\"\",#N/A,O25)","v":{"$error":"#N/A"}},null,{"$f":"IF(ISNUMBER(Z4),Z4,\"\")","v":""},{"$f":"IF(ISNUMBER(AA4),AA4,\"\")","v":""}]
[null,null,null,null,null,null,null,null,null,null,null,null,null,null,null,null,null,null,null,null,null,null,"Core 3 Removed:",{"$f":"IF('Core Data'!AD6=TRUE,TRUE,FALSE)","v":false},null,{"$f":"IF(M26=\"\",#N/A,M26)","v":{"$error":"#N/A"}},{"$f":"IF(O26=\"\",#N/A,O26)","v":{"$error":"#N/A"}},null,"",""]
[null,{"$f":"'Project Info & Instructions'!A6","v":"Revised 5-01-25"},null,null,null,null,null,null,null,null,null,null,null,null,null,null,null,null,null,null,null,null,"Core 4 Removed:",{"$f":"IF('Core Data'!AD7=TRUE,TRUE,FALSE)","v":false},null,{"$f":"IF(M27=\"\",#N/A,M27)","v":{"$error":"#N/A"}},{"$f":"IF(O27=\"\",#N/A,O27)","v":{"$error":"#N/A"}},null,"",""]
[null,null,null,"Nuclear / Core Correlation Worksheet",null,null,null,null,null,null,null,null,null,null,null,null,null,null,null,null,null,null,"Core 5 Removed:",{"$f":"IF('Core Data'!AD8=TRUE,TRUE,FALSE)","v":false},null,{"$f":"IF(M28=\"\",#N/A,M28)","v":{"$error":"#N/A"}},{"$f":"IF(O28=\"\",#N/A,O28)","v":{"$error":"#N/A"}},null,"",""]
[null,null,null,null,null,null,null,null,null,null,null,null,null,null,null,null,null,null,null,null,null,null,"Core 6 Removed:",{"$f":"IF('Core Data'!AD9=TRUE,TRUE,FALSE)","v":false},null,{"$f":"IF(M29=\"\",#N/A,M29)","v":{"$error":"#N/A"}},{"$f":"IF(O29=\"\",#N/A,O29)","v":{"$error":"#N/A"}},null,"",""]
[null,"Date:",{"$f":"IF('Project Info & Instructions'!C10=\"\",\"\",'Project Info & Instructions'!C10)","v":""},null,null,null,"Test Strip #:",{"$f":"IF('Project Info & Instructions'!C11=\"\",\"\",'Project Info & Instructions'!C11)","v":""},null,null,null,null,null,null,null,null,null,null,null,null,null,null,"Core 7 Removed:",{"$f":"IF('Core Data'!AD10=TRUE,TRUE,FALSE)","v":false},null,{"$f":"IF(M35=\"\",#N/A,M35)","v":{"$error":"#N/A"}},{"$f":"IF(O35=\"\",#N/A,O35)","v":{"$error":"#N/A"}},null,"",""]
[null,"Contract:",{"$f":"IF('Project Info & Instructions'!C12=\"\",\"\",'Project Info & Instructions'!C12)","v":""},null,null,null,"Layer:",{"$f":"IF('Project Info & Instructions'!G16=\"\",\"\",'Project Info & Instructions'!G16)","v":""},null,null,null,null,null,null,null,null,null,null,null,null,null,null,"Core 8 Removed:",{"$f":"IF('Core Data'!AD11=TRUE,TRUE,FALSE)","v":false},null,{"$f":"IF(M36=\"\",#N/A,M36)","v":{"$error":"#N/A"}},{"$f":"IF(O36=\"\",#N/A,O36)","v":{"$error":"#N/A"}},null,"",""]
[null,"Job No.:",{"$f":"IF('Project Info & Instructions'!C13=\"\",\"\",'Project Info & Instructions'!C13)","v":""},null,null,null,"Mixture Type:",{"$f":"IF('Project Info & Instructions'!C21=\"\",\"\",'Project Info & Instructions'!C21)","v":"--"},null,null,null,null,null,null,null,null,null,null,null,null,null,null,"Core 9 Removed:",{"$f":"IF('Core Data'!AD12=TRUE,TRUE,FALSE)","v":false},null,{"$f":"IF(M37=\"\",#N/A,M37)","v":{"$error":"#N/A"}},{"$f":"IF(O37=\"\",#N/A,O37)","v":{"$error":"#N/A"}},null,"",""]
[null,"Route:",{"$f":"IF('Project Info & Instructions'!C14=\"\",\"\",'Project Info & Instructions'!C14)","v":""},null,null,null,null,null,null,null,null,null,null,null,null,null,null,null,null,null,null,null,"Core 10 Removed:",{"$f":"IF('Core Data'!AD13=TRUE,TRUE,FALSE)","v":false},null,{"$f":"IF(M38=\"\",#N/A,M38)","v":{"$error":"#N/A"}},{"$f":"IF(O38=\"\",#N/A,O38)","v":{"$error":"#N/A"}},null,"",""]
[null,"Underlying Matl.:",{"$f":"IF('Project Info & Instructions'!G17=\"\",\"\",'Project Info & Instructions'!G17)","v":""},null,null,null,"Layer Thickness:",{"$f":"IF('Project Info & Instructions'!G12=\"\",\"\",'Project Info & Instructions'!G12)","v":""},null,null,null,null,null,null,null,null,null,null,null,null,null,null,null,null,null,{"$f":"IF(M39=\"\",#N/A,M39)","v":{"$error":"#N/A"}},{"$f":"IF(O39=\"\",#N/A,O39)","v":{"$error":"#N/A"}},null,"",""]
[null,"WisDOT Mix No.:",{"$f":"IF('Project Info & Instructions'!C16=\"\",\"\",'Project Info & Instructions'!C16)","v":""},null,null,null,"Gmm:",{"$f":"IF('Project Info & Instructions'!R3=2,'Core Data'!I1,'Air Voids Pay Factor'!D11)","v":""}]
[null,"Mix Type:",{"$f":"IF('Project Info & Instructions'!C21=\"\",\"\",'Project Info & Instructions'!C21)","v":"--"},null,null,null,"Core Diameter:","6 inches"]
[null,"Test Strip Type:",{"$f":"'Project Info & Instructions'!R4","v":"Combined Density and Volumetrics Test Strip"}]
[]
[null,"NUCDENSITYTEC:",{"$f":"IF('QV-1 Density Worksheet'!I6=\"\",\"\",'QV-1 Density Worksheet'!I6)","v":""}]
[null,"Gauge No.:",{"$f":"IF('QV-1 Density Worksheet'!M4=\"\",\"\",'QV-1 Density Worksheet'!M4)","v":""}]
[]
[null,"ZONE 1"]
[null,"Station (@ center of Zone):",null,null,{"$f":"IF('Project Info & Instructions'!G26=\"\",\"\",'Project Info & Instructions'!G26)","v":""},null,null,null,null,null,null,null,"CALCULATIONS",null,null,null,"R-Squared:",null,null,null,{"$f":"IFERROR(RSQ(AC4:AC13,AD4:AD13),\"\")","v":""}]
[null,null,null,null,null,null,null,null,null,null,null,null,null,null,null,null,null,null,null,null,null,null,"All Values including removed cores"]
[null,"Reading 1\n(pcf)",null,"Reading 2\n(pcf)","Difference\n(pcf)",null,"Reading 3*            \n(pcf)",null,"Ave Nuclear\n(pcf)",null,"Core Gmb",null,"Ave Nuclear\n(%)",null,"Core Density (%)",null,"Difference\n(%)",null,"Adjusted Nuc. (%)",null,"Adj. Diff. (%)",null,"Core Gmb","Ave Nuclear","Core Density","Difference","Adjusted Nuc.","Adj. Diff."]
[{"$f":"'Core Data'!A11","v":""},{"$f":"'QV-1 Density Worksheet'!T14","v":""},null,{"$f":"'QV-1 Density Worksheet'!U14","v":""},{"$f":"IFERROR(ROUND(ABS(B25-D25),1),\"\")","v":""},null,{"$f":"'QV-1 Density Worksheet'!V14","v":""},null,{"$f":"IFERROR('QV-1 Density Worksheet'!AD14,\"\")","v":""},null,{"$f":"IF(X3=TRUE,\"\",IF('Core Data'!$AD$3=1,'Core Data'!G11,'Core Data'!O11))","v":""},null,{"$f":"IF(X3=TRUE,\"\",IFERROR(ROUND(I25/ROUND($H$14*62.24,1)*100,1),\"\"))","v":""},null,{"$f":"IF(X3=TRUE,\"\",IFERROR(ROUND(K25/$H$14*100,1),\"\"))","v":""},null,{"$f":"IFERROR(O25-M25,\"\")","v":""},null,{"$f":"IFERROR(M25+$U$41,\"\")","v":""},null,{"$f":"IFERROR(O25-S25,\"\")","v":""},null,{"$f":"IF('Core Data'!$AD$3=1,'Core Data'!G11,'Core Data'!O11)","v":""},{"$f":"IFERROR(ROUND(I25/ROUND($H$14*62.24,1)*100,1),\"\")","v":""},{"$f":"IFERROR(ROUND(W25/$H$14*100,1),\"\")","v":""},{"$f":"IFERROR(Y25-X25,\"\")","v":""},{"$f":"IFERROR(X25+$U$42,\"\")","v":""},{"$f":"IFERROR(Y25-AA25,\"\")","v":""}]
[{"$f":"'Core Data'!A12","v":""},{"$f":"'QV-1 Density Worksheet'!T15","v":""},null,{"$f":"'QV-1 Density Worksheet'!U15","v":""},{"$f":"IFERROR(ROUND(ABS(B26-D26),1),\"\")","v":""},null,{"$f":"'QV-1 Density Worksheet'!V15","v":""},null,{"$f":"IFERROR('QV-1 Density Worksheet'!AD15,\"\")","v":""},null,{"$f":"IF(X4=TRUE,\"\",IF('Core Data'!$AD$3=1,'Core Data'!G12,'Core Data'!O12))","v":""},null,{"$f":"IF(X4=TRUE,\"\",IFERROR(ROUND(I26/ROUND($H$14*62.24,1)*100,1),\"\"))","v":""},null,{"$f":"IF(X4=TRUE,\"\",IFERROR(ROUND(K26/$H$14*100,1),\"\"))","v":""},null,{"$f":"IFERROR(O26-M26,\"\")","v":""},null,{"$f":"IFERROR(M26+$U$41,\"\")","v":""},null,{"$f":"IFERROR(O26-S26,\"\")","v":""},null,{"$f":"IF('Core Data'!$AD$3=1,'Core Data'!G12,'Core Data'!O12)","v":""},{"$f":"IFERROR(ROUND(I26/ROUND($H$14*62.24,1)*100,1),\"\")","v":""},{"$f":"IFERROR(ROUND(W26/$H$14*100,1),\"\")","v":""},{"$f":"IFERROR(Y26-X26,\"\")","v":""},{"$f":"IFERROR(X26+$U$42,\"\")","v":""},{"$f":"IFERROR(Y26-AA26,\"\")","v":""}]
[{"$f":"'Core Data'!A13","v":""},{"$f":"'QV-1 Density Worksheet'!T16","v":""},null,{"$f":"'QV-1 Density Worksheet'!U16","v":""},"",null,{"$f":"'QV-1 Density Worksheet'!V16","v":""},null,{"$f":"IFERROR('QV-1 Density Worksheet'!AD16,\"\")","v":""},null,{"$f":"IF(X5=TRUE,\"\",IF('Core Data'!$AD$3=1,'Core Data'!G13,'Core Data'!O13))","v":""},null,{"$f":"IF(X5=TRUE,\"\",IFERROR(ROUND(I27/ROUND($H$14*62.24,1)*100,1),\"\"))","v":""},null,{"$f":"IF(X5=TRUE,\"\",IFERROR(ROUND(K27/$H$14*100,1),\"\"))","v":""},null,{"$f":"IFERROR(O27-M27,\"\")","v":""},null,{"$f":"IFERROR(M27+$U$41,\"\")","v":""},null,{"$f":"IFERROR(O27-S27,\"\")","v":""},null,{"$f":"IF('Core Data'!$AD$3=1,'Core Data'!G13,'Core Data'!O13)","v":""},{"$f":"IFERROR(ROUND(I27/ROUND($H$14*62.24,1)*100,1),\"\")","v":""},"","",{"$f":"IFERROR(X27+$U$42,\"\")","v":""},""]
[{"$f":"'Core Data'!A14","v":""},{"$f":"'QV-1 Density Worksheet'!T17","v":""},null,{"$f":"'QV-1 Density Worksheet'!U17","v":""},"",null,{"$f":"'QV-1 Density Worksheet'!V17","v":""},null,{"$f":"IFERROR('QV-1 Density Worksheet'!AD17,\"\")","v":""},null,{"$f":"IF(X6=TRUE,\"\",IF('Core Data'!$AD$3=1,'Core Data'!G14,'Core Data'!O14))","v":""},null,{"$f":"IF(X6=TRUE,\"\",IFERROR(ROUND(I28/ROUND($H$14*62.24,1)*100,1),\"\"))","v":""},null,{"$f":"IF(X6=TRUE,\"\",IFERROR(ROUND(K28/$H$14*100,1),\"\"))","v":""},null,{"$f":"IFERROR(O28-M28,\"\")","v":""},null,{"$f":"IFERROR(M28+$U$41,\"\")","v":""},null,{"$f":"IFERROR(O28-S28,\"\")","v":""},null,{"$f":"IF('Core Data'!$AD$3=1,'Core Data'!G14,'Core Data'!O14)","v":""},{"$f":"IFERROR(ROUND(I28/ROUND($H$14*62.24,1)*100,1),\"\")","v":""},"","",{"$f":"IFERROR(X28+$U$42,\"\")","v":""},""]
[{"$f":"'Core Data'!A15","v":""},{"$f":"'QV-1 Density Worksheet'!T18","v":""},null,{"$f":"'QV-1 Density Worksheet'!U18","v":""},"",null,{"$f":"'QV-1 Density Worksheet'!V18","v":""},null,{"$f":"IFERROR('QV-1 Density Worksheet'!AD18,\"\")","v":""},null,{"$f":"IF(X7=TRUE,\"\",IF('Core Data'!$AD$3=1,'Core Data'!G15,'Core Data'!O15))","v":""},null,{"$f":"IF(X7=TRUE,\"\",IFERROR(ROUND(I29/ROUND($H$14*62.24,1)*100,1),\"\"))","v":""},null,{"$f":"IF(X7=TRUE,\"\",IFERROR(ROUND(K29/$H$14*100,1),\"\"))","v":""},null,{"$f":"IFERROR(O29-M29,\"\")","v":""},null,{"$f":"IFERROR(M29+$U$41,\"\")","v":""},null,{"$f":"IFERROR(O29-S29,\"\")","v":""},null,{"$f":"IF('Core Data'!$AD$3=1,'Core Data'!G15,'Core Data'!O15)","v":""},{"$f":"IFERROR(ROUND(I29/ROUND($H$14*62.24,1)*100,1),\"\")","v":""},"","",{"$f":"IFERROR(X29+$U$42,\"\")","v":""},""]
[]
[null,"ZONE 2"]
[null,"Station (@ center of Zone):",null,null,{"$f":"IF('Project Info & Instructions'!G27=\"\",\"\",'Project Info & Instructions'!G27)","v":""}]
[]
[null,"Reading 1\n(pcf)",null,"Reading 2\n(pcf)","Difference\n(pcf)",null,"Reading 3*            \n(pcf)",null,"Ave Nuclear\n(pcf)",null,"Core Gmb",null,"Ave Nuclear\n(%)",null,"Core Density (%)",null,"Difference\n(%)",null,"Adjusted Nuc. (%)",null,"Adj. Diff. (%)",null,"Core Gmb","Ave Nuclear","Core Density","Difference","Adjusted Nuc.","Adj. Diff."]
[{"$f":"'Core Data'!A19","v":""},{"$f":"'QV-1 Density Worksheet'!T20","v":""},null,{"$f":"'QV-1 Density Worksheet'!U20","v":""},{"$f":"IFERROR(ROUND(ABS(B35-D35),1),\"\")","v":""},null,{"$f":"'QV-1 Density Worksheet'!V20","v":""},null,{"$f":"IFERROR('QV-1 Density Worksheet'!AD20,\"\")","v":""},null,{"$f":"IF(X8=TRUE,\"\",IF('Core Data'!$AD$3=1,'Core Data'!G19,'Core Data'!O19))","v":""},null,{"$f":"IF(X8=TRUE,\"\",IFERROR(ROUND(I35/ROUND($H$14*62.24,1)*100,1),\"\"))","v":""},null,{"$f":"IF(X8=TRUE,\"\",IFERROR(ROUND(K35/$H$14*100,1),\"\"))","v":""},null,{"$f":"IFERROR(O35-M35,\"\")","v":""},null,{"$f":"IFERROR(M35+$U$41,\"\")","v":""},null,{"$f":"IFERROR(O35-S35,\"\")","v":""},null,{"$f":"IF('Core Data'!$AD$3=1,'Core Data'!G19,'Core Data'!O19)","v":""},{"$f":"IFERROR(ROUND(I35/ROUND($H$14*62.24,1)*100,1),\"\")","v":""},{"$f":"IFERROR(ROUND(W35/$H$14*100,1),\"\")","v":""},{"$f":"IFERROR(Y35-X35,\"\")","v":""},{"$f":"IFERROR(X35+$U$42,\"\")","v":""},{"$f":"IFERROR(Y35-AA35,\"\")","v":""}]
[{"$f":"'Core Data'!A20","v":""},{"$f":"'QV-1 Density Worksheet'!T21","v":""},null,{"$f":"'QV-1 Density Worksheet'!U21","v":""},{"$f":"IFERROR(ROUND(ABS(B36-D36),1),\"\")","v":""},null,{"$f":"'QV-1 Density Worksheet'!V21","v":""},null,{"$f":"IFERROR('QV-1 Density Worksheet'!AD21,\"\")","v":""},null,{"$f":"IF(X9=TRUE,\"\",IF('Core Data'!$AD$3=1,'Core Data'!G20,'Core Data'!O20))","v":""},null,{"$f":"IF(X9=TRUE,\"\",IFERROR(ROUND(I36/ROUND($H$14*62.24,1)*100,1),\"\"))","v":""},null,{"$f":"IF(X9=TRUE,\"\",IFERROR(ROUND(K36/$H$14*100,1),\"\"))","v":""},null,{"$f":"IFERROR(O36-M36,\"\")","v":""},null,{"$f":"IFERROR(M36+$U$41,\"\")","v":""},null,{"$f":"IFERROR(O36-S36,\"\")","v":""},null,{"$f":"IF('Core Data'!$AD$3=1,'Core Data'!G20,'Core Data'!O20)","v":""},{"$f":"IFERROR(ROUND(I36/ROUND($H$14*62.24,1)*100,1),\"\")","v":""},{"$f":"IFERROR(ROUND(W36/$H$14*100,1),\"\")","v":""},{"$f":"IFERROR(Y36-X36,\"\")","v":""},{"$f":"IFERROR(X36+$U$42,\"\")","v":""},{"$f":"IFERROR(Y36-AA36,\"\")","v":""}]
[{"$f":"'Core Data'!A21","v":""},{"$f":"'QV-1 Density Worksheet'!T22","v":""},null,{"$f":"'QV-1 Density Worksheet'!U22","v":""},"",null,{"$f":"'QV-1 Density Worksheet'!V22","v":""},null,{"$f":"IFERROR('QV-1 Density Worksheet'!AD22,\"\")","v":""},null,{"$f":"IF(X10=TRUE,\"\",IF('Core Data'!$AD$3=1,'Core Data'!G21,'Core Data'!O21))","v":""},null,{"$f":"IF(X10=TRUE,\"\",IFERROR(ROUND(I37/ROUND($H$14*62.24,1)*100,1),\"\"))","v":""},null,{"$f":"IF(X10=TRUE,\"\",IFERROR(ROUND(K37/$H$14*100,1),\"\"))","v":""},null,{"$f":"IFERROR(O37-M37,\"\")","v":""},null,{"$f":"IFERROR(M37+$U$41,\"\")","v":""},null,{"$f":"IFERROR(O37-S37,\"\")","v":""},null,{"$f":"IF('Core Data'!$AD$3=1,'Core Data'!G21,'Core Data'!O21)","v":""},{"$f":"IFERROR(ROUND(I37/ROUND($H$14*62.24,1)*100,1),\"\")","v":""},"","",{"$f":"IFERROR(X37+$U$42,\"\")","v":""},""]
[{"$f":"'Core Data'!A22","v":""},{"$f":"'QV-1 Density Worksheet'!T23","v":""},null,{"$f":"'QV-1 Density Worksheet'!U23","v":""},"",null,{"$f":"'QV-1 Density Worksheet'!V23","v":""},null,{"$f":"IFERROR('QV-1 Density Worksheet'!AD23,\"\")","v":""},null,{"$f":"IF(X11=TRUE,\"\",IF('Core Data'!$AD$3=1,'Core Data'!G22,'Core Data'!O22))","v":""},null,{"$f":"IF(X11=TRUE,\"\",IFERROR(ROUND(I38/ROUND($H$14*62.24,1)*100,1),\"\"))","v":""},null,{"$f":"IF(X11=TRUE,\"\",IFERROR(ROUND(K38/$H$14*100,1),\"\"))","v":""},null,{"$f":"IFERROR(O38-M38,\"\")","v":""},null,{"$f":"IFERROR(M38+$U$41,\"\")","v":""},null,{"$f":"IFERROR(O38-S38,\"\")","v":""},null,{"$f":"IF('Core Data'!$AD$3=1,'Core Data'!G22,'Core Data'!O22)","v":""},{"$f":"IFERROR(ROUND(I38/ROUND($H$14*62.24,1)*100,1),\"\")","v":""},"","",{"$f":"IFERROR(X38+$U$42,\"\")","v":""},""]
[{"$f":"'Core Data'!A23","v":""},{"$f":"'QV-1 Density Worksheet'!T24","v":""},null,{"$f":"'QV-1 Density Worksheet'!U24","v":""},"",null,{"$f":"'QV-1 Density Worksheet'!V24","v":""},null,{"$f":"IFERROR('QV-1 Density Worksheet'!AD24,\"\")","v":""},null,{"$f":"IF(X12=TRUE,\"\",IF('Core Data'!$AD$3=1,'Core Data'!G23,'Core Data'!O23))","v":""},null,{"$f":"IF(X12=TRUE,\"\",IFERROR(ROUND(I39/ROUND($H$14*62.24,1)*100,1),\"\"))","v":""},null,{"$f":"IF(X12=TRUE,\"\",IFERROR(ROUND(K39/$H$14*100,1),\"\"))","v":""},null,{"$f":"IFERROR(O39-M39,\"\")","v":""},null,{"$f":"IFERROR(M39+$U$41,\"\")","v":""},null,{"$f":"IFERROR(O39-S39,\"\")","v":""},null,{"$f":"IF('Core Data'!$AD$3=1,'Core Data'!G23,'Core Data'!O23)","v":""},{"$f":"IFERROR(ROUND(I39/ROUND($H$14*62.24,1)*100,1),\"\")","v":""},"","",{"$f":"IFERROR(X39+$U$42,\"\")","v":""},""]
[]
[null,null,null,null,null,null,null,null,null,null,"Spread (%):",null,{"$f":"MAX(M25:M29,M35:M39)-MIN(M25:M29,M35:M39)","v":0},null,{"$f":"MAX(O25:O29,O35:O39)-MIN(O25:O29,O35:O39)","v":0},null,"OFFSET:",null,null,null,{"$f":"IFERROR(ROUND(AVERAGE(Q25:Q29,Q35:Q39),1),\"\")","v":""}]
[null,null,null,null,null,null,null,null,null,null,null,null,null,null,null,null,"OFFSET:\n(including removed cores)",null,null,null,{"$f":"IFERROR(ROUND(AVERAGE(Z25:Z29,Z35:Z39),1),\"\")","v":""}]

{"sheet":"QV-2 Correlation","index":16,"n_rows":42,"n_cols":30,"rows_kept":42,"cut":false,"hidden":false,"merged":[[40,10,40,11],[1,25,1,26],[1,28,1,29],[21,1,21,3],[31,1,31,3],[21,16,21,19],[40,16,40,19],[9,7,9,8],[10,7,10,8],[22,22,22,27],[41,16,41,19],[1,22,1,23],[8,2,8,4],[0,3,4,8],[6,3,6,8],[8,7,8,8],[14,2,14,4],[14,7,14,8],[9,2,9,4],[11,7,11,8],[13,2,13,4],[13,7,13,8],[10,2,10,4],[12,7,12,8],[11,2,11,4],[12,2,12,4],[37,37,39,39],[15,2,15,8],[31,4,31,6],[17,2,17,4],[21,4,21,6],[18,2,18,4]]}
[null,null,null,"Wisconsin Department \nof Transportation "]
[null,null,null,null,null,null,null,null,null,null,null,null,null,null,null,null,null,null,null,null,null,null,"Worksheet Variables",null,null,"Graph Points",null,null,"R-Squared Calculation"]
[null,null,null,null,null,null,null,null,null,null,null,null,null,null,null,null,null,null,null,null,null,null,"Core 1 Removed:",{"$f":"IF('Core Data'!AD4=TRUE,TRUE,FALSE)","v":false},null,"Nuclear","Core",null,"Nuclear","Core"]
[null,null,null,null,null,null,null,null,null,null,null,null,null,null,null,null,null,null,null,null,null,null,"Core 2 Removed:",{"$f":"IF('Core Data'!AD5=TRUE,TRUE,FALSE)","v":false},null,{"$f":"IF(M25=\"\",#N/A,M25)","v":{"$error":"#N/A"}},{"$f":"IF(O25=\"\",#N/A,O25)","v":{"$error":"#N/A"}},null,{"$f":"IF(ISNUMBER(Z4),Z4,\"\")","v":""},{"$f":"IF(ISNUMBER(AA4),AA4,\"\")","v":""}]
[null,null,null,null,null,null,null,null,null,null,null,null,null,null,null,null,null,null,null,null,null,null,"Core 3 Removed:",{"$f":"IF('Core Data'!AD6=TRUE,TRUE,FALSE)","v":false},null,{"$f":"IF(M26=\"\",#N/A,M26)","v":{"$error":"#N/A"}},{"$f":"IF(O26=\"\",#N/A,O26)","v":{"$error":"#N/A"}},null,"",""]
[null,{"$f":"'Project Info & Instructions'!A6","v":"Revised 5-01-25"},null,null,null,null,null,null,null,null,null,null,null,null,null,null,null,null,null,null,null,null,"Core 4 Removed:",{"$f":"IF('Core Data'!AD7=TRUE,TRUE,FALSE)","v":false},null,{"$f":"IF(M27=\"\",#N/A,M27)","v":{"$error":"#N/A"}},{"$f":"IF(O27=\"\",#N/A,O27)","v":{"$error":"#N/A"}},null,"",""]
[null,null,null,"Nuclear / Core Correlation Worksheet",null,null,null,null,null,null,null,null,null,null,null,null,null,null,null,null,null,null,"Core 5 Removed:",{"$f":"IF('Core Data'!AD8=TRUE,TRUE,FALSE)","v":false},null,{"$f":"IF(M28=\"\",#N/A,M28)","v":{"$error":"#N/A"}},{"$f":"IF(O28=\"\",#N/A,O28)","v":{"$error":"#N/A"}},null,"",""]
[null,null,null,null,null,null,null,null,null,null,null,null,null,null,null,null,null,null,null,null,null,null,"Core 6 Removed:",{"$f":"IF('Core Data'!AD9=TRUE,TRUE,FALSE)","v":false},null,{"$f":"IF(M29=\"\",#N/A,M29)","v":{"$error":"#N/A"}},{"$f":"IF(O29=\"\",#N/A,O29)","v":{"$error":"#N/A"}},null,"",""]
[null,"Date:",{"$f":"IF('Project Info & Instructions'!C10=\"\",\"\",'Project Info & Instructions'!C10)","v":""},null,null,null,"Test Strip #:",{"$f":"IF('Project Info & Instructions'!C11=\"\",\"\",'Project Info & Instructions'!C11)","v":""},null,null,null,null,null,null,null,null,null,null,null,null,null,null,"Core 7 Removed:",{"$f":"IF('Core Data'!AD10=TRUE,TRUE,FALSE)","v":false},null,{"$f":"IF(M35=\"\",#N/A,M35)","v":{"$error":"#N/A"}},{"$f":"IF(O35=\"\",#N/A,O35)","v":{"$error":"#N/A"}},null,"",""]
[null,"Contract:",{"$f":"IF('Project Info & Instructions'!C12=\"\",\"\",'Project Info & Instructions'!C12)","v":""},null,null,null,"Layer:",{"$f":"IF('Project Info & Instructions'!G16=\"\",\"\",'Project Info & Instructions'!G16)","v":""},null,null,null,null,null,null,null,null,null,null,null,null,null,null,"Core 8 Removed:",{"$f":"IF('Core Data'!AD11=TRUE,TRUE,FALSE)","v":false},null,{"$f":"IF(M36=\"\",#N/A,M36)","v":{"$error":"#N/A"}},{"$f":"IF(O36=\"\",#N/A,O36)","v":{"$error":"#N/A"}},null,"",""]
[null,"Job No.:",{"$f":"IF('Project Info & Instructions'!C13=\"\",\"\",'Project Info & Instructions'!C13)","v":""},null,null,null,"Mixture Type:",{"$f":"IF('Project Info & Instructions'!C21=\"\",\"\",'Project Info & Instructions'!C21)","v":"--"},null,null,null,null,null,null,null,null,null,null,null,null,null,null,"Core 9 Removed:",{"$f":"IF('Core Data'!AD12=TRUE,TRUE,FALSE)","v":false},null,{"$f":"IF(M37=\"\",#N/A,M37)","v":{"$error":"#N/A"}},{"$f":"IF(O37=\"\",#N/A,O37)","v":{"$error":"#N/A"}},null,"",""]
[null,"Route:",{"$f":"IF('Project Info & Instructions'!C14=\"\",\"\",'Project Info & Instructions'!C14)","v":""},null,null,null,null,null,null,null,null,null,null,null,null,null,null,null,null,null,null,null,"Core 10 Removed:",{"$f":"IF('Core Data'!AD13=TRUE,TRUE,FALSE)","v":false},null,{"$f":"IF(M38=\"\",#N/A,M38)","v":{"$error":"#N/A"}},{"$f":"IF(O38=\"\",#N/A,O38)","v":{"$error":"#N/A"}},null,"",""]
[null,"Underlying Matl.:",{"$f":"IF('Project Info & Instructions'!G17=\"\",\"\",'Project Info & Instructions'!G17)","v":""},null,null,null,"Layer Thickness:",{"$f":"IF('Project Info & Instructions'!G12=\"\",\"\",'Project Info & Instructions'!G12)","v":""},null,null,null,null,null,null,null,null,null,null,null,null,null,null,null,null,null,{"$f":"IF(M39=\"\",#N/A,M39)","v":{"$error":"#N/A"}},{"$f":"IF(O39=\"\",#N/A,O39)","v":{"$error":"#N/A"}},null,"",""]
[null,"WisDOT Mix No.:",{"$f":"IF('Project Info & Instructions'!C16=\"\",\"\",'Project Info & Instructions'!C16)","v":""},null,null,null,"Gmm:",{"$f":"IF('Project Info & Instructions'!R3=2,'Core Data'!I1,'Air Voids Pay Factor'!D11)","v":""}]
[null,"Mix Type:",{"$f":"IF('Project Info & Instructions'!C21=\"\",\"\",'Project Info & Instructions'!C21)","v":"--"},null,null,null,"Core Diameter:","6 inches"]
[null,"Test Strip Type:",{"$f":"'Project Info & Instructions'!R4","v":"Combined Density and Volumetrics Test Strip"}]
[]
[null,"NUCDENSITYTEC:",{"$f":"IF('QV-2 Density Worksheet'!I6=\"\",\"\",'QV-2 Density Worksheet'!I6)","v":""}]
[null,"Gauge No.:",{"$f":"IF('QV-2 Density Worksheet'!M4=\"\",\"\",'QV-2 Density Worksheet'!M4)","v":""}]
[]
[null,"ZONE 1"]
[null,"Station (@ center of Zone):",null,null,{"$f":"IF('Project Info & Instructions'!G26=\"\",\"\",'Project Info & Instructions'!G26)","v":""},null,null,null,null,null,null,null,"CALCULATIONS",null,null,null,"R-Squared:",null,null,null,{"$f":"IFERROR(RSQ(AC4:AC13,AD4:AD13),\"\")","v":""}]
[null,null,null,null,null,null,null,null,null,null,null,null,null,null,null,null,null,null,null,null,null,null,"All Values including removed cores"]
[null,"Reading 1\n(pcf)",null,"Reading 2\n(pcf)","Difference\n(pcf)",null,"Reading 3*            \n(pcf)",null,"Ave Nuclear\n(pcf)",null,"Core Gmb",null,"Ave Nuclear\n(%)",null,"Core Density (%)",null,"Difference\n(%)",null,"Adjusted Nuc. (%)",null,"Adj. Diff. (%)",null,"Core Gmb","Ave Nuclear","Core Density","Difference","Adjusted Nuc.","Adj. Diff."]
[{"$f":"'Core Data'!A11","v":""},{"$f":"'QV-2 Density Worksheet'!T14","v":""},null,{"$f":"'QV-2 Density Worksheet'!U14","v":""},{"$f":"IFERROR(ROUND(ABS(B25-D25),1),\"\")","v":""},null,{"$f":"'QV-2 Density Worksheet'!V14","v":""},null,{"$f":"IFERROR('QV-2 Density Worksheet'!AD14,\"\")","v":""},null,{"$f":"IF(X3=TRUE,\"\",IF('Core Data'!$AD$3=1,'Core Data'!G11,'Core Data'!O11))","v":""},null,{"$f":"IF(X3=TRUE,\"\",IFERROR(ROUND(I25/ROUND($H$14*62.24,1)*100,1),\"\"))","v":""},null,{"$f":"IF(X3=TRUE,\"\",IFERROR(ROUND(K25/$H$14*100,1),\"\"))","v":""},null,{"$f":"IFERROR(O25-M25,\"\")","v":""},null,{"$f":"IFERROR(M25+$U$41,\"\")","v":""},null,{"$f":"IFERROR(O25-S25,\"\")","v":""},null,{"$f":"IF('Core Data'!$AD$3=1,'Core Data'!G11,'Core Data'!O11)","v":""},{"$f":"IFERROR(ROUND(I25/ROUND($H$14*62.24,1)*100,1),\"\")","v":""},{"$f":"IFERROR(ROUND(W25/$H$14*100,1),\"\")","v":""},{"$f":"IFERROR(Y25-X25,\"\")","v":""},{"$f":"IFERROR(X25+$U$42,\"\")","v":""},{"$f":"IFERROR(Y25-AA25,\"\")","v":""}]
[{"$f":"'Core Data'!A12","v":""},{"$f":"'QV-2 Density Worksheet'!T15","v":""},null,{"$f":"'QV-2 Density Worksheet'!U15","v":""},{"$f":"IFERROR(ROUND(ABS(B26-D26),1),\"\")","v":""},null,{"$f":"'QV-2 Density Worksheet'!V15","v":""},null,{"$f":"IFERROR('QV-2 Density Worksheet'!AD15,\"\")","v":""},null,{"$f":"IF(X4=TRUE,\"\",IF('Core Data'!$AD$3=1,'Core Data'!G12,'Core Data'!O12))","v":""},null,{"$f":"IF(X4=TRUE,\"\",IFERROR(ROUND(I26/ROUND($H$14*62.24,1)*100,1),\"\"))","v":""},null,{"$f":"IF(X4=TRUE,\"\",IFERROR(ROUND(K26/$H$14*100,1),\"\"))","v":""},null,{"$f":"IFERROR(O26-M26,\"\")","v":""},null,{"$f":"IFERROR(M26+$U$41,\"\")","v":""},null,{"$f":"IFERROR(O26-S26,\"\")","v":""},null,{"$f":"IF('Core Data'!$AD$3=1,'Core Data'!G12,'Core Data'!O12)","v":""},{"$f":"IFERROR(ROUND(I26/ROUND($H$14*62.24,1)*100,1),\"\")","v":""},{"$f":"IFERROR(ROUND(W26/$H$14*100,1),\"\")","v":""},{"$f":"IFERROR(Y26-X26,\"\")","v":""},{"$f":"IFERROR(X26+$U$42,\"\")","v":""},{"$f":"IFERROR(Y26-AA26,\"\")","v":""}]
[{"$f":"'Core Data'!A13","v":""},{"$f":"'QV-2 Density Worksheet'!T16","v":""},null,{"$f":"'QV-2 Density Worksheet'!U16","v":""},"",null,{"$f":"'QV-2 Density Worksheet'!V16","v":""},null,{"$f":"IFERROR('QV-2 Density Worksheet'!AD16,\"\")","v":""},null,{"$f":"IF(X5=TRUE,\"\",IF('Core Data'!$AD$3=1,'Core Data'!G13,'Core Data'!O13))","v":""},null,{"$f":"IF(X5=TRUE,\"\",IFERROR(ROUND(I27/ROUND($H$14*62.24,1)*100,1),\"\"))","v":""},null,{"$f":"IF(X5=TRUE,\"\",IFERROR(ROUND(K27/$H$14*100,1),\"\"))","v":""},null,{"$f":"IFERROR(O27-M27,\"\")","v":""},null,{"$f":"IFERROR(M27+$U$41,\"\")","v":""},null,{"$f":"IFERROR(O27-S27,\"\")","v":""},null,{"$f":"IF('Core Data'!$AD$3=1,'Core Data'!G13,'Core Data'!O13)","v":""},{"$f":"IFERROR(ROUND(I27/ROUND($H$14*62.24,1)*100,1),\"\")","v":""},"","",{"$f":"IFERROR(X27+$U$42,\"\")","v":""},""]
[{"$f":"'Core Data'!A14","v":""},{"$f":"'QV-2 Density Worksheet'!T17","v":""},null,{"$f":"'QV-2 Density Worksheet'!U17","v":""},"",null,{"$f":"'QV-2 Density Worksheet'!V17","v":""},null,{"$f":"IFERROR('QV-2 Density Worksheet'!AD17,\"\")","v":""},null,{"$f":"IF(X6=TRUE,\"\",IF('Core Data'!$AD$3=1,'Core Data'!G14,'Core Data'!O14))","v":""},null,{"$f":"IF(X6=TRUE,\"\",IFERROR(ROUND(I28/ROUND($H$14*62.24,1)*100,1),\"\"))","v":""},null,{"$f":"IF(X6=TRUE,\"\",IFERROR(ROUND(K28/$H$14*100,1),\"\"))","v":""},null,{"$f":"IFERROR(O28-M28,\"\")","v":""},null,{"$f":"IFERROR(M28+$U$41,\"\")","v":""},null,{"$f":"IFERROR(O28-S28,\"\")","v":""},null,{"$f":"IF('Core Data'!$AD$3=1,'Core Data'!G14,'Core Data'!O14)","v":""},{"$f":"IFERROR(ROUND(I28/ROUND($H$14*62.24,1)*100,1),\"\")","v":""},"","",{"$f":"IFERROR(X28+$U$42,\"\")","v":""},""]
[{"$f":"'Core Data'!A15","v":""},{"$f":"'QV-2 Density Worksheet'!T18","v":""},null,{"$f":"'QV-2 Density Worksheet'!U18","v":""},"",null,{"$f":"'QV-2 Density Worksheet'!V18","v":""},null,{"$f":"IFERROR('QV-2 Density Worksheet'!AD18,\"\")","v":""},null,{"$f":"IF(X7=TRUE,\"\",IF('Core Data'!$AD$3=1,'Core Data'!G15,'Core Data'!O15))","v":""},null,{"$f":"IF(X7=TRUE,\"\",IFERROR(ROUND(I29/ROUND($H$14*62.24,1)*100,1),\"\"))","v":""},null,{"$f":"IF(X7=TRUE,\"\",IFERROR(ROUND(K29/$H$14*100,1),\"\"))","v":""},null,{"$f":"IFERROR(O29-M29,\"\")","v":""},null,{"$f":"IFERROR(M29+$U$41,\"\")","v":""},null,{"$f":"IFERROR(O29-S29,\"\")","v":""},null,{"$f":"IF('Core Data'!$AD$3=1,'Core Data'!G15,'Core Data'!O15)","v":""},{"$f":"IFERROR(ROUND(I29/ROUND($H$14*62.24,1)*100,1),\"\")","v":""},"","",{"$f":"IFERROR(X29+$U$42,\"\")","v":""},""]
[]
[null,"ZONE 2"]
[null,"Station (@ center of Zone):",null,null,{"$f":"IF('Project Info & Instructions'!G27=\"\",\"\",'Project Info & Instructions'!G27)","v":""}]
[]
[null,"Reading 1\n(pcf)",null,"Reading 2\n(pcf)","Difference\n(pcf)",null,"Reading 3*            \n(pcf)",null,"Ave Nuclear\n(pcf)",null,"Core Gmb",null,"Ave Nuclear\n(%)",null,"Core Density (%)",null,"Difference\n(%)",null,"Adjusted Nuc. (%)",null,"Adj. Diff. (%)",null,"Core Gmb","Ave Nuclear","Core Density","Difference","Adjusted Nuc.","Adj. Diff."]
[{"$f":"'Core Data'!A19","v":""},{"$f":"'QV-2 Density Worksheet'!T20","v":""},null,{"$f":"'QV-2 Density Worksheet'!U20","v":""},{"$f":"IFERROR(ROUND(ABS(B35-D35),1),\"\")","v":""},null,{"$f":"'QV-2 Density Worksheet'!V20","v":""},null,{"$f":"IFERROR('QV-2 Density Worksheet'!AD20,\"\")","v":""},null,{"$f":"IF(X8=TRUE,\"\",IF('Core Data'!$AD$3=1,'Core Data'!G19,'Core Data'!O19))","v":""},null,{"$f":"IF(X8=TRUE,\"\",IFERROR(ROUND(I35/ROUND($H$14*62.24,1)*100,1),\"\"))","v":""},null,{"$f":"IF(X8=TRUE,\"\",IFERROR(ROUND(K35/$H$14*100,1),\"\"))","v":""},null,{"$f":"IFERROR(O35-M35,\"\")","v":""},null,{"$f":"IFERROR(M35+$U$41,\"\")","v":""},null,{"$f":"IFERROR(O35-S35,\"\")","v":""},null,{"$f":"IF('Core Data'!$AD$3=1,'Core Data'!G19,'Core Data'!O19)","v":""},{"$f":"IFERROR(ROUND(I35/ROUND($H$14*62.24,1)*100,1),\"\")","v":""},{"$f":"IFERROR(ROUND(W35/$H$14*100,1),\"\")","v":""},{"$f":"IFERROR(Y35-X35,\"\")","v":""},{"$f":"IFERROR(X35+$U$42,\"\")","v":""},{"$f":"IFERROR(Y35-AA35,\"\")","v":""}]
[{"$f":"'Core Data'!A20","v":""},{"$f":"'QV-2 Density Worksheet'!T21","v":""},null,{"$f":"'QV-2 Density Worksheet'!U21","v":""},{"$f":"IFERROR(ROUND(ABS(B36-D36),1),\"\")","v":""},null,{"$f":"'QV-2 Density Worksheet'!V21","v":""},null,{"$f":"IFERROR('QV-2 Density Worksheet'!AD21,\"\")","v":""},null,{"$f":"IF(X9=TRUE,\"\",IF('Core Data'!$AD$3=1,'Core Data'!G20,'Core Data'!O20))","v":""},null,{"$f":"IF(X9=TRUE,\"\",IFERROR(ROUND(I36/ROUND($H$14*62.24,1)*100,1),\"\"))","v":""},null,{"$f":"IF(X9=TRUE,\"\",IFERROR(ROUND(K36/$H$14*100,1),\"\"))","v":""},null,{"$f":"IFERROR(O36-M36,\"\")","v":""},null,{"$f":"IFERROR(M36+$U$41,\"\")","v":""},null,{"$f":"IFERROR(O36-S36,\"\")","v":""},null,{"$f":"IF('Core Data'!$AD$3=1,'Core Data'!G20,'Core Data'!O20)","v":""},{"$f":"IFERROR(ROUND(I36/ROUND($H$14*62.24,1)*100,1),\"\")","v":""},{"$f":"IFERROR(ROUND(W36/$H$14*100,1),\"\")","v":""},{"$f":"IFERROR(Y36-X36,\"\")","v":""},{"$f":"IFERROR(X36+$U$42,\"\")","v":""},{"$f":"IFERROR(Y36-AA36,\"\")","v":""}]
[{"$f":"'Core Data'!A21","v":""},{"$f":"'QV-2 Density Worksheet'!T22","v":""},null,{"$f":"'QV-2 Density Worksheet'!U22","v":""},"",null,{"$f":"'QV-2 Density Worksheet'!V22","v":""},null,{"$f":"IFERROR('QV-2 Density Worksheet'!AD22,\"\")","v":""},null,{"$f":"IF(X10=TRUE,\"\",IF('Core Data'!$AD$3=1,'Core Data'!G21,'Core Data'!O21))","v":""},null,{"$f":"IF(X10=TRUE,\"\",IFERROR(ROUND(I37/ROUND($H$14*62.24,1)*100,1),\"\"))","v":""},null,{"$f":"IF(X10=TRUE,\"\",IFERROR(ROUND(K37/$H$14*100,1),\"\"))","v":""},null,{"$f":"IFERROR(O37-M37,\"\")","v":""},null,{"$f":"IFERROR(M37+$U$41,\"\")","v":""},null,{"$f":"IFERROR(O37-S37,\"\")","v":""},null,{"$f":"IF('Core Data'!$AD$3=1,'Core Data'!G21,'Core Data'!O21)","v":""},{"$f":"IFERROR(ROUND(I37/ROUND($H$14*62.24,1)*100,1),\"\")","v":""},"","",{"$f":"IFERROR(X37+$U$42,\"\")","v":""},""]
[{"$f":"'Core Data'!A22","v":""},{"$f":"'QV-2 Density Worksheet'!T23","v":""},null,{"$f":"'QV-2 Density Worksheet'!U23","v":""},"",null,{"$f":"'QV-2 Density Worksheet'!V23","v":""},null,{"$f":"IFERROR('QV-2 Density Worksheet'!AD23,\"\")","v":""},null,{"$f":"IF(X11=TRUE,\"\",IF('Core Data'!$AD$3=1,'Core Data'!G22,'Core Data'!O22))","v":""},null,{"$f":"IF(X11=TRUE,\"\",IFERROR(ROUND(I38/ROUND($H$14*62.24,1)*100,1),\"\"))","v":""},null,{"$f":"IF(X11=TRUE,\"\",IFERROR(ROUND(K38/$H$14*100,1),\"\"))","v":""},null,{"$f":"IFERROR(O38-M38,\"\")","v":""},null,{"$f":"IFERROR(M38+$U$41,\"\")","v":""},null,{"$f":"IFERROR(O38-S38,\"\")","v":""},null,{"$f":"IF('Core Data'!$AD$3=1,'Core Data'!G22,'Core Data'!O22)","v":""},{"$f":"IFERROR(ROUND(I38/ROUND($H$14*62.24,1)*100,1),\"\")","v":""},"","",{"$f":"IFERROR(X38+$U$42,\"\")","v":""},""]
[{"$f":"'Core Data'!A23","v":""},{"$f":"'QV-2 Density Worksheet'!T24","v":""},null,{"$f":"'QV-2 Density Worksheet'!U24","v":""},"",null,{"$f":"'QV-2 Density Worksheet'!V24","v":""},null,{"$f":"IFERROR('QV-2 Density Worksheet'!AD24,\"\")","v":""},null,{"$f":"IF(X12=TRUE,\"\",IF('Core Data'!$AD$3=1,'Core Data'!G23,'Core Data'!O23))","v":""},null,{"$f":"IF(X12=TRUE,\"\",IFERROR(ROUND(I39/ROUND($H$14*62.24,1)*100,1),\"\"))","v":""},null,{"$f":"IF(X12=TRUE,\"\",IFERROR(ROUND(K39/$H$14*100,1),\"\"))","v":""},null,{"$f":"IFERROR(O39-M39,\"\")","v":""},null,{"$f":"IFERROR(M39+$U$41,\"\")","v":""},null,{"$f":"IFERROR(O39-S39,\"\")","v":""},null,{"$f":"IF('Core Data'!$AD$3=1,'Core Data'!G23,'Core Data'!O23)","v":""},{"$f":"IFERROR(ROUND(I39/ROUND($H$14*62.24,1)*100,1),\"\")","v":""},"","",{"$f":"IFERROR(X39+$U$42,\"\")","v":""},""]
[]
[null,null,null,null,null,null,null,null,null,null,"Spread (%):",null,{"$f":"MAX(M25:M29,M35:M39)-MIN(M25:M29,M35:M39)","v":0},null,{"$f":"MAX(O25:O29,O35:O39)-MIN(O25:O29,O35:O39)","v":0},null,"OFFSET:",null,null,null,{"$f":"IFERROR(ROUND(AVERAGE(Q25:Q29,Q35:Q39),1),\"\")","v":""}]
[null,null,null,null,null,null,null,null,null,null,null,null,null,null,null,null,"OFFSET:\n(including removed cores)",null,null,null,{"$f":"IFERROR(ROUND(AVERAGE(Z25:Z29,Z35:Z39),1),\"\")","v":""}]

{"sheet":"INTERNAL_SYS_MSGS","index":17,"n_rows":65,"n_cols":2,"rows_kept":65,"cut":false,"hidden":true,"merged":[]}
[]
[null,"Project Info. & Instructions - Pavement Layers Dropdown Menu"]
[null,"Lower"]
[null,"Middle"]
[null,"Upper"]
[]
[null,"Project Info. & Instructions - Underlying Layers Dropdown Menu"]
[null,"Aggregate Base (Dense or Open Graded)"]
[null,"PCC"]
[null,"Recycled PCC"]
[null,"Existing HMA"]
[null,"New HMA"]
[null,"Recycled HMA (Pulverize or Mill and Relay)"]
[null,"Cold In-Place Recycle (CIR)"]
[null,"Project Info. & Instructions"]
[null,"Enter Mix and Layer Info"]
[null,"Split Sample Comparison"]
[null,"Test differences within testing tolerance."]
[null,"Test differences exceed testing tolerance."]
[null,"Do not Compare."]
[null,"Datasets Compare."]
[null,"One or more Gmm exceeds the JMF Acceptance Limit. Consult Regional PWL Rep. & BTS."]
[null,"Gmms are within JMF Acceptance Limit."]
[null,"Enter JMF Gmm."]
[null,"Enter JMF Gmm on Project Info & Instructions Tab."]
[null,"BTS Result"]
[null,"Core Data"]
[null,"Enter JMF Gmm."]
[null,"Enter Gmm."]
[null,"Gmm During Test Strip Exceeds Acceptance Limits."]
[null,"Gmm During Test Strip Within Acceptance Limits."]
[null,"AC % Data"]
[null,"Enter the JMF Gse and AC Sp. Gr. on Project Info & Instructions Tab."]
[null,"Enter JMF Binder AC%."]
[null,"Enter BTS AC%."]
[null,"One or more asphalt content differences is more than 0.2% apart."]
[null,"Air Voids Pay Factor"]
[null,{"$f":"B26","v":"BTS Result"}]
[null,"Final Tonnage Needed."]
[null,"Density Pay Factor"]
[null,"Final Length Needed."]
[null,"Enter Runnning Average Gmm on Core Data Tab."]
[null,"Test Strip Summary"]
[null,"Enter JMF Gmm on Project Info & Instructions Tab."]
[null,"Enter Non-Random Gmm on Core Data Tab."]
[null,"Enter Gmm Taken During Test Strip on Core Data Tab."]
[null,"Approved; However, consult Regional PWL Rep. & BTS prior to proceeding with production."]
[null,"Approved, proceed with production."]
[null,"Not approved. Consult Regional PWL Rep. & BTS."]
[null,"Conforming, Test Strip Material May Remain in Place."]
[null,"Unacceptable, Consult Regional PWL Rep. & BTS."]
[null,"Failed T-test Only - No Referee Testing Needed - "]
[null,"Split Samples do not Compare, Consult Regional PWL Rep. & BTS."]
[null,"Pass"]
[null,"Fail"]
[null,"Not Applicable."]
[null,"AC Binder % Exceeds Acceptance Limits."]
[null,"Acceptable, but consult BTS for QC-QV differences more than 0.2%."]
[null,"One or More Mix Parameter Exceeds Acceptance Limits."]
[null,"Save with Suggested File Name and send a copy of the completed Test Strip Excel file to the Regional PWL Rep. and BTS"]
[null,"Daniel.Kopacz@dot.wi.gov"]
[null,"Gauge-Core Variability"]
[null,"Location Comparison Averages (shown in cells G12 - G21) ≥ 1.0 or ≤ -1.0 indicate a core that may be damaged.  In such cases the individual core can be removed from the analysis by checking the \"Remove Core X\" box on the Core Data tab of this spreadsheet."]
[null,"A Gauge Comparison Average (shown in cells B36, C36, D36, and E36) ≥ 1.0 indicates a gauge that has erratic readings.  In such cases the gauge in question should be removed from the project and further diagnostics should be performed in coordination with the WisDOT Radiation Safety Officer (RSO). \n WisDOT RSO Contact:"]
[null,"Brian Jandrin\nBrian.Jandrin@dot.wi.gov\n(608) 516-6359, Primary"]

{"sheet":"INTERNAL_SYS_VAR","index":18,"n_rows":8,"n_cols":3,"rows_kept":8,"cut":false,"hidden":true,"merged":[[5,1,5,2]]}
[]
[null,"Worksheet Revision Date:","2025-05-01"]
[]
[null,"Gauge/Core Spacing (ft):",50]
[]
[null,"Split Sample Comparison"]
[null,"Gmm Xd Mean Tolerance:",1.2E-2]
[null,"Gmb Xd Mean Tolerance:",1.2E-2]

{"sheet":"Data Summary","index":19,"n_rows":21,"n_cols":117,"rows_kept":21,"cut":false,"hidden":true,"merged":[[2,2,4,2],[1,1,5,1],[2,7,4,7],[2,6,4,6],[2,5,4,5],[2,4,4,4],[2,3,4,3],[2,12,4,12],[2,11,4,11],[2,10,4,10],[2,9,4,9],[2,8,4,8],[1,2,1,33],[2,25,4,25],[2,24,4,24],[2,23,4,23],[2,17,4,17],[2,16,4,16],[2,15,4,15],[2,14,4,14],[2,13,4,13],[2,22,4,22],[2,21,4,21],[2,20,4,20],[2,19,4,19],[2,18,4,18],[3,37,4,37],[3,36,4,36],[3,35,4,35],[3,34,4,34],[2,33,4,33],[3,42,4,42],[3,41,4,41],[3,40,4,40],[3,39,4,39],[3,38,4,38],[2,34,2,36],[2,37,2,39],[2,40,2,42],[3,47,4,47],[3,46,4,46],[3,45,4,45],[3,44,4,44],[3,43,4,43],[3,52,4,52],[3,51,4,51],[3,50,4,50],[3,49,4,49],[3,48,4,48],[3,57,4,57],[3,56,4,56],[3,55,4,55],[3,54,4,54],[3,53,4,53],[3,62,4,62],[3,61,4,61],[3,60,4,60],[3,59,4,59],[3,58,4,58],[3,66,4,66],[3,65,4,65],[3,64,4,64],[3,63,4,63],[3,72,4,72],[1,77,1,116],[3,76,4,76],[3,75,4,75],[3,74,4,74],[3,73,4,73],[2,77,2,95],[2,96,2,116],[3,77,3,79],[3,80,3,82],[3,83,3,95],[3,96,3,101],[3,102,3,106],[3,107,3,111],[3,112,3,116],[3,71,4,71],[3,70,4,70],[3,69,4,69],[3,68,4,68],[17,2,17,3],[18,2,19,2],[18,3,19,3],[18,29,18,33],[18,34,18,38],[2,43,2,45],[1,34,1,76],[2,32,4,32],[2,31,4,31],[2,30,4,30],[2,29,4,29],[2,28,4,28],[2,27,4,27],[2,26,4,26],[2,61,2,63],[2,64,2,66],[2,67,2,69],[2,70,2,76],[2,46,2,48],[2,49,2,51],[2,52,2,54],[2,55,2,57],[2,58,2,60],[3,67,4,67],[18,39,18,43],[17,23,17,43],[8,1,9,1],[12,39,12,45],[12,12,12,14],[12,24,12,26],[12,36,12,38],[12,27,12,29],[12,30,12,32],[12,33,12,35],[12,6,12,8],[12,9,12,11],[12,15,12,17],[12,18,12,20],[12,21,12,23],[12,1,14,1],[12,3,12,5],[12,2,13,2],[17,1,20,1],[18,10,18,22],[18,23,18,28],[18,7,18,9],[17,4,17,22],[18,4,18,6]]}
[]
[null,"Database C/P Line","Project Information",null,null,null,null,null,null,null,null,null,null,null,null,null,null,null,null,null,null,null,null,null,null,null,null,null,null,null,null,null,null,null,"Volumetrics",null,null,null,null,null,null,null,null,null,null,null,null,null,null,null,null,null,null,null,null,null,null,null,null,null,null,null,null,null,null,null,null,null,null,null,null,null,null,null,null,null,null,"Mainline Nuclear Density"]
[null,null,"Date:","Test Strip #:","Test Strip Type","Contract:","Job No.-Project ID:","Route-Road:","County:","WisDOT Mix No.:","Mix Gradation:","Mix Traffic Vol:","Asphalt Binder:","Binder Designation:","Mix Type:","Contract Unit Price:","Final Tonnage:","Final Length:","Paving Width(ft):","Lane Width(ft):","Nominal Thickness(in):","Estimated Tonnage:"," Estimated Stations- Start:","End:","Estimated Length(ft):","Test Strip Pavement Layer:","Underlying Layer:","Density Lower Spec Limit(%):","Project Leader:","Contractor:","JMF Gmm:","JMF Gse:"," JMF AC  %: ","JMF AC Sp Gr:","QC Gmm",null,null,"QC Gmb",null,null,"QC Va",null,null,"QC AC%",null,null,"QV Gmm",null,null,"QV Gmb",null,null,"QV Va",null,null,"QV AC%",null,null,"BTS Gmm",null,null,"BTS Gmb",null,null,"BTS Va",null,null,"BTS AC%",null,null,"Air Voids Pay Factor",null,null,null,null,null,null,"Density",null,null,null,null,null,null,null,null,null,null,null,null,null,null,null,null,null,null,"Density Gauge Correlation"]
[null,null,null,null,null,null,null,null,null,null,null,null,null,null,null,null,null,null,null,null,null,null,null,null,null,null,null,null,null,null,null,null,null,null,"AVG ","STEDEV","COV","AVG ","STEDEV","COV","AVG ","STEDEV","COV","AVG ","STEDEV","COV","AVG ","STEDEV","COV","AVG ","STEDEV","COV","AVG ","STEDEV","COV","AVG ","STEDEV","COV","AVG ","STEDEV","COV","AVG ","STEDEV","COV","AVG ","STEDEV","COV","AVG ","STEDEV","COV","Data Set used for Pay","AVG","STDEV","PWLAV","PFAV","Lot Size (Ton)","Air Voids Pay Adjustment","QC Cores",null,null,"QV Cores",null,null,"Density Pay Factor",null,null,null,null,null,null,null,null,null,null,null,null,"QC-1",null,null,null,null,null,"QC-2",null,null,null,null,"QV-1",null,null,null,null,"QV-2"]
[null,null,null,null,null,null,null,null,null,null,null,null,null,null,null,null,null,null,null,null,null,null,null,null,null,null,null,null,null,null,null,null,null,null,null,null,null,null,null,null,null,null,null,null,null,null,null,null,null,null,null,null,null,null,null,null,null,null,null,null,null,null,null,null,null,null,null,null,null,null,null,null,null,null,null,null,null,"AVG ","STEDEV","COV","AVG ","STEDEV","COV","Gmm Used for Core Density:","Gmm Data Used:","Core Data Used:","Standard Deviation","Mean","Number of Tests in Lot","Quality Index","d2","x","PWLD","PFD","Lot Size (Ton)","Density Pay Adjustment","Gauge Serial #","Core Spread (%)","Gauge Spread (%)","Gauge Comp. Avg.","Gauge Recommendation","Gauge Offset","Gauge Serial #","Gauge Spread (%)","Gauge Comp. Avg.","Gauge Recommendation","Gauge Offset","Gauge Serial #","Gauge Spread (%)","Gauge Comp. Avg.","Gauge Recommendation","Gauge Offset","Gauge Serial #","Gauge Spread (%)","Gauge Comp. Avg.","Gauge Recommendation","Gauge Offset"]
[null,null,{"$f":"IF('Project Info & Instructions'!$C$10=\"\",\"\",'Project Info & Instructions'!$C$10)","v":""},{"$f":"IF('Project Info & Instructions'!$C$11=\"\",\"\",'Project Info & Instructions'!$C$11)","v":""},{"$f":"'Project Info & Instructions'!$R$5","v":"Combined"},{"$f":"IF('Project Info & Instructions'!$C$12=\"\",\"\",'Project Info & Instructions'!$C$12)","v":""},{"$f":"IF('Project Info & Instructions'!$C$13=\"\",\"\",'Project Info & Instructions'!$C$13)","v":""},{"$f":"IF('Project Info & Instructions'!$C$14=\"\",\"\",'Project Info & Instructions'!$C$14)","v":""},{"$f":"IF('Project Info & Instructions'!$C$15=\"\",\"\",'Project Info & Instructions'!$C$15)","v":""},{"$f":"IF('Project Info & Instructions'!$C$16=\"\",\"\",'Project Info & Instructions'!$C$16)","v":""},{"$f":"IF('Project Info & Instructions'!$C$17=\"\",\"\",'Project Info & Instructions'!$C$17)","v":""},{"$f":"IF('Project Info & Instructions'!$C$18=\"\",\"\",'Project Info & Instructions'!$C$18)","v":""},{"$f":"IF('Project Info & Instructions'!$C$19=\"\",\"\",'Project Info & Instructions'!$C$19)","v":""},{"$f":"IF('Project Info & Instructions'!$C$20=\"\",\"\",'Project Info & Instructions'!$C$20)","v":""},{"$f":"IF('Project Info & Instructions'!$C$21=\"--\",\"\",'Project Info & Instructions'!$C$21)","v":""},{"$f":"IF('Project Info & Instructions'!$C$22=\"\",\"\",'Project Info & Instructions'!$C$22)","v":""},{"$f":"IF('Project Info & Instructions'!$C$23=\"\",\"\",'Project Info & Instructions'!$C$23)","v":""},{"$f":"IF('Project Info & Instructions'!$C$24=\"\",\"\",'Project Info & Instructions'!$C$24)","v":""},{"$f":"IF('Project Info & Instructions'!$G$10=\"\",\"\",'Project Info & Instructions'!$G$10)","v":""},{"$f":"IF('Project Info & Instructions'!$G$11=\"\",\"\",'Project Info & Instructions'!$G$11)","v":""},{"$f":"IF('Project Info & Instructions'!$G$12=\"\",\"\",'Project Info & Instructions'!$G$12)","v":""},{"$f":"IF('Project Info & Instructions'!$G$13=\"\",'Project Info & Instructions'!$J$13,'Project Info & Instructions'!$G$13)","v":""},{"$f":"IF('Project Info & Instructions'!$G$14=\"\",\"\",'Project Info & Instructions'!$G$14)","v":""},{"$f":"IF('Project Info & Instructions'!$I$14=\"\",\"\",'Project Info & Instructions'!$I$14)","v":""},{"$f":"IF('Project Info & Instructions'!$G$15=\"\",'Project Info & Instructions'!$J$15,'Project Info & Instructions'!$G$15)","v":""},{"$f":"IF('Project Info & Instructions'!$G$16=\"\",\"\",'Project Info & Instructions'!$G$16)","v":""},{"$f":"IF('Project Info & Instructions'!$G$17=\"\",\"\",'Project Info & Instructions'!$G$17)","v":""},{"$f":"IF('Project Info & Instructions'!$G$18=\"Enter Mix and Layer Info\",\"\",'Project Info & Instructions'!$G$18)","v":""},{"$f":"IF('Project Info & Instructions'!$G$19=\"\",\"\",'Project Info & Instructions'!$G$19)","v":""},{"$f":"IF('Project Info & Instructions'!$G$20=\"\",\"\",'Project Info & Instructions'!$G$20)","v":""},{"$f":"IF('Project Info & Instructions'!$G$21=\"\",\"\",'Project Info & Instructions'!$G$21)","v":""},{"$f":"IF('Project Info & Instructions'!$G$24=\"\",\"\",'Project Info & Instructions'!$G$24)","v":""},{"$f":"IF('Project Info & Instructions'!$G$22=\"\",\"\",'Project Info & Instructions'!$G$22)","v":""},{"$f":"IF('Project Info & Instructions'!$G$23=\"\",\"\",'Project Info & Instructions'!$G$23)","v":""},{"$f":"IFERROR(AVERAGE('Split Sample Comparison'!$D$9:$D$11),\"\")","v":""},{"$f":"IFERROR(_xlfn.STDEV.S('Split Sample Comparison'!$D$9:$D$11),\"\")","v":""},{"$f":"IFERROR(AJ6/AI6,\"\")","v":""},{"$f":"IFERROR(AVERAGE('Split Sample Comparison'!$D$19:$D$21),\"\")","v":""},{"$f":"IFERROR(_xlfn.STDEV.S('Split Sample Comparison'!$D$19:$D$21),\"\")","v":""},{"$f":"IFERROR(AM6/AL6,\"\")","v":""},{"$f":"IFERROR(AVERAGE('Split Sample Comparison'!$N$27:$N$29),\"\")","v":""},{"$f":"IFERROR(_xlfn.STDEV.S('Split Sample Comparison'!$N$27:$N$29),\"\")","v":""},{"$f":"IFERROR(AP6/AO6,\"\")","v":""},{"$f":"IFERROR(AVERAGE('AC % Data'!$D$9:$D$11),\"\")","v":""},{"$f":"IFERROR(_xlfn.STDEV.S('AC % Data'!$D$9:$D$11),\"\")","v":""},{"$f":"IFERROR(AS6/AR6,\"\")","v":""},{"$f":"IFERROR(AVERAGE('Split Sample Comparison'!$E$9:$E$11),\"\")","v":""},{"$f":"IFERROR(_xlfn.STDEV.S('Split Sample Comparison'!$E$9:$E$11),\"\")","v":""},{"$f":"IFERROR(AV6/AU6,\"\")","v":""},{"$f":"IFERROR(AVERAGE('Split Sample Comparison'!$E$19:$E$21),\"\")","v":""},{"$f":"IFERROR(_xlfn.STDEV.S('Split Sample Comparison'!$E$19:$E$21),\"\")","v":""},{"$f":"IFERROR(AY6/AX6,\"\")","v":""},{"$f":"IFERROR(AVERAGE('Split Sample Comparison'!$O$27:$O$29),\"\")","v":""},{"$f":"IFERROR(_xlfn.STDEV.S('Split Sample Comparison'!$O$27:$O$29),\"\")","v":""},{"$f":"IFERROR(BB6/BA6,\"\")","v":""},{"$f":"IFERROR(AVERAGE('AC % Data'!$E$9:$E$11),\"\")","v":""},{"$f":"IFERROR(_xlfn.STDEV.S('AC % Data'!$E$9:$E$11),\"\")","v":""},{"$f":"IFERROR(BE6/BD6,\"\")","v":""},{"$f":"IFERROR(AVERAGE('Split Sample Comparison'!$K$9:$K$11),\"\")","v":""},{"$f":"IFERROR(_xlfn.STDEV.S('Split Sample Comparison'!$K$9:$K$11),\"\")","v":""},{"$f":"IFERROR(BH6/BG6,\"\")","v":""},{"$f":"IFERROR(AVERAGE('Split Sample Comparison'!$K$19:$K$21),\"\")","v":""},{"$f":"IFERROR(_xlfn.STDEV.S('Split Sample Comparison'!$K$19:$K$21),\"\")","v":""},{"$f":"IFERROR(BK6/BJ6,\"\")","v":""},{"$f":"IFERROR(AVERAGE('Split Sample Comparison'!$P$27:$P$29),\"\")","v":""},{"$f":"IFERROR(_xlfn.STDEV.S('Split Sample Comparison'!$P$27:$P$29),\"\")","v":""},{"$f":"IFERROR(BN6/BM6,\"\")","v":""},{"$f":"IFERROR(AVERAGE('AC % Data'!$G$9:$G$11),\"\")","v":""},{"$f":"IFERROR(_xlfn.STDEV.S('AC % Data'!$G$9:$G$11),\"\")","v":""},{"$f":"IFERROR(BQ6/BP6,\"\")","v":""},{"$f":"'Air Voids Pay Factor'!$D$12","v":"QC"},{"$f":"IF('Air Voids Pay Factor'!$H$9=\"\",\"\",'Air Voids Pay Factor'!$H$9)","v":""},{"$f":"IF('Air Voids Pay Factor'!$G$9=\"\",\"\",'Air Voids Pay Factor'!$G$9)","v":""},{"$f":"IF('Air Voids Pay Factor'!$R$9=\"\",\"\",'Air Voids Pay Factor'!$R$9)","v":""},{"$f":"IF('Air Voids Pay Factor'!$S$9=\"\",\"\",'Air Voids Pay Factor'!$S$9)","v":""},{"$f":"IF('Air Voids Pay Factor'!$T$9=\"\",\"\",'Air Voids Pay Factor'!$T$9)","v":""},{"$f":"IF('Air Voids Pay Factor'!$U$9=\"\",\"\",'Air Voids Pay Factor'!$U$9)","v":""},{"$f":"IFERROR(AVERAGE('Core Data'!$H$11:$H$15,'Core Data'!$H$19:$H$23),\"\")","v":""},{"$f":"IFERROR(_xlfn.STDEV.S('Core Data'!$H$11:$H$15,'Core Data'!$H$19:$H$23),\"\")","v":""},{"$f":"IFERROR(CA6/BZ6,\"\")","v":""},{"$f":"IFERROR(AVERAGE('Core Data'!$P$11:$P$15,'Core Data'!$P$19:$P$23),\"\")","v":""},{"$f":"IFERROR(_xlfn.STDEV.S('Core Data'!$P$11:$P$15,'Core Data'!$P$19:$P$23),\"\")","v":""},{"$f":"IFERROR(CD6/CC6,\"\")","v":""},{"$f":"IF('Density Pay Factor'!$D$19=\"\",\"\",'Density Pay Factor'!$D$19)","v":""},{"$f":"'Density Pay Factor'!$D$20","v":"QC"},{"$f":"'Density Pay Factor'!$D$21","v":"QC"},{"$f":"IF('Density Pay Factor'!$E$17=\"\",\"\",'Density Pay Factor'!$E$17)","v":""},{"$f":"IF('Density Pay Factor'!$F$17=\"\",\"\",'Density Pay Factor'!$F$17)","v":""},{"$f":"'Density Pay Factor'!$G$17","v":0},{"$f":"IFERROR('Density Pay Factor'!$H$17,\"\")","v":""},{"$f":"'Density Pay Factor'!$I$17","v":0},{"$f":"IFERROR('Density Pay Factor'!$J$17,\"\")","v":""},{"$f":"'Density Pay Factor'!$K$17","v":""},{"$f":"'Density Pay Factor'!$L$17","v":""},{"$f":"'Density Pay Factor'!$M$17","v":""},{"$f":"'Density Pay Factor'!$N$17","v":""},{"$f":"IF('Test Strip Summary'!$D$41=\"Enter Serial #\",\"\",'Test Strip Summary'!$D$41)","v":""},{"$f":"'Test Strip Summary'!$E$41","v":0},{"$f":"'Test Strip Summary'!$G$41","v":0},{"$f":"'Test Strip Summary'!$H$41","v":""},{"$f":"'Test Strip Summary'!$J$41","v":""},{"$f":"'Test Strip Summary'!$K$41","v":""},{"$f":"IF('Test Strip Summary'!$D$42=\"Enter Serial #\",\"\",'Test Strip Summary'!$D$42)","v":""},{"$f":"'Test Strip Summary'!$G$42","v":0},{"$f":"'Test Strip Summary'!$H$42","v":""},{"$f":"'Test Strip Summary'!$J$42","v":""},{"$f":"'Test Strip Summary'!$K$42","v":""},{"$f":"IF('Test Strip Summary'!$D$43=\"Enter Serial #\",\"\",'Test Strip Summary'!$D$43)","v":""},{"$f":"'Test Strip Summary'!$G$43","v":0},{"$f":"'Test Strip Summary'!$H$43","v":""},{"$f":"'Test Strip Summary'!$J$43","v":""},{"$f":"'Test Strip Summary'!$K$43","v":""},{"$f":"IF('Test Strip Summary'!$D$44=\"Enter Serial #\",\"\",'Test Strip Summary'!$D$44)","v":""},{"$f":"'Test Strip Summary'!$G$44","v":0},{"$f":"'Test Strip Summary'!$H$44","v":""},{"$f":"'Test Strip Summary'!$J$44","v":""},{"$f":"'Test Strip Summary'!$K$44","v":""}]
[]
[]
[null,"Project Information","Date:","Test Strip #:","Test Strip Type","Contract:","Job No.-Project ID:","Route-Road:","County:","WisDOT Mix No.:","Mix Gradation:","Mix Traffic Vol:","Asphalt Binder:","Binder Designation:","Mix Type:","Contract Unit Price:","Final Tonnage:","Final Length:","Paving Width(ft):","Lane Width(ft):","Nominal Thickness(in):","Estimated Tonnage:"," Estimated Stations- Start:","End:","Estimated Length(ft):","Test Strip Pavement Layer:","Underlying Layer:","Density Lower Spec Limit(%):","Project Leader:","Contractor:","JMF Gmm:","JMF Gse:"," JMF AC  %: ","JMF AC Sp Gr:"]
[null,null,{"$f":"IF('Project Info & Instructions'!$C$10=\"\",\"\",'Project Info & Instructions'!$C$10)","v":""},{"$f":"IF('Project Info & Instructions'!$C$11=\"\",\"\",'Project Info & Instructions'!$C$11)","v":""},{"$f":"'Project Info & Instructions'!$R$5","v":"Combined"},{"$f":"IF('Project Info & Instructions'!$C$12=\"\",\"\",'Project Info & Instructions'!$C$12)","v":""},{"$f":"IF('Project Info & Instructions'!$C$13=\"\",\"\",'Project Info & Instructions'!$C$13)","v":""},{"$f":"IF('Project Info & Instructions'!$C$14=\"\",\"\",'Project Info & Instructions'!$C$14)","v":""},{"$f":"IF('Project Info & Instructions'!$C$15=\"\",\"\",'Project Info & Instructions'!$C$15)","v":""},{"$f":"IF('Project Info & Instructions'!$C$16=\"\",\"\",'Project Info & Instructions'!$C$16)","v":""},{"$f":"IF('Project Info & Instructions'!$C$17=\"\",\"\",'Project Info & Instructions'!$C$17)","v":""},{"$f":"IF('Project Info & Instructions'!$C$18=\"\",\"\",'Project Info & Instructions'!$C$18)","v":""},{"$f":"IF('Project Info & Instructions'!$C$19=\"\",\"\",'Project Info & Instructions'!$C$19)","v":""},{"$f":"IF('Project Info & Instructions'!$C$20=\"\",\"\",'Project Info & Instructions'!$C$20)","v":""},{"$f":"IF('Project Info & Instructions'!$C$21=\"--\",\"\",'Project Info & Instructions'!$C$21)","v":""},{"$f":"IF('Project Info & Instructions'!$C$22=\"\",\"\",'Project Info & Instructions'!$C$22)","v":""},{"$f":"IF('Project Info & Instructions'!$C$23=\"\",\"\",'Project Info & Instructions'!$C$23)","v":""},{"$f":"IF('Project Info & Instructions'!$C$24=\"\",\"\",'Project Info & Instructions'!$C$24)","v":""},{"$f":"IF('Project Info & Instructions'!$G$10=\"\",\"\",'Project Info & Instructions'!$G$10)","v":""},{"$f":"IF('Project Info & Instructions'!$G$11=\"\",\"\",'Project Info & Instructions'!$G$11)","v":""},{"$f":"IF('Project Info & Instructions'!$G$12=\"\",\"\",'Project Info & Instructions'!$G$12)","v":""},{"$f":"IF('Project Info & Instructions'!$G$13=\"\",'Project Info & Instructions'!$J$13,'Project Info & Instructions'!$G$13)","v":""},{"$f":"IF('Project Info & Instructions'!$G$14=\"\",\"\",'Project Info & Instructions'!$G$14)","v":""},{"$f":"IF('Project Info & Instructions'!$I$14=\"\",\"\",'Project Info & Instructions'!$I$14)","v":""},{"$f":"IF('Project Info & Instructions'!$G$15=\"\",'Project Info & Instructions'!$J$15,'Project Info & Instructions'!$G$15)","v":""},{"$f":"IF('Project Info & Instructions'!$G$16=\"\",\"\",'Project Info & Instructions'!$G$16)","v":""},{"$f":"IF('Project Info & Instructions'!$G$17=\"\",\"\",'Project Info & Instructions'!$G$17)","v":""},{"$f":"IF('Project Info & Instructions'!$G$18=\"Enter Mix and Layer Info\",\"\",'Project Info & Instructions'!$G$18)","v":""},{"$f":"IF('Project Info & Instructions'!$G$19=\"\",\"\",'Project Info & Instructions'!$G$19)","v":""},{"$f":"IF('Project Info & Instructions'!$G$20=\"\",\"\",'Project Info & Instructions'!$G$20)","v":""},{"$f":"IF('Project Info & Instructions'!$G$21=\"\",\"\",'Project Info & Instructions'!$G$21)","v":""},{"$f":"IF('Project Info & Instructions'!$G$24=\"\",\"\",'Project Info & Instructions'!$G$24)","v":""},{"$f":"IF('Project Info & Instructions'!$G$22=\"\",\"\",'Project Info & Instructions'!$G$22)","v":""},{"$f":"IF('Project Info & Instructions'!$G$23=\"\",\"\",'Project Info & Instructions'!$G$23)","v":""}]
[]
[]
[null,"Volumetrics","Test Strip Pavement Layer:","QC Gmm",null,null,"QC Gmb",null,null,"QC Va",null,null,"QC AC%",null,null,"QV Gmm",null,null,"QV Gmb",null,null,"QV Va",null,null,"QV AC%",null,null,"BTS Gmm",null,null,"BTS Gmb",null,null,"BTS Va",null,null,"BTS AC%",null,null,"Air Voids Pay Factor"]
[null,null,null,"AVG ","STEDEV","COV","AVG ","STEDEV","COV","AVG ","STEDEV","COV","AVG ","STEDEV","COV","AVG ","STEDEV","COV","AVG ","STEDEV","COV","AVG ","STEDEV","COV","AVG ","STEDEV","COV","AVG ","STEDEV","COV","AVG ","STEDEV","COV","AVG ","STEDEV","COV","AVG ","STEDEV","COV","Data Set used for Pay","AVG","STDEV","PWLAV","PFAV","Lot Size (Ton)","Air Voids Pay Adjustment"]
[null,null,{"$f":"IF('Project Info & Instructions'!$G$16=\"\",\"\",'Project Info & Instructions'!$G$16)","v":""},{"$f":"IFERROR(AVERAGE('Split Sample Comparison'!$D$9:$D$11),\"\")","v":""},{"$f":"IFERROR(_xlfn.STDEV.S('Split Sample Comparison'!$D$9:$D$11),\"\")","v":""},{"$f":"IFERROR(E15/D15,\"\")","v":""},{"$f":"IFERROR(AVERAGE('Split Sample Comparison'!$D$19:$D$21),\"\")","v":""},{"$f":"IFERROR(_xlfn.STDEV.S('Split Sample Comparison'!$D$19:$D$21),\"\")","v":""},{"$f":"IFERROR(H15/G15,\"\")","v":""},{"$f":"IFERROR(AVERAGE('Split Sample Comparison'!$N$27:$N$29),\"\")","v":""},{"$f":"IFERROR(_xlfn.STDEV.S('Split Sample Comparison'!$N$27:$N$29),\"\")","v":""},{"$f":"IFERROR(K15/J15,\"\")","v":""},{"$f":"IFERROR(AVERAGE('AC % Data'!$D$9:$D$11),\"\")","v":""},{"$f":"IFERROR(_xlfn.STDEV.S('AC % Data'!$D$9:$D$11),\"\")","v":""},{"$f":"IFERROR(N15/M15,\"\")","v":""},{"$f":"IFERROR(AVERAGE('Split Sample Comparison'!$E$9:$E$11),\"\")","v":""},{"$f":"IFERROR(_xlfn.STDEV.S('Split Sample Comparison'!$E$9:$E$11),\"\")","v":""},{"$f":"IFERROR(Q15/P15,\"\")","v":""},{"$f":"IFERROR(AVERAGE('Split Sample Comparison'!$E$19:$E$21),\"\")","v":""},{"$f":"IFERROR(_xlfn.STDEV.S('Split Sample Comparison'!$E$19:$E$21),\"\")","v":""},{"$f":"IFERROR(T15/S15,\"\")","v":""},{"$f":"IFERROR(AVERAGE('Split Sample Comparison'!$O$27:$O$29),\"\")","v":""},{"$f":"IFERROR(_xlfn.STDEV.S('Split Sample Comparison'!$O$27:$O$29),\"\")","v":""},{"$f":"IFERROR(W15/V15,\"\")","v":""},{"$f":"IFERROR(AVERAGE('AC % Data'!$E$9:$E$11),\"\")","v":""},{"$f":"IFERROR(_xlfn.STDEV.S('AC % Data'!$E$9:$E$11),\"\")","v":""},{"$f":"IFERROR(Z15/Y15,\"\")","v":""},{"$f":"IFERROR(AVERAGE('Split Sample Comparison'!$K$9:$K$11),\"\")","v":""},{"$f":"IFERROR(_xlfn.STDEV.S('Split Sample Comparison'!$K$9:$K$11),\"\")","v":""},{"$f":"IFERROR(AC15/AB15,\"\")","v":""},{"$f":"IFERROR(AVERAGE('Split Sample Comparison'!$K$19:$K$21),\"\")","v":""},{"$f":"IFERROR(_xlfn.STDEV.S('Split Sample Comparison'!$K$19:$K$21),\"\")","v":""},{"$f":"IFERROR(AF15/AE15,\"\")","v":""},{"$f":"IFERROR(AVERAGE('Split Sample Comparison'!$P$27:$P$29),\"\")","v":""},{"$f":"IFERROR(_xlfn.STDEV.S('Split Sample Comparison'!$P$27:$P$29),\"\")","v":""},{"$f":"IFERROR(AI15/AH15,\"\")","v":""},{"$f":"IFERROR(AVERAGE('AC % Data'!$G$9:$G$11),\"\")","v":""},{"$f":"IFERROR(_xlfn.STDEV.S('AC % Data'!$G$9:$G$11),\"\")","v":""},{"$f":"IFERROR(AL15/AK15,\"\")","v":""},{"$f":"'Air Voids Pay Factor'!$D$12","v":"QC"},{"$f":"IF('Air Voids Pay Factor'!$H$9=\"\",\"\",'Air Voids Pay Factor'!$H$9)","v":""},{"$f":"IF('Air Voids Pay Factor'!$G$9=\"\",\"\",'Air Voids Pay Factor'!$G$9)","v":""},{"$f":"IF('Air Voids Pay Factor'!$R$9=\"\",\"\",'Air Voids Pay Factor'!$R$9)","v":""},{"$f":"IF('Air Voids Pay Factor'!$S$9=\"\",\"\",'Air Voids Pay Factor'!$S$9)","v":""},{"$f":"IF('Air Voids Pay Factor'!$T$9=\"\",\"\",'Air Voids Pay Factor'!$T$9)","v":""},{"$f":"IF('Air Voids Pay Factor'!$U$9=\"\",\"\",'Air Voids Pay Factor'!$U$9)","v":""}]
[]
[]
[null,"Mainline Nuclear Density","Summary",null,"Density",null,null,null,null,null,null,null,null,null,null,null,null,null,null,null,null,null,null,"Density Gauge Correlation"]
[null,null,"Test Strip Pavement Layer:","Density Lower Spec Limit(%):","QC Cores",null,null,"QV Cores",null,null,"Density Pay Factor",null,null,null,null,null,null,null,null,null,null,null,null,"QC-1",null,null,null,null,null,"QC-2",null,null,null,null,"QV-1",null,null,null,null,"QV-2"]
[null,null,null,null,"AVG ","STEDEV","COV","AVG ","STEDEV","COV","Gmm Used for Core Density:","Gmm Data Used:","Core Data Used:","Standard Deviation","Mean","Number of Tests in Lot","Quality Index","d2","x","PWLD","PFD","Lot Size (Ton)","Density Pay Adjustment","Gauge Serial #","Core Spread (%)","Gauge Spread (%)","Gauge Comp. Avg.","Gauge Recommendation","Gauge Offset","Gauge Serial #","Gauge Spread (%)","Gauge Comp. Avg.","Gauge Recommendation","Gauge Offset","Gauge Serial #","Gauge Spread (%)","Gauge Comp. Avg.","Gauge Recommendation","Gauge Offset","Gauge Serial #","Gauge Spread (%)","Gauge Comp. Avg.","Gauge Recommendation","Gauge Offset"]
[null,null,{"$f":"IF('Project Info & Instructions'!$G$16=\"\",\"\",'Project Info & Instructions'!$G$16)","v":""},{"$f":"IF('Project Info & Instructions'!$G$18=\"Enter Mix and Layer Info\",\"\",'Project Info & Instructions'!$G$18)","v":""},{"$f":"IFERROR(AVERAGE('Core Data'!$H$11:$H$15,'Core Data'!$H$19:$H$23),\"\")","v":""},{"$f":"IFERROR(_xlfn.STDEV.S('Core Data'!$H$11:$H$15,'Core Data'!$H$19:$H$23),\"\")","v":""},{"$f":"IFERROR(F21/E21,\"\")","v":""},{"$f":"IFERROR(AVERAGE('Core Data'!$P$11:$P$15,'Core Data'!$P$19:$P$23),\"\")","v":""},{"$f":"IFERROR(_xlfn.STDEV.S('Core Data'!$P$11:$P$15,'Core Data'!$P$19:$P$23),\"\")","v":""},{"$f":"IFERROR(I21/H21,\"\")","v":""},{"$f":"IF('Density Pay Factor'!$D$19=\"\",\"\",'Density Pay Factor'!$D$19)","v":""},{"$f":"'Density Pay Factor'!$D$20","v":"QC"},{"$f":"'Density Pay Factor'!$D$21","v":"QC"},{"$f":"IF('Density Pay Factor'!$E$17=\"\",\"\",'Density Pay Factor'!$E$17)","v":""},{"$f":"IF('Density Pay Factor'!$F$17=\"\",\"\",'Density Pay Factor'!$F$17)","v":""},{"$f":"'Density Pay Factor'!$G$17","v":0},{"$f":"IFERROR('Density Pay Factor'!$H$17,\"\")","v":""},{"$f":"'Density Pay Factor'!$I$17","v":0},{"$f":"IFERROR('Density Pay Factor'!$J$17,\"\")","v":""},{"$f":"'Density Pay Factor'!$K$17","v":""},{"$f":"'Density Pay Factor'!$L$17","v":""},{"$f":"'Density Pay Factor'!$M$17","v":""},{"$f":"'Density Pay Factor'!$N$17","v":""},{"$f":"IF('Test Strip Summary'!$D$41=\"Enter Serial #\",\"\",'Test Strip Summary'!$D$41)","v":""},{"$f":"'Test Strip Summary'!$E$41","v":0},{"$f":"'Test Strip Summary'!$G$41","v":0},{"$f":"'Test Strip Summary'!$H$41","v":""},{"$f":"'Test Strip Summary'!$J$41","v":""},{"$f":"'Test Strip Summary'!$K$41","v":""},{"$f":"IF('Test Strip Summary'!$D$42=\"Enter Serial #\",\"\",'Test Strip Summary'!$D$42)","v":""},{"$f":"'Test Strip Summary'!$G$42","v":0},{"$f":"'Test Strip Summary'!$H$42","v":""},{"$f":"'Test Strip Summary'!$J$42","v":""},{"$f":"'Test Strip Summary'!$K$42","v":""},{"$f":"IF('Test Strip Summary'!$D$43=\"Enter Serial #\",\"\",'Test Strip Summary'!$D$43)","v":""},{"$f":"'Test Strip Summary'!$G$43","v":0},{"$f":"'Test Strip Summary'!$H$43","v":""},{"$f":"'Test Strip Summary'!$J$43","v":""},{"$f":"'Test Strip Summary'!$K$43","v":""},{"$f":"IF('Test Strip Summary'!$D$44=\"Enter Serial #\",\"\",'Test Strip Summary'!$D$44)","v":""},{"$f":"'Test Strip Summary'!$G$44","v":0},{"$f":"'Test Strip Summary'!$H$44","v":""},{"$f":"'Test Strip Summary'!$J$44","v":""},{"$f":"'Test Strip Summary'!$K$44","v":""}]